Workbook

Sheet Invoer
B1: Invoerscherm Verkeersgeneratie & Parkeernorm
B4: PROJECTGEGEVENS | J4: Uitgangspunten | M4: Stedelijkheidsgraad van Nederlandse gemeenten
I5: 1 | J5: Cijfers van CROW Publicatie 381 (2018) | M5: Klasse | N5: Omgevingsadressendichtheid (adressen per km2)
B6: PROJECTNAAM | I6: 2 | M6: zeer sterk stedelijk | N6: > 2500
B7: REFERENTIE | I7: 3 | M7: sterk stedelijk | N7: 1500-2500
B8: PLANLOCATIE | I8: 4 | M8: matig stedelijk | N8: 1000-1500
E9: Klik hier en plak de kaart | I9: 5 | M9: weinig stedelijk | N9: 500-1000
B10: DATUM | I10: 6 | M10: niet stedelijk | N10: < 500
B11: INGEVULD DOOR | I11: 7
I12: 8
I13: 9
B14: DEEL 1: Bestaande situatie
B15: Vul hieronder de gegevens in;
M17: Rekenhulp
B18: Functie | G18: Stedelijkheidsgraad | H18: Schil | I18: Aantal | J18: Eenheid | M18: Functie | N18: Gemeten BVO | O18: Eenheid | P18: In te vullen aantal
J19: =IF(B19="","",INDEX(Dropdownmenu!$F$3:$F$117,MATCH(Invoer!B19,Dropdownmenu!$A$3:$A$117,0))) ->  | P19: =IFERROR(SUM(N19/O19),"") -> 
J20: =IF(B20="","",INDEX(Dropdownmenu!$F$3:$F$117,MATCH(Invoer!B20,Dropdownmenu!$A$3:$A$117,0))) ->  | P20: =IFERROR(SUM(N20/O20),"") -> 
J21: =IF(B21="","",INDEX(Dropdownmenu!$F$3:$F$117,MATCH(Invoer!B21,Dropdownmenu!$A$3:$A$117,0))) -> 
J22: =IF(B22="","",INDEX(Dropdownmenu!$F$3:$F$117,MATCH(Invoer!B22,Dropdownmenu!$A$3:$A$117,0))) -> 
J23: =IF(B23="","",INDEX(Dropdownmenu!$F$3:$F$117,MATCH(Invoer!B23,Dropdownmenu!$A$3:$A$117,0))) -> 
J24: =IF(B24="","",INDEX(Dropdownmenu!$F$3:$F$117,MATCH(Invoer!B24,Dropdownmenu!$A$3:$A$117,0))) -> 
J25: =IF(B25="","",INDEX(Dropdownmenu!$F$3:$F$117,MATCH(Invoer!B25,Dropdownmenu!$A$3:$A$117,0))) -> 
J26: =IF(B26="","",INDEX(Dropdownmenu!$F$3:$F$117,MATCH(Invoer!B26,Dropdownmenu!$A$3:$A$117,0))) -> 
J27: =IF(B27="","",INDEX(Dropdownmenu!$F$3:$F$117,MATCH(Invoer!B27,Dropdownmenu!$A$3:$A$117,0))) -> 
J28: =IF(B28="","",INDEX(Dropdownmenu!$F$3:$F$117,MATCH(Invoer!B28,Dropdownmenu!$A$3:$A$117,0))) -> 
J29: =IF(B29="","",INDEX(Dropdownmenu!$F$3:$F$117,MATCH(Invoer!B29,Dropdownmenu!$A$3:$A$117,0))) -> 
J30: =IF(B30="","",INDEX(Dropdownmenu!$F$3:$F$117,MATCH(Invoer!B30,Dropdownmenu!$A$3:$A$117,0))) -> 
J31: =IF(B31="","",INDEX(Dropdownmenu!$F$3:$F$117,MATCH(Invoer!B31,Dropdownmenu!$A$3:$A$117,0))) -> 
J32: =IF(B32="","",INDEX(Dropdownmenu!$F$3:$F$117,MATCH(Invoer!B32,Dropdownmenu!$A$3:$A$117,0))) -> 
B33: Totaal aantal units | I33: =SUM(I19:I32) -> 0
B35: DEEL 2: Nieuwe situatie
B36: Vul hieronder de gegevens in;
B38: FUNCTIE | G38: Stedelijkheidsgraad | H38: Schil | I38: Aantal | J38: Eenheid
B39: Koop, Vrijstaand | G39: Matig | H39: Schilcentrum | I39: 20 | J39: =IF(B39="","",INDEX(Dropdownmenu!$F$3:$F$117,MATCH(Invoer!B39,Dropdownmenu!$A$3:$A$117,0))) -> Per woning
B40: Buurtsupermarkt | G40: Matig | H40: Schilcentrum | I40: 10 | J40: =IF(B40="","",INDEX(Dropdownmenu!$F$3:$F$117,MATCH(Invoer!B40,Dropdownmenu!$A$3:$A$117,0))) -> Per 100m2 bvo
J41: =IF(B41="","",INDEX(Dropdownmenu!$F$3:$F$117,MATCH(Invoer!B41,Dropdownmenu!$A$3:$A$117,0))) -> 
J42: =IF(B42="","",INDEX(Dropdownmenu!$F$3:$F$117,MATCH(Invoer!B42,Dropdownmenu!$A$3:$A$117,0))) -> 
J43: =IF(B43="","",INDEX(Dropdownmenu!$F$3:$F$117,MATCH(Invoer!B43,Dropdownmenu!$A$3:$A$117,0))) -> 
J44: =IF(B44="","",INDEX(Dropdownmenu!$F$3:$F$117,MATCH(Invoer!B44,Dropdownmenu!$A$3:$A$117,0))) -> 
J45: =IF(B45="","",INDEX(Dropdownmenu!$F$3:$F$117,MATCH(Invoer!B45,Dropdownmenu!$A$3:$A$117,0))) -> 
J46: =IF(B46="","",INDEX(Dropdownmenu!$F$3:$F$117,MATCH(Invoer!B46,Dropdownmenu!$A$3:$A$117,0))) -> 
J47: =IF(B47="","",INDEX(Dropdownmenu!$F$3:$F$117,MATCH(Invoer!B47,Dropdownmenu!$A$3:$A$117,0))) -> 
J48: =IF(B48="","",INDEX(Dropdownmenu!$F$3:$F$117,MATCH(Invoer!B48,Dropdownmenu!$A$3:$A$117,0))) -> 
J49: =IF(B49="","",INDEX(Dropdownmenu!$F$3:$F$117,MATCH(Invoer!B49,Dropdownmenu!$A$3:$A$117,0))) -> 
J50: =IF(B50="","",INDEX(Dropdownmenu!$F$3:$F$117,MATCH(Invoer!B50,Dropdownmenu!$A$3:$A$117,0))) -> 
J51: =IF(B51="","",INDEX(Dropdownmenu!$F$3:$F$117,MATCH(Invoer!B51,Dropdownmenu!$A$3:$A$117,0))) -> 
J52: =IF(B52="","",INDEX(Dropdownmenu!$F$3:$F$117,MATCH(Invoer!B52,Dropdownmenu!$A$3:$A$117,0))) -> 
B53: Totaal aantal units nieuwe situatie | I53: =SUM(I39:I52) -> 30
B55: DEEL 3: Factor gegevens
B56: Vul hieronder de gegevens in;
B58: Aandeel spits etmaal intensiteit | E58: 0.1
B59: Omrekenfactor week-werkdag | E59: 1.11
E60: In | F60: Uit
B61: Aandeel ochtendspits | E61: 0.25 | F61: 0.75
B62: Aandeel avondspits | E62: 0.7 | F62: 0.3
B64: Afronden op meervoud van | E64: 5

Sheet Overzichtsberekening
C3: =Invoer!B6 -> PROJECTNAAM | E3: =Invoer!E6 -> 0
C4: =Invoer!B7 -> REFERENTIE | E4: =Invoer!E7 -> 0
C5: =Invoer!B8 -> PLANLOCATIE | E5: =Invoer!E8 -> 0
C7: =Invoer!B10 -> DATUM | E7: =Invoer!E10 -> 00:00:00
C8: =Invoer!B11 -> INGEVULD DOOR | E8: =Invoer!E11 -> 0
G9: Oude situatie | L9: Kencijfers | Q9: Resultaat | V9: Werkdag | Z9: Ochtendspits | AD9: Avondspits
L10: Verkeersgeneratie | N10: Parkeernorm | Q10: Verkeersgeneratie | S10: Parkeernorm | V10: Etmaalintensiteit | X10: Drukste Spitsuur | Z10: Wijk in | AB10: Wijk uit | AD10: Wijk in | AF10: Wijk uit
C11: Uitgangspunten | G11: Functie | H11: Stedelijkheid | I11: Schil | J11: Aantal | L11: Min | M11: Max | N11: Min | O11: Max | Q11: Min | R11: Max | S11: Min | T11: Max | V11: Min | W11: Max | X11: Min | Y11: Max | Z11: Min | AA11: Max | AB11: Min | AC11: Max | AD11: Min | AE11: Max | AF11: Min | AG11: Max
C12: =_xlfn.CONCAT(Invoer!I5," ",Invoer!J5) -> 1 Cijfers van CROW Publicatie 381 (2018) | G12: =IF(Invoer!B19="","",Invoer!B19) ->  | H12: =IF(Invoer!G19="","",Invoer!G19) ->  | I12: =IF(Invoer!H19="","",Invoer!H19) ->  | J12: =IF(Invoer!I19="","",Invoer!I19) ->  | L12: =IFERROR(Verkeersgeneratiemin(J12),"") ->  | M12: =IFERROR(Verkeersgeneratiemax(J12),"") ->  | N12: =IFERROR(parkeernormmin(J12),"") ->  | O12: =IFERROR(Parkeernormmax(J12),"") ->  | Q12: =IF(G12="","",L12*$J12) ->  | R12: =IF(H12="","",M12*$J12) ->  | S12: =IF(I12="","",N12*$J12) ->  | T12: =IF(J12="","",O12*$J12) ->  | V12: =IF($G12="","",MROUND(L12*$J12*Invoer!$E$59,Invoer!$E$64)) ->  | W12: =IF($G12="","",MROUND(M12*$J12*Invoer!$E$59,Invoer!$E$64)) ->  | X12: =IF($G12="","",V12*Invoer!$E$58) ->  | Y12: =IF($G12="","",W12*Invoer!$E$58) ->  | Z12: =IF($G12="","",Invoer!$E$61*X12) ->  | AA12: =IF($G12="","",Invoer!$E$61*Y12) ->  | AB12: =IF($G12="","",Invoer!$F$61*X12) ->  | AC12: =IF($G12="","",Invoer!$F$61*Y12) ->  | AD12: =IF($G12="","",Invoer!$E$62*X12) ->  | AE12: =IF($G12="","",Invoer!$E$62*Y12) ->  | AF12: =IF($G12="","",Invoer!$F$62*X12) ->  | AG12: =IF($G12="","",Invoer!$F$62*Y12) -> 
C13: =_xlfn.CONCAT(Invoer!I6," ",Invoer!J6) -> 2 | G13: =IF(Invoer!B20="","",Invoer!B20) ->  | H13: =IF(Invoer!G20="","",Invoer!G20) ->  | I13: =IF(Invoer!H20="","",Invoer!H20) ->  | J13: =IF(Invoer!I20="","",Invoer!I20) ->  | L13: =IFERROR(Verkeersgeneratiemin(J13),"") ->  | M13: =IFERROR(Verkeersgeneratiemax(J13),"") ->  | N13: =IFERROR(parkeernormmin(J13),"") ->  | O13: =IFERROR(Parkeernormmax(J13),"") ->  | Q13: =IF(G13="","",L13*$J13) ->  | V13: =IF($G13="","",MROUND(L13*$J13*Invoer!$E$59,Invoer!$E$64)) ->  | W13: =IF($G13="","",MROUND(M13*$J13*Invoer!$E$59,Invoer!$E$64)) ->  | X13: =IF($G13="","",V13*Invoer!$E$58) ->  | Y13: =IF($G13="","",W13*Invoer!$E$58) ->  | Z13: =IF($G13="","",Invoer!$E$61*X13) ->  | AA13: =IF($G13="","",Invoer!$E$61*Y13) ->  | AB13: =IF($G13="","",Invoer!$F$61*X13) ->  | AC13: =IF($G13="","",Invoer!$F$61*Y13) ->  | AD13: =IF($G13="","",Invoer!$E$62*X13) ->  | AE13: =IF($G13="","",Invoer!$E$62*Y13) ->  | AF13: =IF($G13="","",Invoer!$F$62*X13) ->  | AG13: =IF($G13="","",Invoer!$F$62*Y13) -> 
C14: =_xlfn.CONCAT(Invoer!I7," ",Invoer!J7) -> 3 | G14: =IF(Invoer!B21="","",Invoer!B21) ->  | H14: =IF(Invoer!G21="","",Invoer!G21) ->  | I14: =IF(Invoer!H21="","",Invoer!H21) ->  | J14: =IF(Invoer!I21="","",Invoer!I21) ->  | L14: =IFERROR(Verkeersgeneratiemin(J14),"") ->  | M14: =IFERROR(Verkeersgeneratiemax(J14),"") ->  | N14: =IFERROR(parkeernormmin(J14),"") ->  | O14: =IFERROR(Parkeernormmax(J14),"") ->  | V14: =IF($G14="","",MROUND(L14*$J14*Invoer!$E$59,Invoer!$E$64)) ->  | W14: =IF($G14="","",MROUND(M14*$J14*Invoer!$E$59,Invoer!$E$64)) ->  | X14: =IF($G14="","",V14*Invoer!$E$58) ->  | Y14: =IF($G14="","",W14*Invoer!$E$58) ->  | Z14: =IF($G14="","",Invoer!$E$61*X14) ->  | AA14: =IF($G14="","",Invoer!$E$61*Y14) ->  | AB14: =IF($G14="","",Invoer!$F$61*X14) ->  | AC14: =IF($G14="","",Invoer!$F$61*Y14) ->  | AD14: =IF($G14="","",Invoer!$E$62*X14) ->  | AE14: =IF($G14="","",Invoer!$E$62*Y14) ->  | AF14: =IF($G14="","",Invoer!$F$62*X14) ->  | AG14: =IF($G14="","",Invoer!$F$62*Y14) -> 
C15: =_xlfn.CONCAT(Invoer!I8," ",Invoer!J8) -> 4 | G15: =IF(Invoer!B22="","",Invoer!B22) ->  | H15: =IF(Invoer!G22="","",Invoer!G22) ->  | I15: =IF(Invoer!H22="","",Invoer!H22) ->  | J15: =IF(Invoer!I22="","",Invoer!I22) ->  | L15: =IFERROR(Verkeersgeneratiemin(J15),"") ->  | M15: =IFERROR(Verkeersgeneratiemax(J15),"") ->  | N15: =IFERROR(parkeernormmin(J15),"") ->  | O15: =IFERROR(Parkeernormmax(J15),"") ->  | V15: =IF($G15="","",MROUND(L15*$J15*Invoer!$E$59,Invoer!$E$64)) ->  | W15: =IF($G15="","",MROUND(M15*$J15*Invoer!$E$59,Invoer!$E$64)) ->  | X15: =IF($G15="","",V15*Invoer!$E$58) ->  | Y15: =IF($G15="","",W15*Invoer!$E$58) ->  | Z15: =IF($G15="","",Invoer!$E$61*X15) ->  | AA15: =IF($G15="","",Invoer!$E$61*Y15) ->  | AB15: =IF($G15="","",Invoer!$F$61*X15) ->  | AC15: =IF($G15="","",Invoer!$F$61*Y15) ->  | AD15: =IF($G15="","",Invoer!$E$62*X15) ->  | AE15: =IF($G15="","",Invoer!$E$62*Y15) ->  | AF15: =IF($G15="","",Invoer!$F$62*X15) ->  | AG15: =IF($G15="","",Invoer!$F$62*Y15) -> 
C16: =_xlfn.CONCAT(Invoer!I9," ",Invoer!J9) -> 5 | G16: =IF(Invoer!B23="","",Invoer!B23) ->  | H16: =IF(Invoer!G23="","",Invoer!G23) ->  | I16: =IF(Invoer!H23="","",Invoer!H23) ->  | J16: =IF(Invoer!I23="","",Invoer!I23) ->  | L16: =IFERROR(Verkeersgeneratiemin(J16),"") ->  | M16: =IFERROR(Verkeersgeneratiemax(J16),"") ->  | N16: =IFERROR(parkeernormmin(J16),"") ->  | O16: =IFERROR(Parkeernormmax(J16),"") ->  | V16: =IF($G16="","",MROUND(L16*$J16*Invoer!$E$59,Invoer!$E$64)) ->  | W16: =IF($G16="","",MROUND(M16*$J16*Invoer!$E$59,Invoer!$E$64)) ->  | X16: =IF($G16="","",V16*Invoer!$E$58) ->  | Y16: =IF($G16="","",W16*Invoer!$E$58) ->  | Z16: =IF($G16="","",Invoer!$E$61*X16) ->  | AA16: =IF($G16="","",Invoer!$E$61*Y16) ->  | AB16: =IF($G16="","",Invoer!$F$61*X16) ->  | AC16: =IF($G16="","",Invoer!$F$61*Y16) ->  | AD16: =IF($G16="","",Invoer!$E$62*X16) ->  | AE16: =IF($G16="","",Invoer!$E$62*Y16) ->  | AF16: =IF($G16="","",Invoer!$F$62*X16) ->  | AG16: =IF($G16="","",Invoer!$F$62*Y16) -> 
C17: =_xlfn.CONCAT(Invoer!I10," ",Invoer!J10) -> 6 | G17: =IF(Invoer!B24="","",Invoer!B24) ->  | H17: =IF(Invoer!G24="","",Invoer!G24) ->  | I17: =IF(Invoer!H24="","",Invoer!H24) ->  | J17: =IF(Invoer!I24="","",Invoer!I24) ->  | L17: =IFERROR(Verkeersgeneratiemin(J17),"") ->  | M17: =IFERROR(Verkeersgeneratiemax(J17),"") ->  | N17: =IFERROR(parkeernormmin(J17),"") ->  | O17: =IFERROR(Parkeernormmax(J17),"") ->  | V17: =IF($G17="","",MROUND(L17*$J17*Invoer!$E$59,Invoer!$E$64)) ->  | W17: =IF($G17="","",MROUND(M17*$J17*Invoer!$E$59,Invoer!$E$64)) ->  | X17: =IF($G17="","",V17*Invoer!$E$58) ->  | Y17: =IF($G17="","",W17*Invoer!$E$58) ->  | Z17: =IF($G17="","",Invoer!$E$61*X17) ->  | AA17: =IF($G17="","",Invoer!$E$61*Y17) ->  | AB17: =IF($G17="","",Invoer!$F$61*X17) ->  | AC17: =IF($G17="","",Invoer!$F$61*Y17) ->  | AD17: =IF($G17="","",Invoer!$E$62*X17) ->  | AE17: =IF($G17="","",Invoer!$E$62*Y17) ->  | AF17: =IF($G17="","",Invoer!$F$62*X17) ->  | AG17: =IF($G17="","",Invoer!$F$62*Y17) -> 
C18: =_xlfn.CONCAT(Invoer!I11," ",Invoer!J11) -> 7 | G18: =IF(Invoer!B25="","",Invoer!B25) ->  | H18: =IF(Invoer!G25="","",Invoer!G25) ->  | I18: =IF(Invoer!H25="","",Invoer!H25) ->  | J18: =IF(Invoer!I25="","",Invoer!I25) ->  | L18: =IFERROR(Verkeersgeneratiemin(J18),"") ->  | M18: =IFERROR(Verkeersgeneratiemax(J18),"") ->  | N18: =IFERROR(parkeernormmin(J18),"") ->  | O18: =IFERROR(Parkeernormmax(J18),"") ->  | V18: =IF($G18="","",MROUND(L18*$J18*Invoer!$E$59,Invoer!$E$64)) ->  | W18: =IF($G18="","",MROUND(M18*$J18*Invoer!$E$59,Invoer!$E$64)) ->  | X18: =IF($G18="","",V18*Invoer!$E$58) ->  | Y18: =IF($G18="","",W18*Invoer!$E$58) ->  | Z18: =IF($G18="","",Invoer!$E$61*X18) ->  | AA18: =IF($G18="","",Invoer!$E$61*Y18) ->  | AB18: =IF($G18="","",Invoer!$F$61*X18) ->  | AC18: =IF($G18="","",Invoer!$F$61*Y18) ->  | AD18: =IF($G18="","",Invoer!$E$62*X18) ->  | AE18: =IF($G18="","",Invoer!$E$62*Y18) ->  | AF18: =IF($G18="","",Invoer!$F$62*X18) ->  | AG18: =IF($G18="","",Invoer!$F$62*Y18) -> 
C19: =_xlfn.CONCAT(Invoer!I12," ",Invoer!J12) -> 8 | G19: =IF(Invoer!B26="","",Invoer!B26) ->  | H19: =IF(Invoer!G26="","",Invoer!G26) ->  | I19: =IF(Invoer!H26="","",Invoer!H26) ->  | J19: =IF(Invoer!I26="","",Invoer!I26) ->  | L19: =IFERROR(Verkeersgeneratiemin(J19),"") ->  | M19: =IFERROR(Verkeersgeneratiemax(J19),"") ->  | N19: =IFERROR(parkeernormmin(J19),"") ->  | O19: =IFERROR(Parkeernormmax(J19),"") ->  | V19: =IF($G19="","",MROUND(L19*$J19*Invoer!$E$59,Invoer!$E$64)) ->  | W19: =IF($G19="","",MROUND(M19*$J19*Invoer!$E$59,Invoer!$E$64)) ->  | X19: =IF($G19="","",V19*Invoer!$E$58) ->  | Y19: =IF($G19="","",W19*Invoer!$E$58) ->  | Z19: =IF($G19="","",Invoer!$E$61*X19) ->  | AA19: =IF($G19="","",Invoer!$E$61*Y19) ->  | AB19: =IF($G19="","",Invoer!$F$61*X19) ->  | AC19: =IF($G19="","",Invoer!$F$61*Y19) ->  | AD19: =IF($G19="","",Invoer!$E$62*X19) ->  | AE19: =IF($G19="","",Invoer!$E$62*Y19) ->  | AF19: =IF($G19="","",Invoer!$F$62*X19) ->  | AG19: =IF($G19="","",Invoer!$F$62*Y19) -> 
C20: =_xlfn.CONCAT(Invoer!I13," ",Invoer!J13) -> 9 | G20: =IF(Invoer!B27="","",Invoer!B27) ->  | H20: =IF(Invoer!G27="","",Invoer!G27) ->  | I20: =IF(Invoer!H27="","",Invoer!H27) ->  | J20: =IF(Invoer!I27="","",Invoer!I27) ->  | L20: =IFERROR(Verkeersgeneratiemin(J20),"") ->  | M20: =IFERROR(Verkeersgeneratiemax(J20),"") ->  | N20: =IFERROR(parkeernormmin(J20),"") ->  | O20: =IFERROR(Parkeernormmax(J20),"") ->  | V20: =IF($G20="","",MROUND(L20*$J20*Invoer!$E$59,Invoer!$E$64)) ->  | W20: =IF($G20="","",MROUND(M20*$J20*Invoer!$E$59,Invoer!$E$64)) ->  | X20: =IF($G20="","",V20*Invoer!$E$58) ->  | Y20: =IF($G20="","",W20*Invoer!$E$58) ->  | Z20: =IF($G20="","",Invoer!$E$61*X20) ->  | AA20: =IF($G20="","",Invoer!$E$61*Y20) ->  | AB20: =IF($G20="","",Invoer!$F$61*X20) ->  | AC20: =IF($G20="","",Invoer!$F$61*Y20) ->  | AD20: =IF($G20="","",Invoer!$E$62*X20) ->  | AE20: =IF($G20="","",Invoer!$E$62*Y20) ->  | AF20: =IF($G20="","",Invoer!$F$62*X20) ->  | AG20: =IF($G20="","",Invoer!$F$62*Y20) -> 
G21: =IF(Invoer!B28="","",Invoer!B28) ->  | H21: =IF(Invoer!G28="","",Invoer!G28) ->  | I21: =IF(Invoer!H28="","",Invoer!H28) ->  | J21: =IF(Invoer!I28="","",Invoer!I28) ->  | L21: =IFERROR(Verkeersgeneratiemin(J21),"") ->  | M21: =IFERROR(Verkeersgeneratiemax(J21),"") ->  | N21: =IFERROR(parkeernormmin(J21),"") ->  | O21: =IFERROR(Parkeernormmax(J21),"") ->  | V21: =IF($G21="","",MROUND(L21*$J21*Invoer!$E$59,Invoer!$E$64)) ->  | W21: =IF($G21="","",MROUND(M21*$J21*Invoer!$E$59,Invoer!$E$64)) ->  | X21: =IF($G21="","",V21*Invoer!$E$58) ->  | Y21: =IF($G21="","",W21*Invoer!$E$58) ->  | Z21: =IF($G21="","",Invoer!$E$61*X21) ->  | AA21: =IF($G21="","",Invoer!$E$61*Y21) ->  | AB21: =IF($G21="","",Invoer!$F$61*X21) ->  | AC21: =IF($G21="","",Invoer!$F$61*Y21) ->  | AD21: =IF($G21="","",Invoer!$E$62*X21) ->  | AE21: =IF($G21="","",Invoer!$E$62*Y21) ->  | AF21: =IF($G21="","",Invoer!$F$62*X21) ->  | AG21: =IF($G21="","",Invoer!$F$62*Y21) -> 
G22: =IF(Invoer!B29="","",Invoer!B29) ->  | H22: =IF(Invoer!G29="","",Invoer!G29) ->  | I22: =IF(Invoer!H29="","",Invoer!H29) ->  | J22: =IF(Invoer!I29="","",Invoer!I29) ->  | L22: =IFERROR(Verkeersgeneratiemin(J22),"") ->  | M22: =IFERROR(Verkeersgeneratiemax(J22),"") ->  | N22: =IFERROR(parkeernormmin(J22),"") ->  | O22: =IFERROR(Parkeernormmax(J22),"") ->  | V22: =IF($G22="","",MROUND(L22*$J22*Invoer!$E$59,Invoer!$E$64)) ->  | W22: =IF($G22="","",MROUND(M22*$J22*Invoer!$E$59,Invoer!$E$64)) ->  | X22: =IF($G22="","",V22*Invoer!$E$58) ->  | Y22: =IF($G22="","",W22*Invoer!$E$58) ->  | Z22: =IF($G22="","",Invoer!$E$61*X22) ->  | AA22: =IF($G22="","",Invoer!$E$61*Y22) ->  | AB22: =IF($G22="","",Invoer!$F$61*X22) ->  | AC22: =IF($G22="","",Invoer!$F$61*Y22) ->  | AD22: =IF($G22="","",Invoer!$E$62*X22) ->  | AE22: =IF($G22="","",Invoer!$E$62*Y22) ->  | AF22: =IF($G22="","",Invoer!$F$62*X22) ->  | AG22: =IF($G22="","",Invoer!$F$62*Y22) -> 
C23: Factor gegevens | K23: Gemiddeld | L23: =IFERROR(SUMPRODUCT(J12:J22,L12:L22)/SUM(J12:J22),"") ->  | M23: =IFERROR(SUMPRODUCT($J$12:$J$22,M12:M22)/SUM($J$12:$J$22),"") ->  | N23: =IFERROR(SUMPRODUCT($J$12:$J$22,N12:N22)/SUM($J$12:$J$22),"") ->  | O23: =IFERROR(SUMPRODUCT($J$12:$J$22,O12:O22)/SUM($J$12:$J$22),"") ->  | P23: Totaal | Q23: =SUM(Q12:Q22) -> 0 | R23: =SUM(R12:R22) -> 0 | S23: 0 | T23: 0 | U23: Totaal | V23: =SUM(V12:V22) -> 0 | W23: =SUM(W12:W22) -> 0 | X23: 0 | Y23: 0 | Z23: 0 | AA23: 0 | AB23: 0 | AC23: 0 | AD23: 0 | AE23: 0 | AF23: 0 | AG23: 0
C24: Aandeel spits etmaal intensiteit | D24: =Invoer!E58 -> 0.1
C25: Omrekenfactor week-werkdag | D25: =Invoer!E59 -> 1.11 | G25: Nieuwe situatie | L25: Kencijfers | Q25: Resultaat | V25: Werkdag | Z25: Ochtendspits | AD25: Avondspits
D26: In | E26: Uit | L26: Verkeersgeneratie | N26: Parkeernorm | Q26: Verkeersgeneratie | S26: Parkeernorm | V26: Etmaalintensiteit | X26: Drukste Spitsuur | Z26: Wijk in | AB26: Wijk uit | AD26: Wijk in | AF26: Wijk uit
C27: Aandeel ochtendspits | D27: =Invoer!E61 -> 0.25 | E27: =Invoer!F61 -> 0.75 | G27: Functie | H27: Stedelijkheid | I27: Schil | J27: Aantal | L27: Min | M27: Max | N27: Min | O27: Max | Q27: Min | R27: Max | S27: Min | T27: Max | V27: Min | W27: Max | X27: Min | Y27: Max | Z27: Min | AA27: Max | AB27: Min | AC27: Max | AD27: Min | AE27: Max | AF27: Min | AG27: Max
C28: Aandeel avondspits | D28: =Invoer!E62 -> 0.7 | E28: =Invoer!F62 -> 0.3 | G28: =IF(Invoer!B39="","",Invoer!B39) -> Koop, Vrijstaand | H28: =IF(Invoer!G39="","",Invoer!G39) -> Matig | I28: =IF(Invoer!H39="","",Invoer!H39) -> Schilcentrum | J28: =IF(Invoer!I39="","",Invoer!I39) -> 20 | L28: =IFERROR(Verkeersgeneratiemin(J28),"") -> 7.6 | M28: =IFERROR(Verkeersgeneratiemax(J28),"") -> 8.4 | N28: =IFERROR(parkeernormmin(J28),"") -> 1.5 | O28: =IFERROR(Parkeernormmax(J28),"") -> 2.3 | Q28: =IF(G28="","",L28*$J28) -> 152 | R28: =IF(H28="","",M28*$J28) -> 168 | S28: =IF(I28="","",N28*$J28) -> 30 | T28: 46 | V28: =IF($G28="","",MROUND(L28*$J28*Invoer!$E$59,Invoer!$E$64)) -> 170 | W28: =IF($G28="","",MROUND(M28*$J28*Invoer!$E$59,Invoer!$E$64)) -> 185 | X28: =IF($G28="","",V28*Invoer!$E$58) -> 17 | Y28: =IF($G28="","",W28*Invoer!$E$58) -> 18.5 | Z28: =IF($G28="","",Invoer!$E$61*X28) -> 4.25 | AA28: =IF($G28="","",Invoer!$E$61*Y28) -> 4.625 | AB28: =IF($G28="","",Invoer!$F$61*X28) -> 12.75 | AC28: =IF($G28="","",Invoer!$F$61*Y28) -> 13.875 | AD28: =IF($G28="","",Invoer!$E$62*X28) -> 11.9 | AE28: =IF($G28="","",Invoer!$E$62*Y28) -> 12.95 | AF28: =IF($G28="","",Invoer!$F$62*X28) -> 5.1 | AG28: =IF($G28="","",Invoer!$F$62*Y28) -> 5.55
G29: =IF(Invoer!B40="","",Invoer!B40) -> Buurtsupermarkt | H29: =IF(Invoer!G40="","",Invoer!G40) -> Matig | I29: =IF(Invoer!H40="","",Invoer!H40) -> Schilcentrum | J29: =IF(Invoer!I40="","",Invoer!I40) -> 10 | L29: =IFERROR(Verkeersgeneratiemin(J29),"") -> 43.7 | M29: =IFERROR(Verkeersgeneratiemax(J29),"") -> 95.5 | N29: =IFERROR(parkeernormmin(J29),"") -> 1.7 | O29: =IFERROR(Parkeernormmax(J29),"") -> 3.7 | Q29: =IF(G29="","",L29*$J29) -> 437 | R29: 955 | S29: 17 | T29: 37 | V29: =IF($G29="","",MROUND(L29*$J29*Invoer!$E$59,Invoer!$E$64)) -> 485 | W29: =IF($G29="","",MROUND(M29*$J29*Invoer!$E$59,Invoer!$E$64)) -> 1060 | X29: =IF($G29="","",V29*Invoer!$E$58) -> 48.5 | Y29: =IF($G29="","",W29*Invoer!$E$58) -> 106 | Z29: =IF($G29="","",Invoer!$E$61*X29) -> 12.125 | AA29: =IF($G29="","",Invoer!$E$61*Y29) -> 26.5 | AB29: =IF($G29="","",Invoer!$F$61*X29) -> 36.375 | AC29: =IF($G29="","",Invoer!$F$61*Y29) -> 79.5 | AD29: =IF($G29="","",Invoer!$E$62*X29) -> 33.95 | AE29: =IF($G29="","",Invoer!$E$62*Y29) -> 74.2 | AF29: =IF($G29="","",Invoer!$F$62*X29) -> 14.55 | AG29: =IF($G29="","",Invoer!$F$62*Y29) -> 31.8
C30: Afronden op meervoud van | D30: =Invoer!E64 -> 5 | G30: =IF(Invoer!B41="","",Invoer!B41) ->  | H30: =IF(Invoer!G41="","",Invoer!G41) ->  | I30: =IF(Invoer!H41="","",Invoer!H41) ->  | J30: =IF(Invoer!I41="","",Invoer!I41) ->  | L30: =IFERROR(Verkeersgeneratiemin(J30),"") ->  | M30: =IFERROR(Verkeersgeneratiemax(J30),"") ->  | N30: =IFERROR(parkeernormmin(J30),"") ->  | O30: =IFERROR(Parkeernormmax(J30),"") ->  | V30: =IF($G30="","",MROUND(L30*$J30*Invoer!$E$59,Invoer!$E$64)) ->  | W30: =IF($G30="","",MROUND(M30*$J30*Invoer!$E$59,Invoer!$E$64)) ->  | X30: =IF($G30="","",V30*Invoer!$E$58) ->  | Y30: =IF($G30="","",W30*Invoer!$E$58) ->  | Z30: =IF($G30="","",Invoer!$E$61*X30) ->  | AA30: =IF($G30="","",Invoer!$E$61*Y30) ->  | AB30: =IF($G30="","",Invoer!$F$61*X30) ->  | AC30: =IF($G30="","",Invoer!$F$61*Y30) ->  | AD30: =IF($G30="","",Invoer!$E$62*X30) ->  | AE30: =IF($G30="","",Invoer!$E$62*Y30) ->  | AF30: =IF($G30="","",Invoer!$F$62*X30) ->  | AG30: =IF($G30="","",Invoer!$F$62*Y30) -> 
G31: =IF(Invoer!B42="","",Invoer!B42) ->  | H31: =IF(Invoer!G42="","",Invoer!G42) ->  | I31: =IF(Invoer!H42="","",Invoer!H42) ->  | J31: =IF(Invoer!I42="","",Invoer!I42) ->  | L31: =IFERROR(Verkeersgeneratiemin(J31),"") ->  | M31: =IFERROR(Verkeersgeneratiemax(J31),"") ->  | N31: =IFERROR(parkeernormmin(J31),"") ->  | O31: =IFERROR(Parkeernormmax(J31),"") ->  | T31: =IF(J31="","",O31*$J31) ->  | V31: =IF($G31="","",MROUND(L31*$J31*Invoer!$E$59,Invoer!$E$64)) ->  | W31: =IF($G31="","",MROUND(M31*$J31*Invoer!$E$59,Invoer!$E$64)) ->  | X31: =IF($G31="","",V31*Invoer!$E$58) ->  | Y31: =IF($G31="","",W31*Invoer!$E$58) ->  | Z31: =IF($G31="","",Invoer!$E$61*X31) ->  | AA31: =IF($G31="","",Invoer!$E$61*Y31) ->  | AB31: =IF($G31="","",Invoer!$F$61*X31) ->  | AC31: =IF($G31="","",Invoer!$F$61*Y31) ->  | AD31: =IF($G31="","",Invoer!$E$62*X31) ->  | AE31: =IF($G31="","",Invoer!$E$62*Y31) ->  | AF31: =IF($G31="","",Invoer!$F$62*X31) ->  | AG31: =IF($G31="","",Invoer!$F$62*Y31) -> 
G32: =IF(Invoer!B43="","",Invoer!B43) ->  | H32: =IF(Invoer!G43="","",Invoer!G43) ->  | I32: =IF(Invoer!H43="","",Invoer!H43) ->  | J32: =IF(Invoer!I43="","",Invoer!I43) ->  | L32: =IFERROR(Verkeersgeneratiemin(J32),"") ->  | M32: =IFERROR(Verkeersgeneratiemax(J32),"") ->  | N32: =IFERROR(parkeernormmin(J32),"") ->  | O32: =IFERROR(Parkeernormmax(J32),"") ->  | S32: =IF(I32="","",N32*$J32) ->  | T32: =IF(J32="","",O32*$J32) ->  | V32: =IF($G32="","",MROUND(L32*$J32*Invoer!$E$59,Invoer!$E$64)) ->  | W32: =IF($G32="","",MROUND(M32*$J32*Invoer!$E$59,Invoer!$E$64)) ->  | X32: =IF($G32="","",V32*Invoer!$E$58) ->  | Y32: =IF($G32="","",W32*Invoer!$E$58) ->  | Z32: =IF($G32="","",Invoer!$E$61*X32) ->  | AA32: =IF($G32="","",Invoer!$E$61*Y32) ->  | AB32: =IF($G32="","",Invoer!$F$61*X32) ->  | AC32: =IF($G32="","",Invoer!$F$61*Y32) ->  | AD32: =IF($G32="","",Invoer!$E$62*X32) ->  | AE32: =IF($G32="","",Invoer!$E$62*Y32) ->  | AF32: =IF($G32="","",Invoer!$F$62*X32) ->  | AG32: =IF($G32="","",Invoer!$F$62*Y32) -> 
G33: =IF(Invoer!B44="","",Invoer!B44) ->  | H33: =IF(Invoer!G44="","",Invoer!G44) ->  | I33: =IF(Invoer!H44="","",Invoer!H44) ->  | J33: =IF(Invoer!I44="","",Invoer!I44) ->  | L33: =IFERROR(Verkeersgeneratiemin(J33),"") ->  | M33: =IFERROR(Verkeersgeneratiemax(J33),"") ->  | N33: =IFERROR(parkeernormmin(J33),"") ->  | O33: =IFERROR(Parkeernormmax(J33),"") ->  | V33: =IF($G33="","",MROUND(L33*$J33*Invoer!$E$59,Invoer!$E$64)) ->  | W33: =IF($G33="","",MROUND(M33*$J33*Invoer!$E$59,Invoer!$E$64)) ->  | X33: =IF($G33="","",V33*Invoer!$E$58) ->  | Y33: =IF($G33="","",W33*Invoer!$E$58) ->  | Z33: =IF($G33="","",Invoer!$E$61*X33) ->  | AA33: =IF($G33="","",Invoer!$E$61*Y33) ->  | AB33: =IF($G33="","",Invoer!$F$61*X33) ->  | AC33: =IF($G33="","",Invoer!$F$61*Y33) ->  | AD33: =IF($G33="","",Invoer!$E$62*X33) ->  | AE33: =IF($G33="","",Invoer!$E$62*Y33) ->  | AF33: =IF($G33="","",Invoer!$F$62*X33) ->  | AG33: =IF($G33="","",Invoer!$F$62*Y33) -> 
G34: =IF(Invoer!B45="","",Invoer!B45) ->  | H34: =IF(Invoer!G45="","",Invoer!G45) ->  | I34: =IF(Invoer!H45="","",Invoer!H45) ->  | J34: =IF(Invoer!I45="","",Invoer!I45) ->  | L34: =IFERROR(Verkeersgeneratiemin(J34),"") ->  | M34: =IFERROR(Verkeersgeneratiemax(J34),"") ->  | N34: =IFERROR(parkeernormmin(J34),"") ->  | O34: =IFERROR(Parkeernormmax(J34),"") ->  | V34: =IF($G34="","",MROUND(L34*$J34*Invoer!$E$59,Invoer!$E$64)) ->  | W34: =IF($G34="","",MROUND(M34*$J34*Invoer!$E$59,Invoer!$E$64)) ->  | X34: =IF($G34="","",V34*Invoer!$E$58) ->  | Y34: =IF($G34="","",W34*Invoer!$E$58) ->  | Z34: =IF($G34="","",Invoer!$E$61*X34) ->  | AA34: =IF($G34="","",Invoer!$E$61*Y34) ->  | AB34: =IF($G34="","",Invoer!$F$61*X34) ->  | AC34: =IF($G34="","",Invoer!$F$61*Y34) ->  | AD34: =IF($G34="","",Invoer!$E$62*X34) ->  | AE34: =IF($G34="","",Invoer!$E$62*Y34) ->  | AF34: =IF($G34="","",Invoer!$F$62*X34) ->  | AG34: =IF($G34="","",Invoer!$F$62*Y34) -> 
G35: =IF(Invoer!B46="","",Invoer!B46) ->  | H35: =IF(Invoer!G46="","",Invoer!G46) ->  | I35: =IF(Invoer!H46="","",Invoer!H46) ->  | J35: =IF(Invoer!I46="","",Invoer!I46) ->  | L35: =IFERROR(Verkeersgeneratiemin(J35),"") ->  | M35: =IFERROR(Verkeersgeneratiemax(J35),"") ->  | N35: =IFERROR(parkeernormmin(J35),"") ->  | O35: =IFERROR(Parkeernormmax(J35),"") ->  | V35: =IF($G35="","",MROUND(L35*$J35*Invoer!$E$59,Invoer!$E$64)) ->  | W35: =IF($G35="","",MROUND(M35*$J35*Invoer!$E$59,Invoer!$E$64)) ->  | X35: =IF($G35="","",V35*Invoer!$E$58) ->  | Y35: =IF($G35="","",W35*Invoer!$E$58) ->  | Z35: =IF($G35="","",Invoer!$E$61*X35) ->  | AA35: =IF($G35="","",Invoer!$E$61*Y35) ->  | AB35: =IF($G35="","",Invoer!$F$61*X35) ->  | AC35: =IF($G35="","",Invoer!$F$61*Y35) ->  | AD35: =IF($G35="","",Invoer!$E$62*X35) ->  | AE35: =IF($G35="","",Invoer!$E$62*Y35) ->  | AF35: =IF($G35="","",Invoer!$F$62*X35) ->  | AG35: =IF($G35="","",Invoer!$F$62*Y35) -> 
G36: =IF(Invoer!B47="","",Invoer!B47) ->  | H36: =IF(Invoer!G47="","",Invoer!G47) ->  | I36: =IF(Invoer!H47="","",Invoer!H47) ->  | J36: =IF(Invoer!I47="","",Invoer!I47) ->  | L36: =IFERROR(Verkeersgeneratiemin(J36),"") ->  | M36: =IFERROR(Verkeersgeneratiemax(J36),"") ->  | N36: =IFERROR(parkeernormmin(J36),"") ->  | O36: =IFERROR(Parkeernormmax(J36),"") ->  | V36: =IF($G36="","",MROUND(L36*$J36*Invoer!$E$59,Invoer!$E$64)) ->  | W36: =IF($G36="","",MROUND(M36*$J36*Invoer!$E$59,Invoer!$E$64)) ->  | X36: =IF($G36="","",V36*Invoer!$E$58) ->  | Y36: =IF($G36="","",W36*Invoer!$E$58) ->  | Z36: =IF($G36="","",Invoer!$E$61*X36) ->  | AA36: =IF($G36="","",Invoer!$E$61*Y36) ->  | AB36: =IF($G36="","",Invoer!$F$61*X36) ->  | AC36: =IF($G36="","",Invoer!$F$61*Y36) ->  | AD36: =IF($G36="","",Invoer!$E$62*X36) ->  | AE36: =IF($G36="","",Invoer!$E$62*Y36) ->  | AF36: =IF($G36="","",Invoer!$F$62*X36) ->  | AG36: =IF($G36="","",Invoer!$F$62*Y36) -> 
G37: =IF(Invoer!B48="","",Invoer!B48) ->  | H37: =IF(Invoer!G48="","",Invoer!G48) ->  | I37: =IF(Invoer!H48="","",Invoer!H48) ->  | J37: =IF(Invoer!I48="","",Invoer!I48) ->  | L37: =IFERROR(Verkeersgeneratiemin(J37),"") ->  | M37: =IFERROR(Verkeersgeneratiemax(J37),"") ->  | N37: =IFERROR(parkeernormmin(J37),"") ->  | O37: =IFERROR(Parkeernormmax(J37),"") ->  | V37: =IF($G37="","",MROUND(L37*$J37*Invoer!$E$59,Invoer!$E$64)) ->  | W37: =IF($G37="","",MROUND(M37*$J37*Invoer!$E$59,Invoer!$E$64)) ->  | X37: =IF($G37="","",V37*Invoer!$E$58) ->  | Y37: =IF($G37="","",W37*Invoer!$E$58) ->  | Z37: =IF($G37="","",Invoer!$E$61*X37) ->  | AA37: =IF($G37="","",Invoer!$E$61*Y37) ->  | AB37: =IF($G37="","",Invoer!$F$61*X37) ->  | AC37: =IF($G37="","",Invoer!$F$61*Y37) ->  | AD37: =IF($G37="","",Invoer!$E$62*X37) ->  | AE37: =IF($G37="","",Invoer!$E$62*Y37) ->  | AF37: =IF($G37="","",Invoer!$F$62*X37) ->  | AG37: =IF($G37="","",Invoer!$F$62*Y37) -> 
G38: =IF(Invoer!B49="","",Invoer!B49) ->  | H38: =IF(Invoer!G49="","",Invoer!G49) ->  | I38: =IF(Invoer!H49="","",Invoer!H49) ->  | J38: =IF(Invoer!I49="","",Invoer!I49) ->  | L38: =IFERROR(Verkeersgeneratiemin(J38),"") ->  | M38: =IFERROR(Verkeersgeneratiemax(J38),"") ->  | N38: =IFERROR(parkeernormmin(J38),"") ->  | O38: =IFERROR(Parkeernormmax(J38),"") ->  | V38: =IF($G38="","",MROUND(L38*$J38*Invoer!$E$59,Invoer!$E$64)) ->  | W38: =IF($G38="","",MROUND(M38*$J38*Invoer!$E$59,Invoer!$E$64)) ->  | X38: =IF($G38="","",V38*Invoer!$E$58) ->  | Y38: =IF($G38="","",W38*Invoer!$E$58) ->  | Z38: =IF($G38="","",Invoer!$E$61*X38) ->  | AA38: =IF($G38="","",Invoer!$E$61*Y38) ->  | AB38: =IF($G38="","",Invoer!$F$61*X38) ->  | AC38: =IF($G38="","",Invoer!$F$61*Y38) ->  | AD38: =IF($G38="","",Invoer!$E$62*X38) ->  | AE38: =IF($G38="","",Invoer!$E$62*Y38) ->  | AF38: =IF($G38="","",Invoer!$F$62*X38) ->  | AG38: =IF($G38="","",Invoer!$F$62*Y38) -> 
K39: Gemiddeld | L39: =IFERROR(SUMPRODUCT($J$28:$J$38,L28:L38)/SUM($J$28:$J$38),"") -> 19.63333333 | M39: =IFERROR(SUMPRODUCT($J$28:$J$38,M28:M38)/SUM($J$28:$J$38),"") -> 37.43333333 | N39: =IFERROR(SUMPRODUCT($J$28:$J$38,N28:N38)/SUM($J$28:$J$38),"") -> 1.566666667 | O39: =IFERROR(SUMPRODUCT($J$28:$J$38,O28:O38)/SUM($J$28:$J$38),"") -> 2.766666667 | P39: Totaal | Q39: =SUM(Q28:Q38) -> 589 | R39: =SUM(R28:R38) -> 1123 | S39: 47 | T39: 83 | U39: Totaal | V39: =SUM(V28:V38) -> 655 | W39: =SUM(W28:W38) -> 1245 | X39: 65.5 | Y39: 124.5 | Z39: 16.375 | AA39: 31.125 | AB39: 49.125 | AC39: 93.375 | AD39: 45.85 | AE39: 87.15 | AF39: 19.65 | AG39: 37.35
G43: Verschil | H43: Verkeersgeneratie | J43: Parkeernorm | L43: Etmaalintensiteit | N43: Drukste Spitsuur
H44: Min | I44: Max | J44: Min | K44: Max | L44: Min | M44: Max | N44: Min | O44: Max
G45: Oude situatie | H45: =Q23 -> 0 | I45: =R23 -> 0 | J45: =S23 -> 0 | K45: =T23 -> 0 | L45: =V23 -> 0 | M45: =W23 -> 0 | N45: =X23 -> 0 | O45: =Y23 -> 0
G46: Nieuwe situatie | H46: =Q39 -> 589 | I46: =R39 -> 1123 | J46: =S39 -> 47 | K46: =T39 -> 83 | L46: =V39 -> 655 | M46: =W39 -> 1245 | N46: =X39 -> 65.5 | O46: =Y39 -> 124.5
G47: Absolute verschil | H47: =H46-H45 -> 589 | I47: =I46-I45 -> 1123 | J47: 47 | K47: 83 | L47: 655 | M47: 1245 | N47: 65.5 | O47: 124.5
G48: Relatieve verschil | H48: =IFERROR(H46/H45-1,"") ->  | I48: =IFERROR(I46/I45-1,"") -> 
H50: Ochtendspits | L50: Avondspits
H51: Wijk in | J51: Wijk uit | L51: Wijk in | N51: Wijk uit
H52: Min | I52: Max | J52: Min | K52: Max | L52: Min | M52: Max | N52: Min | O52: Max
G53: Oude situatie | H53: =Z23 -> 0 | I53: 0 | J53: 0 | K53: 0 | L53: 0 | M53: 0 | N53: 0 | O53: 0
G54: Nieuwe situatie | H54: =Z39 -> 16.375 | I54: 31.125 | J54: 49.125 | K54: 93.375 | L54: 45.85 | M54: 87.15 | N54: 19.65 | O54: 37.35
G55: Absolute verschil | H55: =H54-H53 -> 16.375 | I55: 31.125 | J55: 49.125 | K55: 93.375 | L55: 45.85 | M55: 87.15 | N55: 19.65 | O55: 37.35
G56: Relatieve verschil | H56: =IFERROR(H54/H53-1,"") ->  | I56: =IFERROR(I54/I53-1,"") -> 

Sheet Aanwezigheidspercentages
B1: Scroll naar rechts voor alle individuele cijfers | L1: Maatgevende periode
C2: werkdagochtend | D2: werkdagmiddag | E2: werkdagavond | F2: werkdagnacht | G2: koopavond | H2: zaterdagmiddag | I2: zaterdagavond | J2: zondagmiddag | L2: nieuwe situatie: | P2: werkochtend | Q2: werkochtend | T2: Werkdagmiddag | U2: Werkdagmiddag | X2: Werkdagavond | Y2: Werkdagavond | AB2: werkdagnacht | AC2: werkdagnacht | AF2: koopavond | AG2: koopavond | AJ2: zaterdagmiddag | AK2: zaterdagmiddag | AN2: zaterdagavond | AO2: zaterdagavond | AR2: zondagmiddag | AS2: zondagmiddag
B3: woningen bewoners | C3: 0.5 | D3: 0.5 | E3: 0.9 | F3: 1 | G3: 0.8 | H3: 0.6 | I3: 0.8 | J3: 0.7 | P3: NIEUWE SITATIE
B4: woningen bezoekers | C4: 0.1 | D4: 0.2 | E4: 0.8 | F4: 0 | G4: 0.7 | H4: 0.6 | I4: 0.8 | J4: 0.7 | L4: =INDEX(P2:AS2,1,MATCH(MAX(P18:Q18,T18:U18,X18:Y18,AB18:AC18,AF18:AG18,AJ18:AK18,AN18:AO18,AR18:AS18),P18:AS18,0)) -> koopavond | P4: werkochtend | T4: Werkdagmiddag | X4: Werkdagavond | AB4: werkdagnacht | AF4: koopavond | AJ4: zaterdagmiddag | AN4: zaterdagavond | AR4: zondagmiddag
B5: kantoor/bedrijven | C5: 1 | D5: 1 | E5: 0.05 | F5: 0 | G5: 0.05 | H5: 0 | I5: 0 | J5: 0 | L5: Parkeernorm | P5: Parkeernorm | T5: Parkeernorm | X5: Parkeernorm | AB5: Parkeernorm | AF5: Parkeernorm | AJ5: Parkeernorm | AN5: Parkeernorm | AR5: Parkeernorm
B6: commerciële dienstverlening | C6: 1 | D6: 1 | E6: 0.05 | F6: 0 | G6: 0.75 | H6: 0 | I6: 0 | J6: 0 | L6: Min | M6: Max | P6: Min | Q6: Max | T6: Min | U6: Max | X6: Min | Y6: Max | AB6: Min | AC6: Max | AF6: Min | AG6: Max | AJ6: Min | AK6: Max | AN6: Min | AO6: Max | AR6: Min | AS6: Max
B7: detailhandel | C7: 0.3 | D7: 0.6 | E7: 0.1 | F7: 0 | G7: 0.75 | H7: 1 | I7: 0 | J7: 0 | L7: =IF($L$4=$P$4,P7,IF($L$4=$T$4,T7,IF($L$4=$X$4,X7,IF($L$4=$AB$4,AB7,IF($L$4=$AF$4,AF7,IF($L$4=$AJ$4,AJ7,IF($L$4=$AN$4,AN7,IF($L$4=$AR$4,AR7,"")))))))) -> 23.4 | M7: =IF($L$4=$P$4,Q7,IF($L$4=$T$4,U7,IF($L$4=$X$4,Y7,IF($L$4=$AB$4,AC7,IF($L$4=$AF$4,AG7,IF($L$4=$AJ$4,AK7,IF($L$4=$AN$4,AO7,IF($L$4=$AR$4,AS7,"")))))))) -> 36.2 | P7: =IFERROR(IF(INDEX(Dropdownmenu!$H$3:$H$117,MATCH(Overzichtsberekening!$G28,Dropdownmenu!$A$3:$A$117,0))<>"woningen bewoners",Overzichtsberekening!S28*INDEX($C$3:$C$18,MATCH(INDEX(Dropdownmenu!$H$3:$H$117,MATCH(Overzichtsberekening!$G28,Dropdownmenu!$A$3:$A$117,0)),$B$3:$B$18,0)),(Overzichtsberekening!S28-INDEX(Dropdownmenu!$I$3:$I$16,MATCH(Overzichtsberekening!$G28,Dropdownmenu!$A$3:$A$16,0))*Overzichtsberekening!$J28)*$C$3+INDEX(Dropdownmenu!$I$3:$I$16,MATCH(Overzichtsberekening!$G28,Dropdownmenu!$A$3:$A$16,0))*Overzichtsberekening!$J28*$C$4),"") -> 12.6 | Q7: =IFERROR(IF(INDEX(Dropdownmenu!$H$3:$H$117,MATCH(Overzichtsberekening!$G28,Dropdownmenu!$A$3:$A$117,0))<>"woningen bewoners",Overzichtsberekening!T28*INDEX($C$3:$C$18,MATCH(INDEX(Dropdownmenu!$H$3:$H$117,MATCH(Overzichtsberekening!$G28,Dropdownmenu!$A$3:$A$117,0)),$B$3:$B$18,0)),(Overzichtsberekening!T28-INDEX(Dropdownmenu!$I$3:$I$16,MATCH(Overzichtsberekening!$G28,Dropdownmenu!$A$3:$A$16,0))*Overzichtsberekening!$J28)*$C$3+INDEX(Dropdownmenu!$I$3:$I$16,MATCH(Overzichtsberekening!$G28,Dropdownmenu!$A$3:$A$16,0))*Overzichtsberekening!$J28*$C$4),"") -> 20.6 | T7: =IFERROR(IF(INDEX(Dropdownmenu!$H$3:$H$117,MATCH(Overzichtsberekening!$G28,Dropdownmenu!$A$3:$A$117,0))<>"woningen bewoners",Overzichtsberekening!S28*INDEX($D$3:$D$18,MATCH(INDEX(Dropdownmenu!$H$3:$H$117,MATCH(Overzichtsberekening!$G28,Dropdownmenu!$A$3:$A$117,0)),$B$3:$B$18,0)),(Overzichtsberekening!S28-INDEX(Dropdownmenu!$I$3:$I$16,MATCH(Overzichtsberekening!$G28,Dropdownmenu!$A$3:$A$16,0))*Overzichtsberekening!$J28)*$D$3+INDEX(Dropdownmenu!$I$3:$I$16,MATCH(Overzichtsberekening!$G28,Dropdownmenu!$A$3:$A$16,0))*Overzichtsberekening!$J28*$D$4),"") -> 13.2 | U7: =IFERROR(IF(INDEX(Dropdownmenu!$H$3:$H$117,MATCH(Overzichtsberekening!$G28,Dropdownmenu!$A$3:$A$117,0))<>"woningen bewoners",Overzichtsberekening!T28*INDEX($D$3:$D$18,MATCH(INDEX(Dropdownmenu!$H$3:$H$117,MATCH(Overzichtsberekening!$G28,Dropdownmenu!$A$3:$A$117,0)),$B$3:$B$18,0)),(Overzichtsberekening!T28-INDEX(Dropdownmenu!$I$3:$I$16,MATCH(Overzichtsberekening!$G28,Dropdownmenu!$A$3:$A$16,0))*Overzichtsberekening!$J28)*$D$3+INDEX(Dropdownmenu!$I$3:$I$16,MATCH(Overzichtsberekening!$G28,Dropdownmenu!$A$3:$A$16,0))*Overzichtsberekening!$J28*$D$4),"") -> 21.2 | X7: =IFERROR(IF(INDEX(Dropdownmenu!$H$3:$H$117,MATCH(Overzichtsberekening!$G28,Dropdownmenu!$A$3:$A$117,0))<>"woningen bewoners",Overzichtsberekening!S28*INDEX($E$3:$E$18,MATCH(INDEX(Dropdownmenu!$H$3:$H$117,MATCH(Overzichtsberekening!$G28,Dropdownmenu!$A$3:$A$117,0)),$B$3:$B$18,0)),(Overzichtsberekening!S28-INDEX(Dropdownmenu!$I$3:$I$16,MATCH(Overzichtsberekening!$G28,Dropdownmenu!$A$3:$A$16,0))*Overzichtsberekening!$J28)*$E$3+INDEX(Dropdownmenu!$I$3:$I$16,MATCH(Overzichtsberekening!$G28,Dropdownmenu!$A$3:$A$16,0))*Overzichtsberekening!$J28*$E$4),"") -> 26.4 | Y7: =IFERROR(IF(INDEX(Dropdownmenu!$H$3:$H$117,MATCH(Overzichtsberekening!$G28,Dropdownmenu!$A$3:$A$117,0))<>"woningen bewoners",Overzichtsberekening!T28*INDEX($E$3:$E$18,MATCH(INDEX(Dropdownmenu!$H$3:$H$117,MATCH(Overzichtsberekening!$G28,Dropdownmenu!$A$3:$A$117,0)),$B$3:$B$18,0)),(Overzichtsberekening!T28-INDEX(Dropdownmenu!$I$3:$I$16,MATCH(Overzichtsberekening!$G28,Dropdownmenu!$A$3:$A$16,0))*Overzichtsberekening!$J28)*$E$3+INDEX(Dropdownmenu!$I$3:$I$16,MATCH(Overzichtsberekening!$G28,Dropdownmenu!$A$3:$A$16,0))*Overzichtsberekening!$J28*$E$4),"") -> 40.8 | AB7: =IFERROR(IF(INDEX(Dropdownmenu!$H$3:$H$117,MATCH(Overzichtsberekening!$G28,Dropdownmenu!$A$3:$A$117,0))<>"woningen bewoners",Overzichtsberekening!S28*INDEX($F$3:$F$18,MATCH(INDEX(Dropdownmenu!$H$3:$H$117,MATCH(Overzichtsberekening!$G28,Dropdownmenu!$A$3:$A$117,0)),$B$3:$B$18,0)),(Overzichtsberekening!S28-INDEX(Dropdownmenu!$I$3:$I$16,MATCH(Overzichtsberekening!$G28,Dropdownmenu!$A$3:$A$16,0))*Overzichtsberekening!$J28)*$F$3+INDEX(Dropdownmenu!$I$3:$I$16,MATCH(Overzichtsberekening!$G28,Dropdownmenu!$A$3:$A$16,0))*Overzichtsberekening!$J28*$F$4),"") -> 24 | AC7: =IFERROR(IF(INDEX(Dropdownmenu!$H$3:$H$117,MATCH(Overzichtsberekening!$G28,Dropdownmenu!$A$3:$A$117,0))<>"woningen bewoners",Overzichtsberekening!T28*INDEX($F$3:$F$18,MATCH(INDEX(Dropdownmenu!$H$3:$H$117,MATCH(Overzichtsberekening!$G28,Dropdownmenu!$A$3:$A$117,0)),$B$3:$B$18,0)),(Overzichtsberekening!T28-INDEX(Dropdownmenu!$I$3:$I$16,MATCH(Overzichtsberekening!$G28,Dropdownmenu!$A$3:$A$16,0))*Overzichtsberekening!$J28)*$F$3+INDEX(Dropdownmenu!$I$3:$I$16,MATCH(Overzichtsberekening!$G28,Dropdownmenu!$A$3:$A$16,0))*Overzichtsberekening!$J28*$F$4),"") -> 40 | AF7: =IFERROR(IF(INDEX(Dropdownmenu!$H$3:$H$117,MATCH(Overzichtsberekening!$G28,Dropdownmenu!$A$3:$A$117,0))<>"woningen bewoners",Overzichtsberekening!S28*INDEX($G$3:$G$18,MATCH(INDEX(Dropdownmenu!$H$3:$H$117,MATCH(Overzichtsberekening!$G28,Dropdownmenu!$A$3:$A$117,0)),$B$3:$B$18,0)),(Overzichtsberekening!S28-INDEX(Dropdownmenu!$I$3:$I$16,MATCH(Overzichtsberekening!$G28,Dropdownmenu!$A$3:$A$16,0))*Overzichtsberekening!$J28)*$G$3+INDEX(Dropdownmenu!$I$3:$I$16,MATCH(Overzichtsberekening!$G28,Dropdownmenu!$A$3:$A$16,0))*Overzichtsberekening!$J28*$G$4),"") -> 23.4 | AG7: =IFERROR(IF(INDEX(Dropdownmenu!$H$3:$H$117,MATCH(Overzichtsberekening!$G28,Dropdownmenu!$A$3:$A$117,0))<>"woningen bewoners",Overzichtsberekening!T28*INDEX($G$3:$G$18,MATCH(INDEX(Dropdownmenu!$H$3:$H$117,MATCH(Overzichtsberekening!$G28,Dropdownmenu!$A$3:$A$117,0)),$B$3:$B$18,0)),(Overzichtsberekening!T28-INDEX(Dropdownmenu!$I$3:$I$16,MATCH(Overzichtsberekening!$G28,Dropdownmenu!$A$3:$A$16,0))*Overzichtsberekening!$J28)*$G$3+INDEX(Dropdownmenu!$I$3:$I$16,MATCH(Overzichtsberekening!$G28,Dropdownmenu!$A$3:$A$16,0))*Overzichtsberekening!$J28*$G$4),"") -> 36.2 | AJ7: =IFERROR(IF(INDEX(Dropdownmenu!$H$3:$H$117,MATCH(Overzichtsberekening!$G28,Dropdownmenu!$A$3:$A$117,0))<>"woningen bewoners",Overzichtsberekening!S28*INDEX($H$3:$H$18,MATCH(INDEX(Dropdownmenu!$H$3:$H$117,MATCH(Overzichtsberekening!$G28,Dropdownmenu!$A$3:$A$117,0)),$B$3:$B$18,0)),(Overzichtsberekening!S28-INDEX(Dropdownmenu!$I$3:$I$16,MATCH(Overzichtsberekening!$G28,Dropdownmenu!$A$3:$A$16,0))*Overzichtsberekening!$J28)*$H$3+INDEX(Dropdownmenu!$I$3:$I$16,MATCH(Overzichtsberekening!$G28,Dropdownmenu!$A$3:$A$16,0))*Overzichtsberekening!$J28*$H$4),"") -> 18 | AK7: =IFERROR(IF(INDEX(Dropdownmenu!$H$3:$H$117,MATCH(Overzichtsberekening!$G28,Dropdownmenu!$A$3:$A$117,0))<>"woningen bewoners",Overzichtsberekening!T28*INDEX($H$3:$H$18,MATCH(INDEX(Dropdownmenu!$H$3:$H$117,MATCH(Overzichtsberekening!$G28,Dropdownmenu!$A$3:$A$117,0)),$B$3:$B$18,0)),(Overzichtsberekening!T28-INDEX(Dropdownmenu!$I$3:$I$16,MATCH(Overzichtsberekening!$G28,Dropdownmenu!$A$3:$A$16,0))*Overzichtsberekening!$J28)*$H$3+INDEX(Dropdownmenu!$I$3:$I$16,MATCH(Overzichtsberekening!$G28,Dropdownmenu!$A$3:$A$16,0))*Overzichtsberekening!$J28*$H$4),"") -> 27.6 | AN7: =IFERROR(IF(INDEX(Dropdownmenu!$H$3:$H$117,MATCH(Overzichtsberekening!$G28,Dropdownmenu!$A$3:$A$117,0))<>"woningen bewoners",Overzichtsberekening!S28*INDEX($I$3:$I$18,MATCH(INDEX(Dropdownmenu!$H$3:$H$117,MATCH(Overzichtsberekening!$G28,Dropdownmenu!$A$3:$A$117,0)),$B$3:$B$18,0)),(Overzichtsberekening!S28-INDEX(Dropdownmenu!$I$3:$I$16,MATCH(Overzichtsberekening!$G28,Dropdownmenu!$A$3:$A$16,0))*Overzichtsberekening!$J28)*$I$3+INDEX(Dropdownmenu!$I$3:$I$16,MATCH(Overzichtsberekening!$G28,Dropdownmenu!$A$3:$A$16,0))*Overzichtsberekening!$J28*$I$4),"") -> 24 | AO7: =IFERROR(IF(INDEX(Dropdownmenu!$H$3:$H$117,MATCH(Overzichtsberekening!$G28,Dropdownmenu!$A$3:$A$117,0))<>"woningen bewoners",Overzichtsberekening!T28*INDEX($I$3:$I$18,MATCH(INDEX(Dropdownmenu!$H$3:$H$117,MATCH(Overzichtsberekening!$G28,Dropdownmenu!$A$3:$A$117,0)),$B$3:$B$18,0)),(Overzichtsberekening!T28-INDEX(Dropdownmenu!$I$3:$I$16,MATCH(Overzichtsberekening!$G28,Dropdownmenu!$A$3:$A$16,0))*Overzichtsberekening!$J28)*$I$3+INDEX(Dropdownmenu!$I$3:$I$16,MATCH(Overzichtsberekening!$G28,Dropdownmenu!$A$3:$A$16,0))*Overzichtsberekening!$J28*$I$4),"") -> 36.8 | AR7: =IFERROR(IF(INDEX(Dropdownmenu!$H$3:$H$117,MATCH(Overzichtsberekening!$G28,Dropdownmenu!$A$3:$A$117,0))<>"woningen bewoners",Overzichtsberekening!S28*INDEX($J$3:$J$18,MATCH(INDEX(Dropdownmenu!$H$3:$H$117,MATCH(Overzichtsberekening!$G28,Dropdownmenu!$A$3:$A$117,0)),$B$3:$B$18,0)),(Overzichtsberekening!S28-INDEX(Dropdownmenu!$I$3:$I$16,MATCH(Overzichtsberekening!$G28,Dropdownmenu!$A$3:$A$16,0))*Overzichtsberekening!$J28)*$J$3+INDEX(Dropdownmenu!$I$3:$I$16,MATCH(Overzichtsberekening!$G28,Dropdownmenu!$A$3:$A$16,0))*Overzichtsberekening!$J28*$J$4),"") -> 21 | AS7: =IFERROR(IF(INDEX(Dropdownmenu!$H$3:$H$117,MATCH(Overzichtsberekening!$G28,Dropdownmenu!$A$3:$A$117,0))<>"woningen bewoners",Overzichtsberekening!T28*INDEX($J$3:$J$18,MATCH(INDEX(Dropdownmenu!$H$3:$H$117,MATCH(Overzichtsberekening!$G28,Dropdownmenu!$A$3:$A$117,0)),$B$3:$B$18,0)),(Overzichtsberekening!T28-INDEX(Dropdownmenu!$I$3:$I$16,MATCH(Overzichtsberekening!$G28,Dropdownmenu!$A$3:$A$16,0))*Overzichtsberekening!$J28)*$J$3+INDEX(Dropdownmenu!$I$3:$I$16,MATCH(Overzichtsberekening!$G28,Dropdownmenu!$A$3:$A$16,0))*Overzichtsberekening!$J28*$J$4),"") -> 32.2
B8: grootschalige detailhandel | C8: 0.3 | D8: 0.6 | E8: 0.7 | F8: 0 | G8: 0.8 | H8: 1 | I8: 0 | J8: 0 | L8: 13.6 | M8: 29.6 | P8: =IFERROR(IF(INDEX(Dropdownmenu!$H$3:$H$117,MATCH(Overzichtsberekening!$G29,Dropdownmenu!$A$3:$A$117,0))<>"woningen bewoners",Overzichtsberekening!S29*INDEX($C$3:$C$18,MATCH(INDEX(Dropdownmenu!$H$3:$H$117,MATCH(Overzichtsberekening!$G29,Dropdownmenu!$A$3:$A$117,0)),$B$3:$B$18,0)),(Overzichtsberekening!S29-INDEX(Dropdownmenu!$I$3:$I$16,MATCH(Overzichtsberekening!$G29,Dropdownmenu!$A$3:$A$16,0))*Overzichtsberekening!$J29)*$C$3+INDEX(Dropdownmenu!$I$3:$I$16,MATCH(Overzichtsberekening!$G29,Dropdownmenu!$A$3:$A$16,0))*Overzichtsberekening!$J29*$C$4),"") -> 5.1 | Q8: =IFERROR(IF(INDEX(Dropdownmenu!$H$3:$H$117,MATCH(Overzichtsberekening!$G29,Dropdownmenu!$A$3:$A$117,0))<>"woningen bewoners",Overzichtsberekening!T29*INDEX($C$3:$C$18,MATCH(INDEX(Dropdownmenu!$H$3:$H$117,MATCH(Overzichtsberekening!$G29,Dropdownmenu!$A$3:$A$117,0)),$B$3:$B$18,0)),(Overzichtsberekening!T29-INDEX(Dropdownmenu!$I$3:$I$16,MATCH(Overzichtsberekening!$G29,Dropdownmenu!$A$3:$A$16,0))*Overzichtsberekening!$J29)*$C$3+INDEX(Dropdownmenu!$I$3:$I$16,MATCH(Overzichtsberekening!$G29,Dropdownmenu!$A$3:$A$16,0))*Overzichtsberekening!$J29*$C$4),"") -> 11.1 | T8: =IFERROR(IF(INDEX(Dropdownmenu!$H$3:$H$117,MATCH(Overzichtsberekening!$G29,Dropdownmenu!$A$3:$A$117,0))<>"woningen bewoners",Overzichtsberekening!S29*INDEX($D$3:$D$18,MATCH(INDEX(Dropdownmenu!$H$3:$H$117,MATCH(Overzichtsberekening!$G29,Dropdownmenu!$A$3:$A$117,0)),$B$3:$B$18,0)),(Overzichtsberekening!S29-INDEX(Dropdownmenu!$I$3:$I$16,MATCH(Overzichtsberekening!$G29,Dropdownmenu!$A$3:$A$16,0))*Overzichtsberekening!$J29)*$D$3+INDEX(Dropdownmenu!$I$3:$I$16,MATCH(Overzichtsberekening!$G29,Dropdownmenu!$A$3:$A$16,0))*Overzichtsberekening!$J29*$D$4),"") -> 10.2 | U8: =IFERROR(IF(INDEX(Dropdownmenu!$H$3:$H$117,MATCH(Overzichtsberekening!$G29,Dropdownmenu!$A$3:$A$117,0))<>"woningen bewoners",Overzichtsberekening!T29*INDEX($D$3:$D$18,MATCH(INDEX(Dropdownmenu!$H$3:$H$117,MATCH(Overzichtsberekening!$G29,Dropdownmenu!$A$3:$A$117,0)),$B$3:$B$18,0)),(Overzichtsberekening!T29-INDEX(Dropdownmenu!$I$3:$I$16,MATCH(Overzichtsberekening!$G29,Dropdownmenu!$A$3:$A$16,0))*Overzichtsberekening!$J29)*$D$3+INDEX(Dropdownmenu!$I$3:$I$16,MATCH(Overzichtsberekening!$G29,Dropdownmenu!$A$3:$A$16,0))*Overzichtsberekening!$J29*$D$4),"") -> 22.2 | X8: =IFERROR(IF(INDEX(Dropdownmenu!$H$3:$H$117,MATCH(Overzichtsberekening!$G29,Dropdownmenu!$A$3:$A$117,0))<>"woningen bewoners",Overzichtsberekening!S29*INDEX($E$3:$E$18,MATCH(INDEX(Dropdownmenu!$H$3:$H$117,MATCH(Overzichtsberekening!$G29,Dropdownmenu!$A$3:$A$117,0)),$B$3:$B$18,0)),(Overzichtsberekening!S29-INDEX(Dropdownmenu!$I$3:$I$16,MATCH(Overzichtsberekening!$G29,Dropdownmenu!$A$3:$A$16,0))*Overzichtsberekening!$J29)*$E$3+INDEX(Dropdownmenu!$I$3:$I$16,MATCH(Overzichtsberekening!$G29,Dropdownmenu!$A$3:$A$16,0))*Overzichtsberekening!$J29*$E$4),"") -> 6.8 | Y8: =IFERROR(IF(INDEX(Dropdownmenu!$H$3:$H$117,MATCH(Overzichtsberekening!$G29,Dropdownmenu!$A$3:$A$117,0))<>"woningen bewoners",Overzichtsberekening!T29*INDEX($E$3:$E$18,MATCH(INDEX(Dropdownmenu!$H$3:$H$117,MATCH(Overzichtsberekening!$G29,Dropdownmenu!$A$3:$A$117,0)),$B$3:$B$18,0)),(Overzichtsberekening!T29-INDEX(Dropdownmenu!$I$3:$I$16,MATCH(Overzichtsberekening!$G29,Dropdownmenu!$A$3:$A$16,0))*Overzichtsberekening!$J29)*$E$3+INDEX(Dropdownmenu!$I$3:$I$16,MATCH(Overzichtsberekening!$G29,Dropdownmenu!$A$3:$A$16,0))*Overzichtsberekening!$J29*$E$4),"") -> 14.8 | AB8: =IFERROR(IF(INDEX(Dropdownmenu!$H$3:$H$117,MATCH(Overzichtsberekening!$G29,Dropdownmenu!$A$3:$A$117,0))<>"woningen bewoners",Overzichtsberekening!S29*INDEX($F$3:$F$18,MATCH(INDEX(Dropdownmenu!$H$3:$H$117,MATCH(Overzichtsberekening!$G29,Dropdownmenu!$A$3:$A$117,0)),$B$3:$B$18,0)),(Overzichtsberekening!S29-INDEX(Dropdownmenu!$I$3:$I$16,MATCH(Overzichtsberekening!$G29,Dropdownmenu!$A$3:$A$16,0))*Overzichtsberekening!$J29)*$F$3+INDEX(Dropdownmenu!$I$3:$I$16,MATCH(Overzichtsberekening!$G29,Dropdownmenu!$A$3:$A$16,0))*Overzichtsberekening!$J29*$F$4),"") -> 0 | AC8: =IFERROR(IF(INDEX(Dropdownmenu!$H$3:$H$117,MATCH(Overzichtsberekening!$G29,Dropdownmenu!$A$3:$A$117,0))<>"woningen bewoners",Overzichtsberekening!T29*INDEX($F$3:$F$18,MATCH(INDEX(Dropdownmenu!$H$3:$H$117,MATCH(Overzichtsberekening!$G29,Dropdownmenu!$A$3:$A$117,0)),$B$3:$B$18,0)),(Overzichtsberekening!T29-INDEX(Dropdownmenu!$I$3:$I$16,MATCH(Overzichtsberekening!$G29,Dropdownmenu!$A$3:$A$16,0))*Overzichtsberekening!$J29)*$F$3+INDEX(Dropdownmenu!$I$3:$I$16,MATCH(Overzichtsberekening!$G29,Dropdownmenu!$A$3:$A$16,0))*Overzichtsberekening!$J29*$F$4),"") -> 0 | AF8: =IFERROR(IF(INDEX(Dropdownmenu!$H$3:$H$117,MATCH(Overzichtsberekening!$G29,Dropdownmenu!$A$3:$A$117,0))<>"woningen bewoners",Overzichtsberekening!S29*INDEX($G$3:$G$18,MATCH(INDEX(Dropdownmenu!$H$3:$H$117,MATCH(Overzichtsberekening!$G29,Dropdownmenu!$A$3:$A$117,0)),$B$3:$B$18,0)),(Overzichtsberekening!S29-INDEX(Dropdownmenu!$I$3:$I$16,MATCH(Overzichtsberekening!$G29,Dropdownmenu!$A$3:$A$16,0))*Overzichtsberekening!$J29)*$G$3+INDEX(Dropdownmenu!$I$3:$I$16,MATCH(Overzichtsberekening!$G29,Dropdownmenu!$A$3:$A$16,0))*Overzichtsberekening!$J29*$G$4),"") -> 13.6 | AG8: =IFERROR(IF(INDEX(Dropdownmenu!$H$3:$H$117,MATCH(Overzichtsberekening!$G29,Dropdownmenu!$A$3:$A$117,0))<>"woningen bewoners",Overzichtsberekening!T29*INDEX($G$3:$G$18,MATCH(INDEX(Dropdownmenu!$H$3:$H$117,MATCH(Overzichtsberekening!$G29,Dropdownmenu!$A$3:$A$117,0)),$B$3:$B$18,0)),(Overzichtsberekening!T29-INDEX(Dropdownmenu!$I$3:$I$16,MATCH(Overzichtsberekening!$G29,Dropdownmenu!$A$3:$A$16,0))*Overzichtsberekening!$J29)*$G$3+INDEX(Dropdownmenu!$I$3:$I$16,MATCH(Overzichtsberekening!$G29,Dropdownmenu!$A$3:$A$16,0))*Overzichtsberekening!$J29*$G$4),"") -> 29.6 | AJ8: =IFERROR(IF(INDEX(Dropdownmenu!$H$3:$H$117,MATCH(Overzichtsberekening!$G29,Dropdownmenu!$A$3:$A$117,0))<>"woningen bewoners",Overzichtsberekening!S29*INDEX($H$3:$H$18,MATCH(INDEX(Dropdownmenu!$H$3:$H$117,MATCH(Overzichtsberekening!$G29,Dropdownmenu!$A$3:$A$117,0)),$B$3:$B$18,0)),(Overzichtsberekening!S29-INDEX(Dropdownmenu!$I$3:$I$16,MATCH(Overzichtsberekening!$G29,Dropdownmenu!$A$3:$A$16,0))*Overzichtsberekening!$J29)*$H$3+INDEX(Dropdownmenu!$I$3:$I$16,MATCH(Overzichtsberekening!$G29,Dropdownmenu!$A$3:$A$16,0))*Overzichtsberekening!$J29*$H$4),"") -> 17 | AK8: =IFERROR(IF(INDEX(Dropdownmenu!$H$3:$H$117,MATCH(Overzichtsberekening!$G29,Dropdownmenu!$A$3:$A$117,0))<>"woningen bewoners",Overzichtsberekening!T29*INDEX($H$3:$H$18,MATCH(INDEX(Dropdownmenu!$H$3:$H$117,MATCH(Overzichtsberekening!$G29,Dropdownmenu!$A$3:$A$117,0)),$B$3:$B$18,0)),(Overzichtsberekening!T29-INDEX(Dropdownmenu!$I$3:$I$16,MATCH(Overzichtsberekening!$G29,Dropdownmenu!$A$3:$A$16,0))*Overzichtsberekening!$J29)*$H$3+INDEX(Dropdownmenu!$I$3:$I$16,MATCH(Overzichtsberekening!$G29,Dropdownmenu!$A$3:$A$16,0))*Overzichtsberekening!$J29*$H$4),"") -> 37 | AN8: =IFERROR(IF(INDEX(Dropdownmenu!$H$3:$H$117,MATCH(Overzichtsberekening!$G29,Dropdownmenu!$A$3:$A$117,0))<>"woningen bewoners",Overzichtsberekening!S29*INDEX($I$3:$I$18,MATCH(INDEX(Dropdownmenu!$H$3:$H$117,MATCH(Overzichtsberekening!$G29,Dropdownmenu!$A$3:$A$117,0)),$B$3:$B$18,0)),(Overzichtsberekening!S29-INDEX(Dropdownmenu!$I$3:$I$16,MATCH(Overzichtsberekening!$G29,Dropdownmenu!$A$3:$A$16,0))*Overzichtsberekening!$J29)*$I$3+INDEX(Dropdownmenu!$I$3:$I$16,MATCH(Overzichtsberekening!$G29,Dropdownmenu!$A$3:$A$16,0))*Overzichtsberekening!$J29*$I$4),"") -> 6.8 | AO8: =IFERROR(IF(INDEX(Dropdownmenu!$H$3:$H$117,MATCH(Overzichtsberekening!$G29,Dropdownmenu!$A$3:$A$117,0))<>"woningen bewoners",Overzichtsberekening!T29*INDEX($I$3:$I$18,MATCH(INDEX(Dropdownmenu!$H$3:$H$117,MATCH(Overzichtsberekening!$G29,Dropdownmenu!$A$3:$A$117,0)),$B$3:$B$18,0)),(Overzichtsberekening!T29-INDEX(Dropdownmenu!$I$3:$I$16,MATCH(Overzichtsberekening!$G29,Dropdownmenu!$A$3:$A$16,0))*Overzichtsberekening!$J29)*$I$3+INDEX(Dropdownmenu!$I$3:$I$16,MATCH(Overzichtsberekening!$G29,Dropdownmenu!$A$3:$A$16,0))*Overzichtsberekening!$J29*$I$4),"") -> 14.8 | AR8: =IFERROR(IF(INDEX(Dropdownmenu!$H$3:$H$117,MATCH(Overzichtsberekening!$G29,Dropdownmenu!$A$3:$A$117,0))<>"woningen bewoners",Overzichtsberekening!S29*INDEX($J$3:$J$18,MATCH(INDEX(Dropdownmenu!$H$3:$H$117,MATCH(Overzichtsberekening!$G29,Dropdownmenu!$A$3:$A$117,0)),$B$3:$B$18,0)),(Overzichtsberekening!S29-INDEX(Dropdownmenu!$I$3:$I$16,MATCH(Overzichtsberekening!$G29,Dropdownmenu!$A$3:$A$16,0))*Overzichtsberekening!$J29)*$J$3+INDEX(Dropdownmenu!$I$3:$I$16,MATCH(Overzichtsberekening!$G29,Dropdownmenu!$A$3:$A$16,0))*Overzichtsberekening!$J29*$J$4),"") -> 0 | AS8: =IFERROR(IF(INDEX(Dropdownmenu!$H$3:$H$117,MATCH(Overzichtsberekening!$G29,Dropdownmenu!$A$3:$A$117,0))<>"woningen bewoners",Overzichtsberekening!T29*INDEX($J$3:$J$18,MATCH(INDEX(Dropdownmenu!$H$3:$H$117,MATCH(Overzichtsberekening!$G29,Dropdownmenu!$A$3:$A$117,0)),$B$3:$B$18,0)),(Overzichtsberekening!T29-INDEX(Dropdownmenu!$I$3:$I$16,MATCH(Overzichtsberekening!$G29,Dropdownmenu!$A$3:$A$16,0))*Overzichtsberekening!$J29)*$J$3+INDEX(Dropdownmenu!$I$3:$I$16,MATCH(Overzichtsberekening!$G29,Dropdownmenu!$A$3:$A$16,0))*Overzichtsberekening!$J29*$J$4),"") -> 0
B9: supermarkt | C9: 0.3 | D9: 0.6 | E9: 0.4 | F9: 0 | G9: 0.8 | H9: 1 | I9: 0.4 | J9: 0 | P9: =IFERROR(IF(INDEX(Dropdownmenu!$H$3:$H$117,MATCH(Overzichtsberekening!$G30,Dropdownmenu!$A$3:$A$117,0))<>"woningen bewoners",Overzichtsberekening!S30*INDEX($C$3:$C$18,MATCH(INDEX(Dropdownmenu!$H$3:$H$117,MATCH(Overzichtsberekening!$G30,Dropdownmenu!$A$3:$A$117,0)),$B$3:$B$18,0)),(Overzichtsberekening!S30-INDEX(Dropdownmenu!$I$3:$I$16,MATCH(Overzichtsberekening!$G30,Dropdownmenu!$A$3:$A$16,0))*Overzichtsberekening!$J30)*$C$3+INDEX(Dropdownmenu!$I$3:$I$16,MATCH(Overzichtsberekening!$G30,Dropdownmenu!$A$3:$A$16,0))*Overzichtsberekening!$J30*$C$4),"") ->  | Q9: =IFERROR(IF(INDEX(Dropdownmenu!$H$3:$H$117,MATCH(Overzichtsberekening!$G30,Dropdownmenu!$A$3:$A$117,0))<>"woningen bewoners",Overzichtsberekening!T30*INDEX($C$3:$C$18,MATCH(INDEX(Dropdownmenu!$H$3:$H$117,MATCH(Overzichtsberekening!$G30,Dropdownmenu!$A$3:$A$117,0)),$B$3:$B$18,0)),(Overzichtsberekening!T30-INDEX(Dropdownmenu!$I$3:$I$16,MATCH(Overzichtsberekening!$G30,Dropdownmenu!$A$3:$A$16,0))*Overzichtsberekening!$J30)*$C$3+INDEX(Dropdownmenu!$I$3:$I$16,MATCH(Overzichtsberekening!$G30,Dropdownmenu!$A$3:$A$16,0))*Overzichtsberekening!$J30*$C$4),"") ->  | T9: =IFERROR(IF(INDEX(Dropdownmenu!$H$3:$H$117,MATCH(Overzichtsberekening!$G30,Dropdownmenu!$A$3:$A$117,0))<>"woningen bewoners",Overzichtsberekening!S30*INDEX($D$3:$D$18,MATCH(INDEX(Dropdownmenu!$H$3:$H$117,MATCH(Overzichtsberekening!$G30,Dropdownmenu!$A$3:$A$117,0)),$B$3:$B$18,0)),(Overzichtsberekening!S30-INDEX(Dropdownmenu!$I$3:$I$16,MATCH(Overzichtsberekening!$G30,Dropdownmenu!$A$3:$A$16,0))*Overzichtsberekening!$J30)*$D$3+INDEX(Dropdownmenu!$I$3:$I$16,MATCH(Overzichtsberekening!$G30,Dropdownmenu!$A$3:$A$16,0))*Overzichtsberekening!$J30*$D$4),"") ->  | U9: =IFERROR(IF(INDEX(Dropdownmenu!$H$3:$H$117,MATCH(Overzichtsberekening!$G30,Dropdownmenu!$A$3:$A$117,0))<>"woningen bewoners",Overzichtsberekening!T30*INDEX($D$3:$D$18,MATCH(INDEX(Dropdownmenu!$H$3:$H$117,MATCH(Overzichtsberekening!$G30,Dropdownmenu!$A$3:$A$117,0)),$B$3:$B$18,0)),(Overzichtsberekening!T30-INDEX(Dropdownmenu!$I$3:$I$16,MATCH(Overzichtsberekening!$G30,Dropdownmenu!$A$3:$A$16,0))*Overzichtsberekening!$J30)*$D$3+INDEX(Dropdownmenu!$I$3:$I$16,MATCH(Overzichtsberekening!$G30,Dropdownmenu!$A$3:$A$16,0))*Overzichtsberekening!$J30*$D$4),"") ->  | X9: =IFERROR(IF(INDEX(Dropdownmenu!$H$3:$H$117,MATCH(Overzichtsberekening!$G30,Dropdownmenu!$A$3:$A$117,0))<>"woningen bewoners",Overzichtsberekening!S30*INDEX($E$3:$E$18,MATCH(INDEX(Dropdownmenu!$H$3:$H$117,MATCH(Overzichtsberekening!$G30,Dropdownmenu!$A$3:$A$117,0)),$B$3:$B$18,0)),(Overzichtsberekening!S30-INDEX(Dropdownmenu!$I$3:$I$16,MATCH(Overzichtsberekening!$G30,Dropdownmenu!$A$3:$A$16,0))*Overzichtsberekening!$J30)*$E$3+INDEX(Dropdownmenu!$I$3:$I$16,MATCH(Overzichtsberekening!$G30,Dropdownmenu!$A$3:$A$16,0))*Overzichtsberekening!$J30*$E$4),"") ->  | Y9: =IFERROR(IF(INDEX(Dropdownmenu!$H$3:$H$117,MATCH(Overzichtsberekening!$G30,Dropdownmenu!$A$3:$A$117,0))<>"woningen bewoners",Overzichtsberekening!T30*INDEX($E$3:$E$18,MATCH(INDEX(Dropdownmenu!$H$3:$H$117,MATCH(Overzichtsberekening!$G30,Dropdownmenu!$A$3:$A$117,0)),$B$3:$B$18,0)),(Overzichtsberekening!T30-INDEX(Dropdownmenu!$I$3:$I$16,MATCH(Overzichtsberekening!$G30,Dropdownmenu!$A$3:$A$16,0))*Overzichtsberekening!$J30)*$E$3+INDEX(Dropdownmenu!$I$3:$I$16,MATCH(Overzichtsberekening!$G30,Dropdownmenu!$A$3:$A$16,0))*Overzichtsberekening!$J30*$E$4),"") ->  | AB9: =IFERROR(IF(INDEX(Dropdownmenu!$H$3:$H$117,MATCH(Overzichtsberekening!$G30,Dropdownmenu!$A$3:$A$117,0))<>"woningen bewoners",Overzichtsberekening!S30*INDEX($F$3:$F$18,MATCH(INDEX(Dropdownmenu!$H$3:$H$117,MATCH(Overzichtsberekening!$G30,Dropdownmenu!$A$3:$A$117,0)),$B$3:$B$18,0)),(Overzichtsberekening!S30-INDEX(Dropdownmenu!$I$3:$I$16,MATCH(Overzichtsberekening!$G30,Dropdownmenu!$A$3:$A$16,0))*Overzichtsberekening!$J30)*$F$3+INDEX(Dropdownmenu!$I$3:$I$16,MATCH(Overzichtsberekening!$G30,Dropdownmenu!$A$3:$A$16,0))*Overzichtsberekening!$J30*$F$4),"") ->  | AC9: =IFERROR(IF(INDEX(Dropdownmenu!$H$3:$H$117,MATCH(Overzichtsberekening!$G30,Dropdownmenu!$A$3:$A$117,0))<>"woningen bewoners",Overzichtsberekening!T30*INDEX($F$3:$F$18,MATCH(INDEX(Dropdownmenu!$H$3:$H$117,MATCH(Overzichtsberekening!$G30,Dropdownmenu!$A$3:$A$117,0)),$B$3:$B$18,0)),(Overzichtsberekening!T30-INDEX(Dropdownmenu!$I$3:$I$16,MATCH(Overzichtsberekening!$G30,Dropdownmenu!$A$3:$A$16,0))*Overzichtsberekening!$J30)*$F$3+INDEX(Dropdownmenu!$I$3:$I$16,MATCH(Overzichtsberekening!$G30,Dropdownmenu!$A$3:$A$16,0))*Overzichtsberekening!$J30*$F$4),"") ->  | AF9: =IFERROR(IF(INDEX(Dropdownmenu!$H$3:$H$117,MATCH(Overzichtsberekening!$G30,Dropdownmenu!$A$3:$A$117,0))<>"woningen bewoners",Overzichtsberekening!S30*INDEX($G$3:$G$18,MATCH(INDEX(Dropdownmenu!$H$3:$H$117,MATCH(Overzichtsberekening!$G30,Dropdownmenu!$A$3:$A$117,0)),$B$3:$B$18,0)),(Overzichtsberekening!S30-INDEX(Dropdownmenu!$I$3:$I$16,MATCH(Overzichtsberekening!$G30,Dropdownmenu!$A$3:$A$16,0))*Overzichtsberekening!$J30)*$G$3+INDEX(Dropdownmenu!$I$3:$I$16,MATCH(Overzichtsberekening!$G30,Dropdownmenu!$A$3:$A$16,0))*Overzichtsberekening!$J30*$G$4),"") ->  | AG9: =IFERROR(IF(INDEX(Dropdownmenu!$H$3:$H$117,MATCH(Overzichtsberekening!$G30,Dropdownmenu!$A$3:$A$117,0))<>"woningen bewoners",Overzichtsberekening!T30*INDEX($G$3:$G$18,MATCH(INDEX(Dropdownmenu!$H$3:$H$117,MATCH(Overzichtsberekening!$G30,Dropdownmenu!$A$3:$A$117,0)),$B$3:$B$18,0)),(Overzichtsberekening!T30-INDEX(Dropdownmenu!$I$3:$I$16,MATCH(Overzichtsberekening!$G30,Dropdownmenu!$A$3:$A$16,0))*Overzichtsberekening!$J30)*$G$3+INDEX(Dropdownmenu!$I$3:$I$16,MATCH(Overzichtsberekening!$G30,Dropdownmenu!$A$3:$A$16,0))*Overzichtsberekening!$J30*$G$4),"") ->  | AJ9: =IFERROR(IF(INDEX(Dropdownmenu!$H$3:$H$117,MATCH(Overzichtsberekening!$G30,Dropdownmenu!$A$3:$A$117,0))<>"woningen bewoners",Overzichtsberekening!S30*INDEX($H$3:$H$18,MATCH(INDEX(Dropdownmenu!$H$3:$H$117,MATCH(Overzichtsberekening!$G30,Dropdownmenu!$A$3:$A$117,0)),$B$3:$B$18,0)),(Overzichtsberekening!S30-INDEX(Dropdownmenu!$I$3:$I$16,MATCH(Overzichtsberekening!$G30,Dropdownmenu!$A$3:$A$16,0))*Overzichtsberekening!$J30)*$H$3+INDEX(Dropdownmenu!$I$3:$I$16,MATCH(Overzichtsberekening!$G30,Dropdownmenu!$A$3:$A$16,0))*Overzichtsberekening!$J30*$H$4),"") ->  | AK9: =IFERROR(IF(INDEX(Dropdownmenu!$H$3:$H$117,MATCH(Overzichtsberekening!$G30,Dropdownmenu!$A$3:$A$117,0))<>"woningen bewoners",Overzichtsberekening!T30*INDEX($H$3:$H$18,MATCH(INDEX(Dropdownmenu!$H$3:$H$117,MATCH(Overzichtsberekening!$G30,Dropdownmenu!$A$3:$A$117,0)),$B$3:$B$18,0)),(Overzichtsberekening!T30-INDEX(Dropdownmenu!$I$3:$I$16,MATCH(Overzichtsberekening!$G30,Dropdownmenu!$A$3:$A$16,0))*Overzichtsberekening!$J30)*$H$3+INDEX(Dropdownmenu!$I$3:$I$16,MATCH(Overzichtsberekening!$G30,Dropdownmenu!$A$3:$A$16,0))*Overzichtsberekening!$J30*$H$4),"") ->  | AN9: =IFERROR(IF(INDEX(Dropdownmenu!$H$3:$H$117,MATCH(Overzichtsberekening!$G30,Dropdownmenu!$A$3:$A$117,0))<>"woningen bewoners",Overzichtsberekening!S30*INDEX($I$3:$I$18,MATCH(INDEX(Dropdownmenu!$H$3:$H$117,MATCH(Overzichtsberekening!$G30,Dropdownmenu!$A$3:$A$117,0)),$B$3:$B$18,0)),(Overzichtsberekening!S30-INDEX(Dropdownmenu!$I$3:$I$16,MATCH(Overzichtsberekening!$G30,Dropdownmenu!$A$3:$A$16,0))*Overzichtsberekening!$J30)*$I$3+INDEX(Dropdownmenu!$I$3:$I$16,MATCH(Overzichtsberekening!$G30,Dropdownmenu!$A$3:$A$16,0))*Overzichtsberekening!$J30*$I$4),"") ->  | AO9: =IFERROR(IF(INDEX(Dropdownmenu!$H$3:$H$117,MATCH(Overzichtsberekening!$G30,Dropdownmenu!$A$3:$A$117,0))<>"woningen bewoners",Overzichtsberekening!T30*INDEX($I$3:$I$18,MATCH(INDEX(Dropdownmenu!$H$3:$H$117,MATCH(Overzichtsberekening!$G30,Dropdownmenu!$A$3:$A$117,0)),$B$3:$B$18,0)),(Overzichtsberekening!T30-INDEX(Dropdownmenu!$I$3:$I$16,MATCH(Overzichtsberekening!$G30,Dropdownmenu!$A$3:$A$16,0))*Overzichtsberekening!$J30)*$I$3+INDEX(Dropdownmenu!$I$3:$I$16,MATCH(Overzichtsberekening!$G30,Dropdownmenu!$A$3:$A$16,0))*Overzichtsberekening!$J30*$I$4),"") ->  | AR9: =IFERROR(IF(INDEX(Dropdownmenu!$H$3:$H$117,MATCH(Overzichtsberekening!$G30,Dropdownmenu!$A$3:$A$117,0))<>"woningen bewoners",Overzichtsberekening!S30*INDEX($J$3:$J$18,MATCH(INDEX(Dropdownmenu!$H$3:$H$117,MATCH(Overzichtsberekening!$G30,Dropdownmenu!$A$3:$A$117,0)),$B$3:$B$18,0)),(Overzichtsberekening!S30-INDEX(Dropdownmenu!$I$3:$I$16,MATCH(Overzichtsberekening!$G30,Dropdownmenu!$A$3:$A$16,0))*Overzichtsberekening!$J30)*$J$3+INDEX(Dropdownmenu!$I$3:$I$16,MATCH(Overzichtsberekening!$G30,Dropdownmenu!$A$3:$A$16,0))*Overzichtsberekening!$J30*$J$4),"") ->  | AS9: =IFERROR(IF(INDEX(Dropdownmenu!$H$3:$H$117,MATCH(Overzichtsberekening!$G30,Dropdownmenu!$A$3:$A$117,0))<>"woningen bewoners",Overzichtsberekening!T30*INDEX($J$3:$J$18,MATCH(INDEX(Dropdownmenu!$H$3:$H$117,MATCH(Overzichtsberekening!$G30,Dropdownmenu!$A$3:$A$117,0)),$B$3:$B$18,0)),(Overzichtsberekening!T30-INDEX(Dropdownmenu!$I$3:$I$16,MATCH(Overzichtsberekening!$G30,Dropdownmenu!$A$3:$A$16,0))*Overzichtsberekening!$J30)*$J$3+INDEX(Dropdownmenu!$I$3:$I$16,MATCH(Overzichtsberekening!$G30,Dropdownmenu!$A$3:$A$16,0))*Overzichtsberekening!$J30*$J$4),"") -> 
B10: sportfuncties binnen | C10: 0.5 | D10: 0.5 | E10: 1 | F10: 0 | G10: 1 | H10: 1 | I10: 1 | J10: 0.75 | P10: =IFERROR(IF(INDEX(Dropdownmenu!$H$3:$H$117,MATCH(Overzichtsberekening!$G31,Dropdownmenu!$A$3:$A$117,0))<>"woningen bewoners",Overzichtsberekening!S31*INDEX($C$3:$C$18,MATCH(INDEX(Dropdownmenu!$H$3:$H$117,MATCH(Overzichtsberekening!$G31,Dropdownmenu!$A$3:$A$117,0)),$B$3:$B$18,0)),(Overzichtsberekening!S31-INDEX(Dropdownmenu!$I$3:$I$16,MATCH(Overzichtsberekening!$G31,Dropdownmenu!$A$3:$A$16,0))*Overzichtsberekening!$J31)*$C$3+INDEX(Dropdownmenu!$I$3:$I$16,MATCH(Overzichtsberekening!$G31,Dropdownmenu!$A$3:$A$16,0))*Overzichtsberekening!$J31*$C$4),"") ->  | Q10: =IFERROR(IF(INDEX(Dropdownmenu!$H$3:$H$117,MATCH(Overzichtsberekening!$G31,Dropdownmenu!$A$3:$A$117,0))<>"woningen bewoners",Overzichtsberekening!T31*INDEX($C$3:$C$18,MATCH(INDEX(Dropdownmenu!$H$3:$H$117,MATCH(Overzichtsberekening!$G31,Dropdownmenu!$A$3:$A$117,0)),$B$3:$B$18,0)),(Overzichtsberekening!T31-INDEX(Dropdownmenu!$I$3:$I$16,MATCH(Overzichtsberekening!$G31,Dropdownmenu!$A$3:$A$16,0))*Overzichtsberekening!$J31)*$C$3+INDEX(Dropdownmenu!$I$3:$I$16,MATCH(Overzichtsberekening!$G31,Dropdownmenu!$A$3:$A$16,0))*Overzichtsberekening!$J31*$C$4),"") ->  | T10: =IFERROR(IF(INDEX(Dropdownmenu!$H$3:$H$117,MATCH(Overzichtsberekening!$G31,Dropdownmenu!$A$3:$A$117,0))<>"woningen bewoners",Overzichtsberekening!S31*INDEX($D$3:$D$18,MATCH(INDEX(Dropdownmenu!$H$3:$H$117,MATCH(Overzichtsberekening!$G31,Dropdownmenu!$A$3:$A$117,0)),$B$3:$B$18,0)),(Overzichtsberekening!S31-INDEX(Dropdownmenu!$I$3:$I$16,MATCH(Overzichtsberekening!$G31,Dropdownmenu!$A$3:$A$16,0))*Overzichtsberekening!$J31)*$D$3+INDEX(Dropdownmenu!$I$3:$I$16,MATCH(Overzichtsberekening!$G31,Dropdownmenu!$A$3:$A$16,0))*Overzichtsberekening!$J31*$D$4),"") ->  | U10: =IFERROR(IF(INDEX(Dropdownmenu!$H$3:$H$117,MATCH(Overzichtsberekening!$G31,Dropdownmenu!$A$3:$A$117,0))<>"woningen bewoners",Overzichtsberekening!T31*INDEX($D$3:$D$18,MATCH(INDEX(Dropdownmenu!$H$3:$H$117,MATCH(Overzichtsberekening!$G31,Dropdownmenu!$A$3:$A$117,0)),$B$3:$B$18,0)),(Overzichtsberekening!T31-INDEX(Dropdownmenu!$I$3:$I$16,MATCH(Overzichtsberekening!$G31,Dropdownmenu!$A$3:$A$16,0))*Overzichtsberekening!$J31)*$D$3+INDEX(Dropdownmenu!$I$3:$I$16,MATCH(Overzichtsberekening!$G31,Dropdownmenu!$A$3:$A$16,0))*Overzichtsberekening!$J31*$D$4),"") ->  | X10: =IFERROR(IF(INDEX(Dropdownmenu!$H$3:$H$117,MATCH(Overzichtsberekening!$G31,Dropdownmenu!$A$3:$A$117,0))<>"woningen bewoners",Overzichtsberekening!S31*INDEX($E$3:$E$18,MATCH(INDEX(Dropdownmenu!$H$3:$H$117,MATCH(Overzichtsberekening!$G31,Dropdownmenu!$A$3:$A$117,0)),$B$3:$B$18,0)),(Overzichtsberekening!S31-INDEX(Dropdownmenu!$I$3:$I$16,MATCH(Overzichtsberekening!$G31,Dropdownmenu!$A$3:$A$16,0))*Overzichtsberekening!$J31)*$E$3+INDEX(Dropdownmenu!$I$3:$I$16,MATCH(Overzichtsberekening!$G31,Dropdownmenu!$A$3:$A$16,0))*Overzichtsberekening!$J31*$E$4),"") ->  | Y10: =IFERROR(IF(INDEX(Dropdownmenu!$H$3:$H$117,MATCH(Overzichtsberekening!$G31,Dropdownmenu!$A$3:$A$117,0))<>"woningen bewoners",Overzichtsberekening!T31*INDEX($E$3:$E$18,MATCH(INDEX(Dropdownmenu!$H$3:$H$117,MATCH(Overzichtsberekening!$G31,Dropdownmenu!$A$3:$A$117,0)),$B$3:$B$18,0)),(Overzichtsberekening!T31-INDEX(Dropdownmenu!$I$3:$I$16,MATCH(Overzichtsberekening!$G31,Dropdownmenu!$A$3:$A$16,0))*Overzichtsberekening!$J31)*$E$3+INDEX(Dropdownmenu!$I$3:$I$16,MATCH(Overzichtsberekening!$G31,Dropdownmenu!$A$3:$A$16,0))*Overzichtsberekening!$J31*$E$4),"") ->  | AB10: =IFERROR(IF(INDEX(Dropdownmenu!$H$3:$H$117,MATCH(Overzichtsberekening!$G31,Dropdownmenu!$A$3:$A$117,0))<>"woningen bewoners",Overzichtsberekening!S31*INDEX($F$3:$F$18,MATCH(INDEX(Dropdownmenu!$H$3:$H$117,MATCH(Overzichtsberekening!$G31,Dropdownmenu!$A$3:$A$117,0)),$B$3:$B$18,0)),(Overzichtsberekening!S31-INDEX(Dropdownmenu!$I$3:$I$16,MATCH(Overzichtsberekening!$G31,Dropdownmenu!$A$3:$A$16,0))*Overzichtsberekening!$J31)*$F$3+INDEX(Dropdownmenu!$I$3:$I$16,MATCH(Overzichtsberekening!$G31,Dropdownmenu!$A$3:$A$16,0))*Overzichtsberekening!$J31*$F$4),"") ->  | AC10: =IFERROR(IF(INDEX(Dropdownmenu!$H$3:$H$117,MATCH(Overzichtsberekening!$G31,Dropdownmenu!$A$3:$A$117,0))<>"woningen bewoners",Overzichtsberekening!T31*INDEX($F$3:$F$18,MATCH(INDEX(Dropdownmenu!$H$3:$H$117,MATCH(Overzichtsberekening!$G31,Dropdownmenu!$A$3:$A$117,0)),$B$3:$B$18,0)),(Overzichtsberekening!T31-INDEX(Dropdownmenu!$I$3:$I$16,MATCH(Overzichtsberekening!$G31,Dropdownmenu!$A$3:$A$16,0))*Overzichtsberekening!$J31)*$F$3+INDEX(Dropdownmenu!$I$3:$I$16,MATCH(Overzichtsberekening!$G31,Dropdownmenu!$A$3:$A$16,0))*Overzichtsberekening!$J31*$F$4),"") ->  | AF10: =IFERROR(IF(INDEX(Dropdownmenu!$H$3:$H$117,MATCH(Overzichtsberekening!$G31,Dropdownmenu!$A$3:$A$117,0))<>"woningen bewoners",Overzichtsberekening!S31*INDEX($G$3:$G$18,MATCH(INDEX(Dropdownmenu!$H$3:$H$117,MATCH(Overzichtsberekening!$G31,Dropdownmenu!$A$3:$A$117,0)),$B$3:$B$18,0)),(Overzichtsberekening!S31-INDEX(Dropdownmenu!$I$3:$I$16,MATCH(Overzichtsberekening!$G31,Dropdownmenu!$A$3:$A$16,0))*Overzichtsberekening!$J31)*$G$3+INDEX(Dropdownmenu!$I$3:$I$16,MATCH(Overzichtsberekening!$G31,Dropdownmenu!$A$3:$A$16,0))*Overzichtsberekening!$J31*$G$4),"") ->  | AG10: =IFERROR(IF(INDEX(Dropdownmenu!$H$3:$H$117,MATCH(Overzichtsberekening!$G31,Dropdownmenu!$A$3:$A$117,0))<>"woningen bewoners",Overzichtsberekening!T31*INDEX($G$3:$G$18,MATCH(INDEX(Dropdownmenu!$H$3:$H$117,MATCH(Overzichtsberekening!$G31,Dropdownmenu!$A$3:$A$117,0)),$B$3:$B$18,0)),(Overzichtsberekening!T31-INDEX(Dropdownmenu!$I$3:$I$16,MATCH(Overzichtsberekening!$G31,Dropdownmenu!$A$3:$A$16,0))*Overzichtsberekening!$J31)*$G$3+INDEX(Dropdownmenu!$I$3:$I$16,MATCH(Overzichtsberekening!$G31,Dropdownmenu!$A$3:$A$16,0))*Overzichtsberekening!$J31*$G$4),"") ->  | AJ10: =IFERROR(IF(INDEX(Dropdownmenu!$H$3:$H$117,MATCH(Overzichtsberekening!$G31,Dropdownmenu!$A$3:$A$117,0))<>"woningen bewoners",Overzichtsberekening!S31*INDEX($H$3:$H$18,MATCH(INDEX(Dropdownmenu!$H$3:$H$117,MATCH(Overzichtsberekening!$G31,Dropdownmenu!$A$3:$A$117,0)),$B$3:$B$18,0)),(Overzichtsberekening!S31-INDEX(Dropdownmenu!$I$3:$I$16,MATCH(Overzichtsberekening!$G31,Dropdownmenu!$A$3:$A$16,0))*Overzichtsberekening!$J31)*$H$3+INDEX(Dropdownmenu!$I$3:$I$16,MATCH(Overzichtsberekening!$G31,Dropdownmenu!$A$3:$A$16,0))*Overzichtsberekening!$J31*$H$4),"") ->  | AK10: =IFERROR(IF(INDEX(Dropdownmenu!$H$3:$H$117,MATCH(Overzichtsberekening!$G31,Dropdownmenu!$A$3:$A$117,0))<>"woningen bewoners",Overzichtsberekening!T31*INDEX($H$3:$H$18,MATCH(INDEX(Dropdownmenu!$H$3:$H$117,MATCH(Overzichtsberekening!$G31,Dropdownmenu!$A$3:$A$117,0)),$B$3:$B$18,0)),(Overzichtsberekening!T31-INDEX(Dropdownmenu!$I$3:$I$16,MATCH(Overzichtsberekening!$G31,Dropdownmenu!$A$3:$A$16,0))*Overzichtsberekening!$J31)*$H$3+INDEX(Dropdownmenu!$I$3:$I$16,MATCH(Overzichtsberekening!$G31,Dropdownmenu!$A$3:$A$16,0))*Overzichtsberekening!$J31*$H$4),"") ->  | AN10: =IFERROR(IF(INDEX(Dropdownmenu!$H$3:$H$117,MATCH(Overzichtsberekening!$G31,Dropdownmenu!$A$3:$A$117,0))<>"woningen bewoners",Overzichtsberekening!S31*INDEX($I$3:$I$18,MATCH(INDEX(Dropdownmenu!$H$3:$H$117,MATCH(Overzichtsberekening!$G31,Dropdownmenu!$A$3:$A$117,0)),$B$3:$B$18,0)),(Overzichtsberekening!S31-INDEX(Dropdownmenu!$I$3:$I$16,MATCH(Overzichtsberekening!$G31,Dropdownmenu!$A$3:$A$16,0))*Overzichtsberekening!$J31)*$I$3+INDEX(Dropdownmenu!$I$3:$I$16,MATCH(Overzichtsberekening!$G31,Dropdownmenu!$A$3:$A$16,0))*Overzichtsberekening!$J31*$I$4),"") ->  | AO10: =IFERROR(IF(INDEX(Dropdownmenu!$H$3:$H$117,MATCH(Overzichtsberekening!$G31,Dropdownmenu!$A$3:$A$117,0))<>"woningen bewoners",Overzichtsberekening!T31*INDEX($I$3:$I$18,MATCH(INDEX(Dropdownmenu!$H$3:$H$117,MATCH(Overzichtsberekening!$G31,Dropdownmenu!$A$3:$A$117,0)),$B$3:$B$18,0)),(Overzichtsberekening!T31-INDEX(Dropdownmenu!$I$3:$I$16,MATCH(Overzichtsberekening!$G31,Dropdownmenu!$A$3:$A$16,0))*Overzichtsberekening!$J31)*$I$3+INDEX(Dropdownmenu!$I$3:$I$16,MATCH(Overzichtsberekening!$G31,Dropdownmenu!$A$3:$A$16,0))*Overzichtsberekening!$J31*$I$4),"") ->  | AR10: =IFERROR(IF(INDEX(Dropdownmenu!$H$3:$H$117,MATCH(Overzichtsberekening!$G31,Dropdownmenu!$A$3:$A$117,0))<>"woningen bewoners",Overzichtsberekening!S31*INDEX($J$3:$J$18,MATCH(INDEX(Dropdownmenu!$H$3:$H$117,MATCH(Overzichtsberekening!$G31,Dropdownmenu!$A$3:$A$117,0)),$B$3:$B$18,0)),(Overzichtsberekening!S31-INDEX(Dropdownmenu!$I$3:$I$16,MATCH(Overzichtsberekening!$G31,Dropdownmenu!$A$3:$A$16,0))*Overzichtsberekening!$J31)*$J$3+INDEX(Dropdownmenu!$I$3:$I$16,MATCH(Overzichtsberekening!$G31,Dropdownmenu!$A$3:$A$16,0))*Overzichtsberekening!$J31*$J$4),"") ->  | AS10: =IFERROR(IF(INDEX(Dropdownmenu!$H$3:$H$117,MATCH(Overzichtsberekening!$G31,Dropdownmenu!$A$3:$A$117,0))<>"woningen bewoners",Overzichtsberekening!T31*INDEX($J$3:$J$18,MATCH(INDEX(Dropdownmenu!$H$3:$H$117,MATCH(Overzichtsberekening!$G31,Dropdownmenu!$A$3:$A$117,0)),$B$3:$B$18,0)),(Overzichtsberekening!T31-INDEX(Dropdownmenu!$I$3:$I$16,MATCH(Overzichtsberekening!$G31,Dropdownmenu!$A$3:$A$16,0))*Overzichtsberekening!$J31)*$J$3+INDEX(Dropdownmenu!$I$3:$I$16,MATCH(Overzichtsberekening!$G31,Dropdownmenu!$A$3:$A$16,0))*Overzichtsberekening!$J31*$J$4),"") -> 
B11: sportfuncties buiten | C11: 0.25 | D11: 0.25 | E11: 0.5 | F11: 0 | G11: 0.5 | H11: 1 | I11: 0.25 | J11: 1 | P11: =IFERROR(IF(INDEX(Dropdownmenu!$H$3:$H$117,MATCH(Overzichtsberekening!$G32,Dropdownmenu!$A$3:$A$117,0))<>"woningen bewoners",Overzichtsberekening!S32*INDEX($C$3:$C$18,MATCH(INDEX(Dropdownmenu!$H$3:$H$117,MATCH(Overzichtsberekening!$G32,Dropdownmenu!$A$3:$A$117,0)),$B$3:$B$18,0)),(Overzichtsberekening!S32-INDEX(Dropdownmenu!$I$3:$I$16,MATCH(Overzichtsberekening!$G32,Dropdownmenu!$A$3:$A$16,0))*Overzichtsberekening!$J32)*$C$3+INDEX(Dropdownmenu!$I$3:$I$16,MATCH(Overzichtsberekening!$G32,Dropdownmenu!$A$3:$A$16,0))*Overzichtsberekening!$J32*$C$4),"") ->  | Q11: =IFERROR(IF(INDEX(Dropdownmenu!$H$3:$H$117,MATCH(Overzichtsberekening!$G32,Dropdownmenu!$A$3:$A$117,0))<>"woningen bewoners",Overzichtsberekening!T32*INDEX($C$3:$C$18,MATCH(INDEX(Dropdownmenu!$H$3:$H$117,MATCH(Overzichtsberekening!$G32,Dropdownmenu!$A$3:$A$117,0)),$B$3:$B$18,0)),(Overzichtsberekening!T32-INDEX(Dropdownmenu!$I$3:$I$16,MATCH(Overzichtsberekening!$G32,Dropdownmenu!$A$3:$A$16,0))*Overzichtsberekening!$J32)*$C$3+INDEX(Dropdownmenu!$I$3:$I$16,MATCH(Overzichtsberekening!$G32,Dropdownmenu!$A$3:$A$16,0))*Overzichtsberekening!$J32*$C$4),"") ->  | T11: =IFERROR(IF(INDEX(Dropdownmenu!$H$3:$H$117,MATCH(Overzichtsberekening!$G32,Dropdownmenu!$A$3:$A$117,0))<>"woningen bewoners",Overzichtsberekening!S32*INDEX($D$3:$D$18,MATCH(INDEX(Dropdownmenu!$H$3:$H$117,MATCH(Overzichtsberekening!$G32,Dropdownmenu!$A$3:$A$117,0)),$B$3:$B$18,0)),(Overzichtsberekening!S32-INDEX(Dropdownmenu!$I$3:$I$16,MATCH(Overzichtsberekening!$G32,Dropdownmenu!$A$3:$A$16,0))*Overzichtsberekening!$J32)*$D$3+INDEX(Dropdownmenu!$I$3:$I$16,MATCH(Overzichtsberekening!$G32,Dropdownmenu!$A$3:$A$16,0))*Overzichtsberekening!$J32*$D$4),"") ->  | U11: =IFERROR(IF(INDEX(Dropdownmenu!$H$3:$H$117,MATCH(Overzichtsberekening!$G32,Dropdownmenu!$A$3:$A$117,0))<>"woningen bewoners",Overzichtsberekening!T32*INDEX($D$3:$D$18,MATCH(INDEX(Dropdownmenu!$H$3:$H$117,MATCH(Overzichtsberekening!$G32,Dropdownmenu!$A$3:$A$117,0)),$B$3:$B$18,0)),(Overzichtsberekening!T32-INDEX(Dropdownmenu!$I$3:$I$16,MATCH(Overzichtsberekening!$G32,Dropdownmenu!$A$3:$A$16,0))*Overzichtsberekening!$J32)*$D$3+INDEX(Dropdownmenu!$I$3:$I$16,MATCH(Overzichtsberekening!$G32,Dropdownmenu!$A$3:$A$16,0))*Overzichtsberekening!$J32*$D$4),"") ->  | X11: =IFERROR(IF(INDEX(Dropdownmenu!$H$3:$H$117,MATCH(Overzichtsberekening!$G32,Dropdownmenu!$A$3:$A$117,0))<>"woningen bewoners",Overzichtsberekening!S32*INDEX($E$3:$E$18,MATCH(INDEX(Dropdownmenu!$H$3:$H$117,MATCH(Overzichtsberekening!$G32,Dropdownmenu!$A$3:$A$117,0)),$B$3:$B$18,0)),(Overzichtsberekening!S32-INDEX(Dropdownmenu!$I$3:$I$16,MATCH(Overzichtsberekening!$G32,Dropdownmenu!$A$3:$A$16,0))*Overzichtsberekening!$J32)*$E$3+INDEX(Dropdownmenu!$I$3:$I$16,MATCH(Overzichtsberekening!$G32,Dropdownmenu!$A$3:$A$16,0))*Overzichtsberekening!$J32*$E$4),"") ->  | Y11: =IFERROR(IF(INDEX(Dropdownmenu!$H$3:$H$117,MATCH(Overzichtsberekening!$G32,Dropdownmenu!$A$3:$A$117,0))<>"woningen bewoners",Overzichtsberekening!T32*INDEX($E$3:$E$18,MATCH(INDEX(Dropdownmenu!$H$3:$H$117,MATCH(Overzichtsberekening!$G32,Dropdownmenu!$A$3:$A$117,0)),$B$3:$B$18,0)),(Overzichtsberekening!T32-INDEX(Dropdownmenu!$I$3:$I$16,MATCH(Overzichtsberekening!$G32,Dropdownmenu!$A$3:$A$16,0))*Overzichtsberekening!$J32)*$E$3+INDEX(Dropdownmenu!$I$3:$I$16,MATCH(Overzichtsberekening!$G32,Dropdownmenu!$A$3:$A$16,0))*Overzichtsberekening!$J32*$E$4),"") ->  | AB11: =IFERROR(IF(INDEX(Dropdownmenu!$H$3:$H$117,MATCH(Overzichtsberekening!$G32,Dropdownmenu!$A$3:$A$117,0))<>"woningen bewoners",Overzichtsberekening!S32*INDEX($F$3:$F$18,MATCH(INDEX(Dropdownmenu!$H$3:$H$117,MATCH(Overzichtsberekening!$G32,Dropdownmenu!$A$3:$A$117,0)),$B$3:$B$18,0)),(Overzichtsberekening!S32-INDEX(Dropdownmenu!$I$3:$I$16,MATCH(Overzichtsberekening!$G32,Dropdownmenu!$A$3:$A$16,0))*Overzichtsberekening!$J32)*$F$3+INDEX(Dropdownmenu!$I$3:$I$16,MATCH(Overzichtsberekening!$G32,Dropdownmenu!$A$3:$A$16,0))*Overzichtsberekening!$J32*$F$4),"") ->  | AC11: =IFERROR(IF(INDEX(Dropdownmenu!$H$3:$H$117,MATCH(Overzichtsberekening!$G32,Dropdownmenu!$A$3:$A$117,0))<>"woningen bewoners",Overzichtsberekening!T32*INDEX($F$3:$F$18,MATCH(INDEX(Dropdownmenu!$H$3:$H$117,MATCH(Overzichtsberekening!$G32,Dropdownmenu!$A$3:$A$117,0)),$B$3:$B$18,0)),(Overzichtsberekening!T32-INDEX(Dropdownmenu!$I$3:$I$16,MATCH(Overzichtsberekening!$G32,Dropdownmenu!$A$3:$A$16,0))*Overzichtsberekening!$J32)*$F$3+INDEX(Dropdownmenu!$I$3:$I$16,MATCH(Overzichtsberekening!$G32,Dropdownmenu!$A$3:$A$16,0))*Overzichtsberekening!$J32*$F$4),"") ->  | AF11: =IFERROR(IF(INDEX(Dropdownmenu!$H$3:$H$117,MATCH(Overzichtsberekening!$G32,Dropdownmenu!$A$3:$A$117,0))<>"woningen bewoners",Overzichtsberekening!S32*INDEX($G$3:$G$18,MATCH(INDEX(Dropdownmenu!$H$3:$H$117,MATCH(Overzichtsberekening!$G32,Dropdownmenu!$A$3:$A$117,0)),$B$3:$B$18,0)),(Overzichtsberekening!S32-INDEX(Dropdownmenu!$I$3:$I$16,MATCH(Overzichtsberekening!$G32,Dropdownmenu!$A$3:$A$16,0))*Overzichtsberekening!$J32)*$G$3+INDEX(Dropdownmenu!$I$3:$I$16,MATCH(Overzichtsberekening!$G32,Dropdownmenu!$A$3:$A$16,0))*Overzichtsberekening!$J32*$G$4),"") ->  | AG11: =IFERROR(IF(INDEX(Dropdownmenu!$H$3:$H$117,MATCH(Overzichtsberekening!$G32,Dropdownmenu!$A$3:$A$117,0))<>"woningen bewoners",Overzichtsberekening!T32*INDEX($G$3:$G$18,MATCH(INDEX(Dropdownmenu!$H$3:$H$117,MATCH(Overzichtsberekening!$G32,Dropdownmenu!$A$3:$A$117,0)),$B$3:$B$18,0)),(Overzichtsberekening!T32-INDEX(Dropdownmenu!$I$3:$I$16,MATCH(Overzichtsberekening!$G32,Dropdownmenu!$A$3:$A$16,0))*Overzichtsberekening!$J32)*$G$3+INDEX(Dropdownmenu!$I$3:$I$16,MATCH(Overzichtsberekening!$G32,Dropdownmenu!$A$3:$A$16,0))*Overzichtsberekening!$J32*$G$4),"") ->  | AJ11: =IFERROR(IF(INDEX(Dropdownmenu!$H$3:$H$117,MATCH(Overzichtsberekening!$G32,Dropdownmenu!$A$3:$A$117,0))<>"woningen bewoners",Overzichtsberekening!S32*INDEX($H$3:$H$18,MATCH(INDEX(Dropdownmenu!$H$3:$H$117,MATCH(Overzichtsberekening!$G32,Dropdownmenu!$A$3:$A$117,0)),$B$3:$B$18,0)),(Overzichtsberekening!S32-INDEX(Dropdownmenu!$I$3:$I$16,MATCH(Overzichtsberekening!$G32,Dropdownmenu!$A$3:$A$16,0))*Overzichtsberekening!$J32)*$H$3+INDEX(Dropdownmenu!$I$3:$I$16,MATCH(Overzichtsberekening!$G32,Dropdownmenu!$A$3:$A$16,0))*Overzichtsberekening!$J32*$H$4),"") ->  | AK11: =IFERROR(IF(INDEX(Dropdownmenu!$H$3:$H$117,MATCH(Overzichtsberekening!$G32,Dropdownmenu!$A$3:$A$117,0))<>"woningen bewoners",Overzichtsberekening!T32*INDEX($H$3:$H$18,MATCH(INDEX(Dropdownmenu!$H$3:$H$117,MATCH(Overzichtsberekening!$G32,Dropdownmenu!$A$3:$A$117,0)),$B$3:$B$18,0)),(Overzichtsberekening!T32-INDEX(Dropdownmenu!$I$3:$I$16,MATCH(Overzichtsberekening!$G32,Dropdownmenu!$A$3:$A$16,0))*Overzichtsberekening!$J32)*$H$3+INDEX(Dropdownmenu!$I$3:$I$16,MATCH(Overzichtsberekening!$G32,Dropdownmenu!$A$3:$A$16,0))*Overzichtsberekening!$J32*$H$4),"") ->  | AN11: =IFERROR(IF(INDEX(Dropdownmenu!$H$3:$H$117,MATCH(Overzichtsberekening!$G32,Dropdownmenu!$A$3:$A$117,0))<>"woningen bewoners",Overzichtsberekening!S32*INDEX($I$3:$I$18,MATCH(INDEX(Dropdownmenu!$H$3:$H$117,MATCH(Overzichtsberekening!$G32,Dropdownmenu!$A$3:$A$117,0)),$B$3:$B$18,0)),(Overzichtsberekening!S32-INDEX(Dropdownmenu!$I$3:$I$16,MATCH(Overzichtsberekening!$G32,Dropdownmenu!$A$3:$A$16,0))*Overzichtsberekening!$J32)*$I$3+INDEX(Dropdownmenu!$I$3:$I$16,MATCH(Overzichtsberekening!$G32,Dropdownmenu!$A$3:$A$16,0))*Overzichtsberekening!$J32*$I$4),"") ->  | AO11: =IFERROR(IF(INDEX(Dropdownmenu!$H$3:$H$117,MATCH(Overzichtsberekening!$G32,Dropdownmenu!$A$3:$A$117,0))<>"woningen bewoners",Overzichtsberekening!T32*INDEX($I$3:$I$18,MATCH(INDEX(Dropdownmenu!$H$3:$H$117,MATCH(Overzichtsberekening!$G32,Dropdownmenu!$A$3:$A$117,0)),$B$3:$B$18,0)),(Overzichtsberekening!T32-INDEX(Dropdownmenu!$I$3:$I$16,MATCH(Overzichtsberekening!$G32,Dropdownmenu!$A$3:$A$16,0))*Overzichtsberekening!$J32)*$I$3+INDEX(Dropdownmenu!$I$3:$I$16,MATCH(Overzichtsberekening!$G32,Dropdownmenu!$A$3:$A$16,0))*Overzichtsberekening!$J32*$I$4),"") ->  | AR11: =IFERROR(IF(INDEX(Dropdownmenu!$H$3:$H$117,MATCH(Overzichtsberekening!$G32,Dropdownmenu!$A$3:$A$117,0))<>"woningen bewoners",Overzichtsberekening!S32*INDEX($J$3:$J$18,MATCH(INDEX(Dropdownmenu!$H$3:$H$117,MATCH(Overzichtsberekening!$G32,Dropdownmenu!$A$3:$A$117,0)),$B$3:$B$18,0)),(Overzichtsberekening!S32-INDEX(Dropdownmenu!$I$3:$I$16,MATCH(Overzichtsberekening!$G32,Dropdownmenu!$A$3:$A$16,0))*Overzichtsberekening!$J32)*$J$3+INDEX(Dropdownmenu!$I$3:$I$16,MATCH(Overzichtsberekening!$G32,Dropdownmenu!$A$3:$A$16,0))*Overzichtsberekening!$J32*$J$4),"") ->  | AS11: =IFERROR(IF(INDEX(Dropdownmenu!$H$3:$H$117,MATCH(Overzichtsberekening!$G32,Dropdownmenu!$A$3:$A$117,0))<>"woningen bewoners",Overzichtsberekening!T32*INDEX($J$3:$J$18,MATCH(INDEX(Dropdownmenu!$H$3:$H$117,MATCH(Overzichtsberekening!$G32,Dropdownmenu!$A$3:$A$117,0)),$B$3:$B$18,0)),(Overzichtsberekening!T32-INDEX(Dropdownmenu!$I$3:$I$16,MATCH(Overzichtsberekening!$G32,Dropdownmenu!$A$3:$A$16,0))*Overzichtsberekening!$J32)*$J$3+INDEX(Dropdownmenu!$I$3:$I$16,MATCH(Overzichtsberekening!$G32,Dropdownmenu!$A$3:$A$16,0))*Overzichtsberekening!$J32*$J$4),"") -> 
B12: bioscoop/theater/podium/enzovoort | C12: 0.05 | D12: 0.25 | E12: 0.9 | F12: 0 | G12: 0.9 | H12: 0.4 | I12: 1 | J12: 0.4 | P12: =IFERROR(IF(INDEX(Dropdownmenu!$H$3:$H$117,MATCH(Overzichtsberekening!$G33,Dropdownmenu!$A$3:$A$117,0))<>"woningen bewoners",Overzichtsberekening!S33*INDEX($C$3:$C$18,MATCH(INDEX(Dropdownmenu!$H$3:$H$117,MATCH(Overzichtsberekening!$G33,Dropdownmenu!$A$3:$A$117,0)),$B$3:$B$18,0)),(Overzichtsberekening!S33-INDEX(Dropdownmenu!$I$3:$I$16,MATCH(Overzichtsberekening!$G33,Dropdownmenu!$A$3:$A$16,0))*Overzichtsberekening!$J33)*$C$3+INDEX(Dropdownmenu!$I$3:$I$16,MATCH(Overzichtsberekening!$G33,Dropdownmenu!$A$3:$A$16,0))*Overzichtsberekening!$J33*$C$4),"") ->  | Q12: =IFERROR(IF(INDEX(Dropdownmenu!$H$3:$H$117,MATCH(Overzichtsberekening!$G33,Dropdownmenu!$A$3:$A$117,0))<>"woningen bewoners",Overzichtsberekening!T33*INDEX($C$3:$C$18,MATCH(INDEX(Dropdownmenu!$H$3:$H$117,MATCH(Overzichtsberekening!$G33,Dropdownmenu!$A$3:$A$117,0)),$B$3:$B$18,0)),(Overzichtsberekening!T33-INDEX(Dropdownmenu!$I$3:$I$16,MATCH(Overzichtsberekening!$G33,Dropdownmenu!$A$3:$A$16,0))*Overzichtsberekening!$J33)*$C$3+INDEX(Dropdownmenu!$I$3:$I$16,MATCH(Overzichtsberekening!$G33,Dropdownmenu!$A$3:$A$16,0))*Overzichtsberekening!$J33*$C$4),"") ->  | T12: =IFERROR(IF(INDEX(Dropdownmenu!$H$3:$H$117,MATCH(Overzichtsberekening!$G33,Dropdownmenu!$A$3:$A$117,0))<>"woningen bewoners",Overzichtsberekening!S33*INDEX($D$3:$D$18,MATCH(INDEX(Dropdownmenu!$H$3:$H$117,MATCH(Overzichtsberekening!$G33,Dropdownmenu!$A$3:$A$117,0)),$B$3:$B$18,0)),(Overzichtsberekening!S33-INDEX(Dropdownmenu!$I$3:$I$16,MATCH(Overzichtsberekening!$G33,Dropdownmenu!$A$3:$A$16,0))*Overzichtsberekening!$J33)*$D$3+INDEX(Dropdownmenu!$I$3:$I$16,MATCH(Overzichtsberekening!$G33,Dropdownmenu!$A$3:$A$16,0))*Overzichtsberekening!$J33*$D$4),"") ->  | U12: =IFERROR(IF(INDEX(Dropdownmenu!$H$3:$H$117,MATCH(Overzichtsberekening!$G33,Dropdownmenu!$A$3:$A$117,0))<>"woningen bewoners",Overzichtsberekening!T33*INDEX($D$3:$D$18,MATCH(INDEX(Dropdownmenu!$H$3:$H$117,MATCH(Overzichtsberekening!$G33,Dropdownmenu!$A$3:$A$117,0)),$B$3:$B$18,0)),(Overzichtsberekening!T33-INDEX(Dropdownmenu!$I$3:$I$16,MATCH(Overzichtsberekening!$G33,Dropdownmenu!$A$3:$A$16,0))*Overzichtsberekening!$J33)*$D$3+INDEX(Dropdownmenu!$I$3:$I$16,MATCH(Overzichtsberekening!$G33,Dropdownmenu!$A$3:$A$16,0))*Overzichtsberekening!$J33*$D$4),"") ->  | X12: =IFERROR(IF(INDEX(Dropdownmenu!$H$3:$H$117,MATCH(Overzichtsberekening!$G33,Dropdownmenu!$A$3:$A$117,0))<>"woningen bewoners",Overzichtsberekening!S33*INDEX($E$3:$E$18,MATCH(INDEX(Dropdownmenu!$H$3:$H$117,MATCH(Overzichtsberekening!$G33,Dropdownmenu!$A$3:$A$117,0)),$B$3:$B$18,0)),(Overzichtsberekening!S33-INDEX(Dropdownmenu!$I$3:$I$16,MATCH(Overzichtsberekening!$G33,Dropdownmenu!$A$3:$A$16,0))*Overzichtsberekening!$J33)*$E$3+INDEX(Dropdownmenu!$I$3:$I$16,MATCH(Overzichtsberekening!$G33,Dropdownmenu!$A$3:$A$16,0))*Overzichtsberekening!$J33*$E$4),"") ->  | Y12: =IFERROR(IF(INDEX(Dropdownmenu!$H$3:$H$117,MATCH(Overzichtsberekening!$G33,Dropdownmenu!$A$3:$A$117,0))<>"woningen bewoners",Overzichtsberekening!T33*INDEX($E$3:$E$18,MATCH(INDEX(Dropdownmenu!$H$3:$H$117,MATCH(Overzichtsberekening!$G33,Dropdownmenu!$A$3:$A$117,0)),$B$3:$B$18,0)),(Overzichtsberekening!T33-INDEX(Dropdownmenu!$I$3:$I$16,MATCH(Overzichtsberekening!$G33,Dropdownmenu!$A$3:$A$16,0))*Overzichtsberekening!$J33)*$E$3+INDEX(Dropdownmenu!$I$3:$I$16,MATCH(Overzichtsberekening!$G33,Dropdownmenu!$A$3:$A$16,0))*Overzichtsberekening!$J33*$E$4),"") ->  | AB12: =IFERROR(IF(INDEX(Dropdownmenu!$H$3:$H$117,MATCH(Overzichtsberekening!$G33,Dropdownmenu!$A$3:$A$117,0))<>"woningen bewoners",Overzichtsberekening!S33*INDEX($F$3:$F$18,MATCH(INDEX(Dropdownmenu!$H$3:$H$117,MATCH(Overzichtsberekening!$G33,Dropdownmenu!$A$3:$A$117,0)),$B$3:$B$18,0)),(Overzichtsberekening!S33-INDEX(Dropdownmenu!$I$3:$I$16,MATCH(Overzichtsberekening!$G33,Dropdownmenu!$A$3:$A$16,0))*Overzichtsberekening!$J33)*$F$3+INDEX(Dropdownmenu!$I$3:$I$16,MATCH(Overzichtsberekening!$G33,Dropdownmenu!$A$3:$A$16,0))*Overzichtsberekening!$J33*$F$4),"") ->  | AC12: =IFERROR(IF(INDEX(Dropdownmenu!$H$3:$H$117,MATCH(Overzichtsberekening!$G33,Dropdownmenu!$A$3:$A$117,0))<>"woningen bewoners",Overzichtsberekening!T33*INDEX($F$3:$F$18,MATCH(INDEX(Dropdownmenu!$H$3:$H$117,MATCH(Overzichtsberekening!$G33,Dropdownmenu!$A$3:$A$117,0)),$B$3:$B$18,0)),(Overzichtsberekening!T33-INDEX(Dropdownmenu!$I$3:$I$16,MATCH(Overzichtsberekening!$G33,Dropdownmenu!$A$3:$A$16,0))*Overzichtsberekening!$J33)*$F$3+INDEX(Dropdownmenu!$I$3:$I$16,MATCH(Overzichtsberekening!$G33,Dropdownmenu!$A$3:$A$16,0))*Overzichtsberekening!$J33*$F$4),"") ->  | AF12: =IFERROR(IF(INDEX(Dropdownmenu!$H$3:$H$117,MATCH(Overzichtsberekening!$G33,Dropdownmenu!$A$3:$A$117,0))<>"woningen bewoners",Overzichtsberekening!S33*INDEX($G$3:$G$18,MATCH(INDEX(Dropdownmenu!$H$3:$H$117,MATCH(Overzichtsberekening!$G33,Dropdownmenu!$A$3:$A$117,0)),$B$3:$B$18,0)),(Overzichtsberekening!S33-INDEX(Dropdownmenu!$I$3:$I$16,MATCH(Overzichtsberekening!$G33,Dropdownmenu!$A$3:$A$16,0))*Overzichtsberekening!$J33)*$G$3+INDEX(Dropdownmenu!$I$3:$I$16,MATCH(Overzichtsberekening!$G33,Dropdownmenu!$A$3:$A$16,0))*Overzichtsberekening!$J33*$G$4),"") ->  | AG12: =IFERROR(IF(INDEX(Dropdownmenu!$H$3:$H$117,MATCH(Overzichtsberekening!$G33,Dropdownmenu!$A$3:$A$117,0))<>"woningen bewoners",Overzichtsberekening!T33*INDEX($G$3:$G$18,MATCH(INDEX(Dropdownmenu!$H$3:$H$117,MATCH(Overzichtsberekening!$G33,Dropdownmenu!$A$3:$A$117,0)),$B$3:$B$18,0)),(Overzichtsberekening!T33-INDEX(Dropdownmenu!$I$3:$I$16,MATCH(Overzichtsberekening!$G33,Dropdownmenu!$A$3:$A$16,0))*Overzichtsberekening!$J33)*$G$3+INDEX(Dropdownmenu!$I$3:$I$16,MATCH(Overzichtsberekening!$G33,Dropdownmenu!$A$3:$A$16,0))*Overzichtsberekening!$J33*$G$4),"") ->  | AJ12: =IFERROR(IF(INDEX(Dropdownmenu!$H$3:$H$117,MATCH(Overzichtsberekening!$G33,Dropdownmenu!$A$3:$A$117,0))<>"woningen bewoners",Overzichtsberekening!S33*INDEX($H$3:$H$18,MATCH(INDEX(Dropdownmenu!$H$3:$H$117,MATCH(Overzichtsberekening!$G33,Dropdownmenu!$A$3:$A$117,0)),$B$3:$B$18,0)),(Overzichtsberekening!S33-INDEX(Dropdownmenu!$I$3:$I$16,MATCH(Overzichtsberekening!$G33,Dropdownmenu!$A$3:$A$16,0))*Overzichtsberekening!$J33)*$H$3+INDEX(Dropdownmenu!$I$3:$I$16,MATCH(Overzichtsberekening!$G33,Dropdownmenu!$A$3:$A$16,0))*Overzichtsberekening!$J33*$H$4),"") ->  | AK12: =IFERROR(IF(INDEX(Dropdownmenu!$H$3:$H$117,MATCH(Overzichtsberekening!$G33,Dropdownmenu!$A$3:$A$117,0))<>"woningen bewoners",Overzichtsberekening!T33*INDEX($H$3:$H$18,MATCH(INDEX(Dropdownmenu!$H$3:$H$117,MATCH(Overzichtsberekening!$G33,Dropdownmenu!$A$3:$A$117,0)),$B$3:$B$18,0)),(Overzichtsberekening!T33-INDEX(Dropdownmenu!$I$3:$I$16,MATCH(Overzichtsberekening!$G33,Dropdownmenu!$A$3:$A$16,0))*Overzichtsberekening!$J33)*$H$3+INDEX(Dropdownmenu!$I$3:$I$16,MATCH(Overzichtsberekening!$G33,Dropdownmenu!$A$3:$A$16,0))*Overzichtsberekening!$J33*$H$4),"") ->  | AN12: =IFERROR(IF(INDEX(Dropdownmenu!$H$3:$H$117,MATCH(Overzichtsberekening!$G33,Dropdownmenu!$A$3:$A$117,0))<>"woningen bewoners",Overzichtsberekening!S33*INDEX($I$3:$I$18,MATCH(INDEX(Dropdownmenu!$H$3:$H$117,MATCH(Overzichtsberekening!$G33,Dropdownmenu!$A$3:$A$117,0)),$B$3:$B$18,0)),(Overzichtsberekening!S33-INDEX(Dropdownmenu!$I$3:$I$16,MATCH(Overzichtsberekening!$G33,Dropdownmenu!$A$3:$A$16,0))*Overzichtsberekening!$J33)*$I$3+INDEX(Dropdownmenu!$I$3:$I$16,MATCH(Overzichtsberekening!$G33,Dropdownmenu!$A$3:$A$16,0))*Overzichtsberekening!$J33*$I$4),"") ->  | AO12: =IFERROR(IF(INDEX(Dropdownmenu!$H$3:$H$117,MATCH(Overzichtsberekening!$G33,Dropdownmenu!$A$3:$A$117,0))<>"woningen bewoners",Overzichtsberekening!T33*INDEX($I$3:$I$18,MATCH(INDEX(Dropdownmenu!$H$3:$H$117,MATCH(Overzichtsberekening!$G33,Dropdownmenu!$A$3:$A$117,0)),$B$3:$B$18,0)),(Overzichtsberekening!T33-INDEX(Dropdownmenu!$I$3:$I$16,MATCH(Overzichtsberekening!$G33,Dropdownmenu!$A$3:$A$16,0))*Overzichtsberekening!$J33)*$I$3+INDEX(Dropdownmenu!$I$3:$I$16,MATCH(Overzichtsberekening!$G33,Dropdownmenu!$A$3:$A$16,0))*Overzichtsberekening!$J33*$I$4),"") ->  | AR12: =IFERROR(IF(INDEX(Dropdownmenu!$H$3:$H$117,MATCH(Overzichtsberekening!$G33,Dropdownmenu!$A$3:$A$117,0))<>"woningen bewoners",Overzichtsberekening!S33*INDEX($J$3:$J$18,MATCH(INDEX(Dropdownmenu!$H$3:$H$117,MATCH(Overzichtsberekening!$G33,Dropdownmenu!$A$3:$A$117,0)),$B$3:$B$18,0)),(Overzichtsberekening!S33-INDEX(Dropdownmenu!$I$3:$I$16,MATCH(Overzichtsberekening!$G33,Dropdownmenu!$A$3:$A$16,0))*Overzichtsberekening!$J33)*$J$3+INDEX(Dropdownmenu!$I$3:$I$16,MATCH(Overzichtsberekening!$G33,Dropdownmenu!$A$3:$A$16,0))*Overzichtsberekening!$J33*$J$4),"") ->  | AS12: =IFERROR(IF(INDEX(Dropdownmenu!$H$3:$H$117,MATCH(Overzichtsberekening!$G33,Dropdownmenu!$A$3:$A$117,0))<>"woningen bewoners",Overzichtsberekening!T33*INDEX($J$3:$J$18,MATCH(INDEX(Dropdownmenu!$H$3:$H$117,MATCH(Overzichtsberekening!$G33,Dropdownmenu!$A$3:$A$117,0)),$B$3:$B$18,0)),(Overzichtsberekening!T33-INDEX(Dropdownmenu!$I$3:$I$16,MATCH(Overzichtsberekening!$G33,Dropdownmenu!$A$3:$A$16,0))*Overzichtsberekening!$J33)*$J$3+INDEX(Dropdownmenu!$I$3:$I$16,MATCH(Overzichtsberekening!$G33,Dropdownmenu!$A$3:$A$16,0))*Overzichtsberekening!$J33*$J$4),"") -> 
B13: sociaal medisch: arts/therapeut/consultatiebureau | C13: 1 | D13: 0.75 | E13: 0.1 | F13: 0 | G13: 0.1 | H13: 0.1 | I13: 0.1 | J13: 0.1 | P13: =IFERROR(IF(INDEX(Dropdownmenu!$H$3:$H$117,MATCH(Overzichtsberekening!$G34,Dropdownmenu!$A$3:$A$117,0))<>"woningen bewoners",Overzichtsberekening!S34*INDEX($C$3:$C$18,MATCH(INDEX(Dropdownmenu!$H$3:$H$117,MATCH(Overzichtsberekening!$G34,Dropdownmenu!$A$3:$A$117,0)),$B$3:$B$18,0)),(Overzichtsberekening!S34-INDEX(Dropdownmenu!$I$3:$I$16,MATCH(Overzichtsberekening!$G34,Dropdownmenu!$A$3:$A$16,0))*Overzichtsberekening!$J34)*$C$3+INDEX(Dropdownmenu!$I$3:$I$16,MATCH(Overzichtsberekening!$G34,Dropdownmenu!$A$3:$A$16,0))*Overzichtsberekening!$J34*$C$4),"") ->  | Q13: =IFERROR(IF(INDEX(Dropdownmenu!$H$3:$H$117,MATCH(Overzichtsberekening!$G34,Dropdownmenu!$A$3:$A$117,0))<>"woningen bewoners",Overzichtsberekening!T34*INDEX($C$3:$C$18,MATCH(INDEX(Dropdownmenu!$H$3:$H$117,MATCH(Overzichtsberekening!$G34,Dropdownmenu!$A$3:$A$117,0)),$B$3:$B$18,0)),(Overzichtsberekening!T34-INDEX(Dropdownmenu!$I$3:$I$16,MATCH(Overzichtsberekening!$G34,Dropdownmenu!$A$3:$A$16,0))*Overzichtsberekening!$J34)*$C$3+INDEX(Dropdownmenu!$I$3:$I$16,MATCH(Overzichtsberekening!$G34,Dropdownmenu!$A$3:$A$16,0))*Overzichtsberekening!$J34*$C$4),"") ->  | T13: =IFERROR(IF(INDEX(Dropdownmenu!$H$3:$H$117,MATCH(Overzichtsberekening!$G34,Dropdownmenu!$A$3:$A$117,0))<>"woningen bewoners",Overzichtsberekening!S34*INDEX($D$3:$D$18,MATCH(INDEX(Dropdownmenu!$H$3:$H$117,MATCH(Overzichtsberekening!$G34,Dropdownmenu!$A$3:$A$117,0)),$B$3:$B$18,0)),(Overzichtsberekening!S34-INDEX(Dropdownmenu!$I$3:$I$16,MATCH(Overzichtsberekening!$G34,Dropdownmenu!$A$3:$A$16,0))*Overzichtsberekening!$J34)*$D$3+INDEX(Dropdownmenu!$I$3:$I$16,MATCH(Overzichtsberekening!$G34,Dropdownmenu!$A$3:$A$16,0))*Overzichtsberekening!$J34*$D$4),"") ->  | U13: =IFERROR(IF(INDEX(Dropdownmenu!$H$3:$H$117,MATCH(Overzichtsberekening!$G34,Dropdownmenu!$A$3:$A$117,0))<>"woningen bewoners",Overzichtsberekening!T34*INDEX($D$3:$D$18,MATCH(INDEX(Dropdownmenu!$H$3:$H$117,MATCH(Overzichtsberekening!$G34,Dropdownmenu!$A$3:$A$117,0)),$B$3:$B$18,0)),(Overzichtsberekening!T34-INDEX(Dropdownmenu!$I$3:$I$16,MATCH(Overzichtsberekening!$G34,Dropdownmenu!$A$3:$A$16,0))*Overzichtsberekening!$J34)*$D$3+INDEX(Dropdownmenu!$I$3:$I$16,MATCH(Overzichtsberekening!$G34,Dropdownmenu!$A$3:$A$16,0))*Overzichtsberekening!$J34*$D$4),"") ->  | X13: =IFERROR(IF(INDEX(Dropdownmenu!$H$3:$H$117,MATCH(Overzichtsberekening!$G34,Dropdownmenu!$A$3:$A$117,0))<>"woningen bewoners",Overzichtsberekening!S34*INDEX($E$3:$E$18,MATCH(INDEX(Dropdownmenu!$H$3:$H$117,MATCH(Overzichtsberekening!$G34,Dropdownmenu!$A$3:$A$117,0)),$B$3:$B$18,0)),(Overzichtsberekening!S34-INDEX(Dropdownmenu!$I$3:$I$16,MATCH(Overzichtsberekening!$G34,Dropdownmenu!$A$3:$A$16,0))*Overzichtsberekening!$J34)*$E$3+INDEX(Dropdownmenu!$I$3:$I$16,MATCH(Overzichtsberekening!$G34,Dropdownmenu!$A$3:$A$16,0))*Overzichtsberekening!$J34*$E$4),"") ->  | Y13: =IFERROR(IF(INDEX(Dropdownmenu!$H$3:$H$117,MATCH(Overzichtsberekening!$G34,Dropdownmenu!$A$3:$A$117,0))<>"woningen bewoners",Overzichtsberekening!T34*INDEX($E$3:$E$18,MATCH(INDEX(Dropdownmenu!$H$3:$H$117,MATCH(Overzichtsberekening!$G34,Dropdownmenu!$A$3:$A$117,0)),$B$3:$B$18,0)),(Overzichtsberekening!T34-INDEX(Dropdownmenu!$I$3:$I$16,MATCH(Overzichtsberekening!$G34,Dropdownmenu!$A$3:$A$16,0))*Overzichtsberekening!$J34)*$E$3+INDEX(Dropdownmenu!$I$3:$I$16,MATCH(Overzichtsberekening!$G34,Dropdownmenu!$A$3:$A$16,0))*Overzichtsberekening!$J34*$E$4),"") ->  | AB13: =IFERROR(IF(INDEX(Dropdownmenu!$H$3:$H$117,MATCH(Overzichtsberekening!$G34,Dropdownmenu!$A$3:$A$117,0))<>"woningen bewoners",Overzichtsberekening!S34*INDEX($F$3:$F$18,MATCH(INDEX(Dropdownmenu!$H$3:$H$117,MATCH(Overzichtsberekening!$G34,Dropdownmenu!$A$3:$A$117,0)),$B$3:$B$18,0)),(Overzichtsberekening!S34-INDEX(Dropdownmenu!$I$3:$I$16,MATCH(Overzichtsberekening!$G34,Dropdownmenu!$A$3:$A$16,0))*Overzichtsberekening!$J34)*$F$3+INDEX(Dropdownmenu!$I$3:$I$16,MATCH(Overzichtsberekening!$G34,Dropdownmenu!$A$3:$A$16,0))*Overzichtsberekening!$J34*$F$4),"") ->  | AC13: =IFERROR(IF(INDEX(Dropdownmenu!$H$3:$H$117,MATCH(Overzichtsberekening!$G34,Dropdownmenu!$A$3:$A$117,0))<>"woningen bewoners",Overzichtsberekening!T34*INDEX($F$3:$F$18,MATCH(INDEX(Dropdownmenu!$H$3:$H$117,MATCH(Overzichtsberekening!$G34,Dropdownmenu!$A$3:$A$117,0)),$B$3:$B$18,0)),(Overzichtsberekening!T34-INDEX(Dropdownmenu!$I$3:$I$16,MATCH(Overzichtsberekening!$G34,Dropdownmenu!$A$3:$A$16,0))*Overzichtsberekening!$J34)*$F$3+INDEX(Dropdownmenu!$I$3:$I$16,MATCH(Overzichtsberekening!$G34,Dropdownmenu!$A$3:$A$16,0))*Overzichtsberekening!$J34*$F$4),"") ->  | AF13: =IFERROR(IF(INDEX(Dropdownmenu!$H$3:$H$117,MATCH(Overzichtsberekening!$G34,Dropdownmenu!$A$3:$A$117,0))<>"woningen bewoners",Overzichtsberekening!S34*INDEX($G$3:$G$18,MATCH(INDEX(Dropdownmenu!$H$3:$H$117,MATCH(Overzichtsberekening!$G34,Dropdownmenu!$A$3:$A$117,0)),$B$3:$B$18,0)),(Overzichtsberekening!S34-INDEX(Dropdownmenu!$I$3:$I$16,MATCH(Overzichtsberekening!$G34,Dropdownmenu!$A$3:$A$16,0))*Overzichtsberekening!$J34)*$G$3+INDEX(Dropdownmenu!$I$3:$I$16,MATCH(Overzichtsberekening!$G34,Dropdownmenu!$A$3:$A$16,0))*Overzichtsberekening!$J34*$G$4),"") ->  | AG13: =IFERROR(IF(INDEX(Dropdownmenu!$H$3:$H$117,MATCH(Overzichtsberekening!$G34,Dropdownmenu!$A$3:$A$117,0))<>"woningen bewoners",Overzichtsberekening!T34*INDEX($G$3:$G$18,MATCH(INDEX(Dropdownmenu!$H$3:$H$117,MATCH(Overzichtsberekening!$G34,Dropdownmenu!$A$3:$A$117,0)),$B$3:$B$18,0)),(Overzichtsberekening!T34-INDEX(Dropdownmenu!$I$3:$I$16,MATCH(Overzichtsberekening!$G34,Dropdownmenu!$A$3:$A$16,0))*Overzichtsberekening!$J34)*$G$3+INDEX(Dropdownmenu!$I$3:$I$16,MATCH(Overzichtsberekening!$G34,Dropdownmenu!$A$3:$A$16,0))*Overzichtsberekening!$J34*$G$4),"") ->  | AJ13: =IFERROR(IF(INDEX(Dropdownmenu!$H$3:$H$117,MATCH(Overzichtsberekening!$G34,Dropdownmenu!$A$3:$A$117,0))<>"woningen bewoners",Overzichtsberekening!S34*INDEX($H$3:$H$18,MATCH(INDEX(Dropdownmenu!$H$3:$H$117,MATCH(Overzichtsberekening!$G34,Dropdownmenu!$A$3:$A$117,0)),$B$3:$B$18,0)),(Overzichtsberekening!S34-INDEX(Dropdownmenu!$I$3:$I$16,MATCH(Overzichtsberekening!$G34,Dropdownmenu!$A$3:$A$16,0))*Overzichtsberekening!$J34)*$H$3+INDEX(Dropdownmenu!$I$3:$I$16,MATCH(Overzichtsberekening!$G34,Dropdownmenu!$A$3:$A$16,0))*Overzichtsberekening!$J34*$H$4),"") ->  | AK13: =IFERROR(IF(INDEX(Dropdownmenu!$H$3:$H$117,MATCH(Overzichtsberekening!$G34,Dropdownmenu!$A$3:$A$117,0))<>"woningen bewoners",Overzichtsberekening!T34*INDEX($H$3:$H$18,MATCH(INDEX(Dropdownmenu!$H$3:$H$117,MATCH(Overzichtsberekening!$G34,Dropdownmenu!$A$3:$A$117,0)),$B$3:$B$18,0)),(Overzichtsberekening!T34-INDEX(Dropdownmenu!$I$3:$I$16,MATCH(Overzichtsberekening!$G34,Dropdownmenu!$A$3:$A$16,0))*Overzichtsberekening!$J34)*$H$3+INDEX(Dropdownmenu!$I$3:$I$16,MATCH(Overzichtsberekening!$G34,Dropdownmenu!$A$3:$A$16,0))*Overzichtsberekening!$J34*$H$4),"") ->  | AN13: =IFERROR(IF(INDEX(Dropdownmenu!$H$3:$H$117,MATCH(Overzichtsberekening!$G34,Dropdownmenu!$A$3:$A$117,0))<>"woningen bewoners",Overzichtsberekening!S34*INDEX($I$3:$I$18,MATCH(INDEX(Dropdownmenu!$H$3:$H$117,MATCH(Overzichtsberekening!$G34,Dropdownmenu!$A$3:$A$117,0)),$B$3:$B$18,0)),(Overzichtsberekening!S34-INDEX(Dropdownmenu!$I$3:$I$16,MATCH(Overzichtsberekening!$G34,Dropdownmenu!$A$3:$A$16,0))*Overzichtsberekening!$J34)*$I$3+INDEX(Dropdownmenu!$I$3:$I$16,MATCH(Overzichtsberekening!$G34,Dropdownmenu!$A$3:$A$16,0))*Overzichtsberekening!$J34*$I$4),"") ->  | AO13: =IFERROR(IF(INDEX(Dropdownmenu!$H$3:$H$117,MATCH(Overzichtsberekening!$G34,Dropdownmenu!$A$3:$A$117,0))<>"woningen bewoners",Overzichtsberekening!T34*INDEX($I$3:$I$18,MATCH(INDEX(Dropdownmenu!$H$3:$H$117,MATCH(Overzichtsberekening!$G34,Dropdownmenu!$A$3:$A$117,0)),$B$3:$B$18,0)),(Overzichtsberekening!T34-INDEX(Dropdownmenu!$I$3:$I$16,MATCH(Overzichtsberekening!$G34,Dropdownmenu!$A$3:$A$16,0))*Overzichtsberekening!$J34)*$I$3+INDEX(Dropdownmenu!$I$3:$I$16,MATCH(Overzichtsberekening!$G34,Dropdownmenu!$A$3:$A$16,0))*Overzichtsberekening!$J34*$I$4),"") ->  | AR13: =IFERROR(IF(INDEX(Dropdownmenu!$H$3:$H$117,MATCH(Overzichtsberekening!$G34,Dropdownmenu!$A$3:$A$117,0))<>"woningen bewoners",Overzichtsberekening!S34*INDEX($J$3:$J$18,MATCH(INDEX(Dropdownmenu!$H$3:$H$117,MATCH(Overzichtsberekening!$G34,Dropdownmenu!$A$3:$A$117,0)),$B$3:$B$18,0)),(Overzichtsberekening!S34-INDEX(Dropdownmenu!$I$3:$I$16,MATCH(Overzichtsberekening!$G34,Dropdownmenu!$A$3:$A$16,0))*Overzichtsberekening!$J34)*$J$3+INDEX(Dropdownmenu!$I$3:$I$16,MATCH(Overzichtsberekening!$G34,Dropdownmenu!$A$3:$A$16,0))*Overzichtsberekening!$J34*$J$4),"") ->  | AS13: =IFERROR(IF(INDEX(Dropdownmenu!$H$3:$H$117,MATCH(Overzichtsberekening!$G34,Dropdownmenu!$A$3:$A$117,0))<>"woningen bewoners",Overzichtsberekening!T34*INDEX($J$3:$J$18,MATCH(INDEX(Dropdownmenu!$H$3:$H$117,MATCH(Overzichtsberekening!$G34,Dropdownmenu!$A$3:$A$117,0)),$B$3:$B$18,0)),(Overzichtsberekening!T34-INDEX(Dropdownmenu!$I$3:$I$16,MATCH(Overzichtsberekening!$G34,Dropdownmenu!$A$3:$A$16,0))*Overzichtsberekening!$J34)*$J$3+INDEX(Dropdownmenu!$I$3:$I$16,MATCH(Overzichtsberekening!$G34,Dropdownmenu!$A$3:$A$16,0))*Overzichtsberekening!$J34*$J$4),"") -> 
B14: verpleeghuis/verzorgingstehuis | C14: 1 | D14: 1 | E14: 0.5 | F14: 0.25 | G14: 0.5 | H14: 1 | I14: 1 | J14: 1 | P14: =IFERROR(IF(INDEX(Dropdownmenu!$H$3:$H$117,MATCH(Overzichtsberekening!$G35,Dropdownmenu!$A$3:$A$117,0))<>"woningen bewoners",Overzichtsberekening!S35*INDEX($C$3:$C$18,MATCH(INDEX(Dropdownmenu!$H$3:$H$117,MATCH(Overzichtsberekening!$G35,Dropdownmenu!$A$3:$A$117,0)),$B$3:$B$18,0)),(Overzichtsberekening!S35-INDEX(Dropdownmenu!$I$3:$I$16,MATCH(Overzichtsberekening!$G35,Dropdownmenu!$A$3:$A$16,0))*Overzichtsberekening!$J35)*$C$3+INDEX(Dropdownmenu!$I$3:$I$16,MATCH(Overzichtsberekening!$G35,Dropdownmenu!$A$3:$A$16,0))*Overzichtsberekening!$J35*$C$4),"") ->  | Q14: =IFERROR(IF(INDEX(Dropdownmenu!$H$3:$H$117,MATCH(Overzichtsberekening!$G35,Dropdownmenu!$A$3:$A$117,0))<>"woningen bewoners",Overzichtsberekening!T35*INDEX($C$3:$C$18,MATCH(INDEX(Dropdownmenu!$H$3:$H$117,MATCH(Overzichtsberekening!$G35,Dropdownmenu!$A$3:$A$117,0)),$B$3:$B$18,0)),(Overzichtsberekening!T35-INDEX(Dropdownmenu!$I$3:$I$16,MATCH(Overzichtsberekening!$G35,Dropdownmenu!$A$3:$A$16,0))*Overzichtsberekening!$J35)*$C$3+INDEX(Dropdownmenu!$I$3:$I$16,MATCH(Overzichtsberekening!$G35,Dropdownmenu!$A$3:$A$16,0))*Overzichtsberekening!$J35*$C$4),"") ->  | T14: =IFERROR(IF(INDEX(Dropdownmenu!$H$3:$H$117,MATCH(Overzichtsberekening!$G35,Dropdownmenu!$A$3:$A$117,0))<>"woningen bewoners",Overzichtsberekening!S35*INDEX($D$3:$D$18,MATCH(INDEX(Dropdownmenu!$H$3:$H$117,MATCH(Overzichtsberekening!$G35,Dropdownmenu!$A$3:$A$117,0)),$B$3:$B$18,0)),(Overzichtsberekening!S35-INDEX(Dropdownmenu!$I$3:$I$16,MATCH(Overzichtsberekening!$G35,Dropdownmenu!$A$3:$A$16,0))*Overzichtsberekening!$J35)*$D$3+INDEX(Dropdownmenu!$I$3:$I$16,MATCH(Overzichtsberekening!$G35,Dropdownmenu!$A$3:$A$16,0))*Overzichtsberekening!$J35*$D$4),"") ->  | U14: =IFERROR(IF(INDEX(Dropdownmenu!$H$3:$H$117,MATCH(Overzichtsberekening!$G35,Dropdownmenu!$A$3:$A$117,0))<>"woningen bewoners",Overzichtsberekening!T35*INDEX($D$3:$D$18,MATCH(INDEX(Dropdownmenu!$H$3:$H$117,MATCH(Overzichtsberekening!$G35,Dropdownmenu!$A$3:$A$117,0)),$B$3:$B$18,0)),(Overzichtsberekening!T35-INDEX(Dropdownmenu!$I$3:$I$16,MATCH(Overzichtsberekening!$G35,Dropdownmenu!$A$3:$A$16,0))*Overzichtsberekening!$J35)*$D$3+INDEX(Dropdownmenu!$I$3:$I$16,MATCH(Overzichtsberekening!$G35,Dropdownmenu!$A$3:$A$16,0))*Overzichtsberekening!$J35*$D$4),"") ->  | X14: =IFERROR(IF(INDEX(Dropdownmenu!$H$3:$H$117,MATCH(Overzichtsberekening!$G35,Dropdownmenu!$A$3:$A$117,0))<>"woningen bewoners",Overzichtsberekening!S35*INDEX($E$3:$E$18,MATCH(INDEX(Dropdownmenu!$H$3:$H$117,MATCH(Overzichtsberekening!$G35,Dropdownmenu!$A$3:$A$117,0)),$B$3:$B$18,0)),(Overzichtsberekening!S35-INDEX(Dropdownmenu!$I$3:$I$16,MATCH(Overzichtsberekening!$G35,Dropdownmenu!$A$3:$A$16,0))*Overzichtsberekening!$J35)*$E$3+INDEX(Dropdownmenu!$I$3:$I$16,MATCH(Overzichtsberekening!$G35,Dropdownmenu!$A$3:$A$16,0))*Overzichtsberekening!$J35*$E$4),"") ->  | Y14: =IFERROR(IF(INDEX(Dropdownmenu!$H$3:$H$117,MATCH(Overzichtsberekening!$G35,Dropdownmenu!$A$3:$A$117,0))<>"woningen bewoners",Overzichtsberekening!T35*INDEX($E$3:$E$18,MATCH(INDEX(Dropdownmenu!$H$3:$H$117,MATCH(Overzichtsberekening!$G35,Dropdownmenu!$A$3:$A$117,0)),$B$3:$B$18,0)),(Overzichtsberekening!T35-INDEX(Dropdownmenu!$I$3:$I$16,MATCH(Overzichtsberekening!$G35,Dropdownmenu!$A$3:$A$16,0))*Overzichtsberekening!$J35)*$E$3+INDEX(Dropdownmenu!$I$3:$I$16,MATCH(Overzichtsberekening!$G35,Dropdownmenu!$A$3:$A$16,0))*Overzichtsberekening!$J35*$E$4),"") ->  | AB14: =IFERROR(IF(INDEX(Dropdownmenu!$H$3:$H$117,MATCH(Overzichtsberekening!$G35,Dropdownmenu!$A$3:$A$117,0))<>"woningen bewoners",Overzichtsberekening!S35*INDEX($F$3:$F$18,MATCH(INDEX(Dropdownmenu!$H$3:$H$117,MATCH(Overzichtsberekening!$G35,Dropdownmenu!$A$3:$A$117,0)),$B$3:$B$18,0)),(Overzichtsberekening!S35-INDEX(Dropdownmenu!$I$3:$I$16,MATCH(Overzichtsberekening!$G35,Dropdownmenu!$A$3:$A$16,0))*Overzichtsberekening!$J35)*$F$3+INDEX(Dropdownmenu!$I$3:$I$16,MATCH(Overzichtsberekening!$G35,Dropdownmenu!$A$3:$A$16,0))*Overzichtsberekening!$J35*$F$4),"") ->  | AC14: =IFERROR(IF(INDEX(Dropdownmenu!$H$3:$H$117,MATCH(Overzichtsberekening!$G35,Dropdownmenu!$A$3:$A$117,0))<>"woningen bewoners",Overzichtsberekening!T35*INDEX($F$3:$F$18,MATCH(INDEX(Dropdownmenu!$H$3:$H$117,MATCH(Overzichtsberekening!$G35,Dropdownmenu!$A$3:$A$117,0)),$B$3:$B$18,0)),(Overzichtsberekening!T35-INDEX(Dropdownmenu!$I$3:$I$16,MATCH(Overzichtsberekening!$G35,Dropdownmenu!$A$3:$A$16,0))*Overzichtsberekening!$J35)*$F$3+INDEX(Dropdownmenu!$I$3:$I$16,MATCH(Overzichtsberekening!$G35,Dropdownmenu!$A$3:$A$16,0))*Overzichtsberekening!$J35*$F$4),"") ->  | AF14: =IFERROR(IF(INDEX(Dropdownmenu!$H$3:$H$117,MATCH(Overzichtsberekening!$G35,Dropdownmenu!$A$3:$A$117,0))<>"woningen bewoners",Overzichtsberekening!S35*INDEX($G$3:$G$18,MATCH(INDEX(Dropdownmenu!$H$3:$H$117,MATCH(Overzichtsberekening!$G35,Dropdownmenu!$A$3:$A$117,0)),$B$3:$B$18,0)),(Overzichtsberekening!S35-INDEX(Dropdownmenu!$I$3:$I$16,MATCH(Overzichtsberekening!$G35,Dropdownmenu!$A$3:$A$16,0))*Overzichtsberekening!$J35)*$G$3+INDEX(Dropdownmenu!$I$3:$I$16,MATCH(Overzichtsberekening!$G35,Dropdownmenu!$A$3:$A$16,0))*Overzichtsberekening!$J35*$G$4),"") ->  | AG14: =IFERROR(IF(INDEX(Dropdownmenu!$H$3:$H$117,MATCH(Overzichtsberekening!$G35,Dropdownmenu!$A$3:$A$117,0))<>"woningen bewoners",Overzichtsberekening!T35*INDEX($G$3:$G$18,MATCH(INDEX(Dropdownmenu!$H$3:$H$117,MATCH(Overzichtsberekening!$G35,Dropdownmenu!$A$3:$A$117,0)),$B$3:$B$18,0)),(Overzichtsberekening!T35-INDEX(Dropdownmenu!$I$3:$I$16,MATCH(Overzichtsberekening!$G35,Dropdownmenu!$A$3:$A$16,0))*Overzichtsberekening!$J35)*$G$3+INDEX(Dropdownmenu!$I$3:$I$16,MATCH(Overzichtsberekening!$G35,Dropdownmenu!$A$3:$A$16,0))*Overzichtsberekening!$J35*$G$4),"") ->  | AJ14: =IFERROR(IF(INDEX(Dropdownmenu!$H$3:$H$117,MATCH(Overzichtsberekening!$G35,Dropdownmenu!$A$3:$A$117,0))<>"woningen bewoners",Overzichtsberekening!S35*INDEX($H$3:$H$18,MATCH(INDEX(Dropdownmenu!$H$3:$H$117,MATCH(Overzichtsberekening!$G35,Dropdownmenu!$A$3:$A$117,0)),$B$3:$B$18,0)),(Overzichtsberekening!S35-INDEX(Dropdownmenu!$I$3:$I$16,MATCH(Overzichtsberekening!$G35,Dropdownmenu!$A$3:$A$16,0))*Overzichtsberekening!$J35)*$H$3+INDEX(Dropdownmenu!$I$3:$I$16,MATCH(Overzichtsberekening!$G35,Dropdownmenu!$A$3:$A$16,0))*Overzichtsberekening!$J35*$H$4),"") ->  | AK14: =IFERROR(IF(INDEX(Dropdownmenu!$H$3:$H$117,MATCH(Overzichtsberekening!$G35,Dropdownmenu!$A$3:$A$117,0))<>"woningen bewoners",Overzichtsberekening!T35*INDEX($H$3:$H$18,MATCH(INDEX(Dropdownmenu!$H$3:$H$117,MATCH(Overzichtsberekening!$G35,Dropdownmenu!$A$3:$A$117,0)),$B$3:$B$18,0)),(Overzichtsberekening!T35-INDEX(Dropdownmenu!$I$3:$I$16,MATCH(Overzichtsberekening!$G35,Dropdownmenu!$A$3:$A$16,0))*Overzichtsberekening!$J35)*$H$3+INDEX(Dropdownmenu!$I$3:$I$16,MATCH(Overzichtsberekening!$G35,Dropdownmenu!$A$3:$A$16,0))*Overzichtsberekening!$J35*$H$4),"") ->  | AN14: =IFERROR(IF(INDEX(Dropdownmenu!$H$3:$H$117,MATCH(Overzichtsberekening!$G35,Dropdownmenu!$A$3:$A$117,0))<>"woningen bewoners",Overzichtsberekening!S35*INDEX($I$3:$I$18,MATCH(INDEX(Dropdownmenu!$H$3:$H$117,MATCH(Overzichtsberekening!$G35,Dropdownmenu!$A$3:$A$117,0)),$B$3:$B$18,0)),(Overzichtsberekening!S35-INDEX(Dropdownmenu!$I$3:$I$16,MATCH(Overzichtsberekening!$G35,Dropdownmenu!$A$3:$A$16,0))*Overzichtsberekening!$J35)*$I$3+INDEX(Dropdownmenu!$I$3:$I$16,MATCH(Overzichtsberekening!$G35,Dropdownmenu!$A$3:$A$16,0))*Overzichtsberekening!$J35*$I$4),"") ->  | AO14: =IFERROR(IF(INDEX(Dropdownmenu!$H$3:$H$117,MATCH(Overzichtsberekening!$G35,Dropdownmenu!$A$3:$A$117,0))<>"woningen bewoners",Overzichtsberekening!T35*INDEX($I$3:$I$18,MATCH(INDEX(Dropdownmenu!$H$3:$H$117,MATCH(Overzichtsberekening!$G35,Dropdownmenu!$A$3:$A$117,0)),$B$3:$B$18,0)),(Overzichtsberekening!T35-INDEX(Dropdownmenu!$I$3:$I$16,MATCH(Overzichtsberekening!$G35,Dropdownmenu!$A$3:$A$16,0))*Overzichtsberekening!$J35)*$I$3+INDEX(Dropdownmenu!$I$3:$I$16,MATCH(Overzichtsberekening!$G35,Dropdownmenu!$A$3:$A$16,0))*Overzichtsberekening!$J35*$I$4),"") ->  | AR14: =IFERROR(IF(INDEX(Dropdownmenu!$H$3:$H$117,MATCH(Overzichtsberekening!$G35,Dropdownmenu!$A$3:$A$117,0))<>"woningen bewoners",Overzichtsberekening!S35*INDEX($J$3:$J$18,MATCH(INDEX(Dropdownmenu!$H$3:$H$117,MATCH(Overzichtsberekening!$G35,Dropdownmenu!$A$3:$A$117,0)),$B$3:$B$18,0)),(Overzichtsberekening!S35-INDEX(Dropdownmenu!$I$3:$I$16,MATCH(Overzichtsberekening!$G35,Dropdownmenu!$A$3:$A$16,0))*Overzichtsberekening!$J35)*$J$3+INDEX(Dropdownmenu!$I$3:$I$16,MATCH(Overzichtsberekening!$G35,Dropdownmenu!$A$3:$A$16,0))*Overzichtsberekening!$J35*$J$4),"") ->  | AS14: =IFERROR(IF(INDEX(Dropdownmenu!$H$3:$H$117,MATCH(Overzichtsberekening!$G35,Dropdownmenu!$A$3:$A$117,0))<>"woningen bewoners",Overzichtsberekening!T35*INDEX($J$3:$J$18,MATCH(INDEX(Dropdownmenu!$H$3:$H$117,MATCH(Overzichtsberekening!$G35,Dropdownmenu!$A$3:$A$117,0)),$B$3:$B$18,0)),(Overzichtsberekening!T35-INDEX(Dropdownmenu!$I$3:$I$16,MATCH(Overzichtsberekening!$G35,Dropdownmenu!$A$3:$A$16,0))*Overzichtsberekening!$J35)*$J$3+INDEX(Dropdownmenu!$I$3:$I$16,MATCH(Overzichtsberekening!$G35,Dropdownmenu!$A$3:$A$16,0))*Overzichtsberekening!$J35*$J$4),"") -> 
B15: ziekenhuis: patiënten inclusief bezoekers | C15: 0.6 | D15: 1 | E15: 0.6 | F15: 0.05 | G15: 0.6 | H15: 0.6 | I15: 0.6 | J15: 0.6 | P15: =IFERROR(IF(INDEX(Dropdownmenu!$H$3:$H$117,MATCH(Overzichtsberekening!$G36,Dropdownmenu!$A$3:$A$117,0))<>"woningen bewoners",Overzichtsberekening!S36*INDEX($C$3:$C$18,MATCH(INDEX(Dropdownmenu!$H$3:$H$117,MATCH(Overzichtsberekening!$G36,Dropdownmenu!$A$3:$A$117,0)),$B$3:$B$18,0)),(Overzichtsberekening!S36-INDEX(Dropdownmenu!$I$3:$I$16,MATCH(Overzichtsberekening!$G36,Dropdownmenu!$A$3:$A$16,0))*Overzichtsberekening!$J36)*$C$3+INDEX(Dropdownmenu!$I$3:$I$16,MATCH(Overzichtsberekening!$G36,Dropdownmenu!$A$3:$A$16,0))*Overzichtsberekening!$J36*$C$4),"") ->  | Q15: =IFERROR(IF(INDEX(Dropdownmenu!$H$3:$H$117,MATCH(Overzichtsberekening!$G36,Dropdownmenu!$A$3:$A$117,0))<>"woningen bewoners",Overzichtsberekening!T36*INDEX($C$3:$C$18,MATCH(INDEX(Dropdownmenu!$H$3:$H$117,MATCH(Overzichtsberekening!$G36,Dropdownmenu!$A$3:$A$117,0)),$B$3:$B$18,0)),(Overzichtsberekening!T36-INDEX(Dropdownmenu!$I$3:$I$16,MATCH(Overzichtsberekening!$G36,Dropdownmenu!$A$3:$A$16,0))*Overzichtsberekening!$J36)*$C$3+INDEX(Dropdownmenu!$I$3:$I$16,MATCH(Overzichtsberekening!$G36,Dropdownmenu!$A$3:$A$16,0))*Overzichtsberekening!$J36*$C$4),"") ->  | T15: =IFERROR(IF(INDEX(Dropdownmenu!$H$3:$H$117,MATCH(Overzichtsberekening!$G36,Dropdownmenu!$A$3:$A$117,0))<>"woningen bewoners",Overzichtsberekening!S36*INDEX($D$3:$D$18,MATCH(INDEX(Dropdownmenu!$H$3:$H$117,MATCH(Overzichtsberekening!$G36,Dropdownmenu!$A$3:$A$117,0)),$B$3:$B$18,0)),(Overzichtsberekening!S36-INDEX(Dropdownmenu!$I$3:$I$16,MATCH(Overzichtsberekening!$G36,Dropdownmenu!$A$3:$A$16,0))*Overzichtsberekening!$J36)*$D$3+INDEX(Dropdownmenu!$I$3:$I$16,MATCH(Overzichtsberekening!$G36,Dropdownmenu!$A$3:$A$16,0))*Overzichtsberekening!$J36*$D$4),"") ->  | U15: =IFERROR(IF(INDEX(Dropdownmenu!$H$3:$H$117,MATCH(Overzichtsberekening!$G36,Dropdownmenu!$A$3:$A$117,0))<>"woningen bewoners",Overzichtsberekening!T36*INDEX($D$3:$D$18,MATCH(INDEX(Dropdownmenu!$H$3:$H$117,MATCH(Overzichtsberekening!$G36,Dropdownmenu!$A$3:$A$117,0)),$B$3:$B$18,0)),(Overzichtsberekening!T36-INDEX(Dropdownmenu!$I$3:$I$16,MATCH(Overzichtsberekening!$G36,Dropdownmenu!$A$3:$A$16,0))*Overzichtsberekening!$J36)*$D$3+INDEX(Dropdownmenu!$I$3:$I$16,MATCH(Overzichtsberekening!$G36,Dropdownmenu!$A$3:$A$16,0))*Overzichtsberekening!$J36*$D$4),"") ->  | X15: =IFERROR(IF(INDEX(Dropdownmenu!$H$3:$H$117,MATCH(Overzichtsberekening!$G36,Dropdownmenu!$A$3:$A$117,0))<>"woningen bewoners",Overzichtsberekening!S36*INDEX($E$3:$E$18,MATCH(INDEX(Dropdownmenu!$H$3:$H$117,MATCH(Overzichtsberekening!$G36,Dropdownmenu!$A$3:$A$117,0)),$B$3:$B$18,0)),(Overzichtsberekening!S36-INDEX(Dropdownmenu!$I$3:$I$16,MATCH(Overzichtsberekening!$G36,Dropdownmenu!$A$3:$A$16,0))*Overzichtsberekening!$J36)*$E$3+INDEX(Dropdownmenu!$I$3:$I$16,MATCH(Overzichtsberekening!$G36,Dropdownmenu!$A$3:$A$16,0))*Overzichtsberekening!$J36*$E$4),"") ->  | Y15: =IFERROR(IF(INDEX(Dropdownmenu!$H$3:$H$117,MATCH(Overzichtsberekening!$G36,Dropdownmenu!$A$3:$A$117,0))<>"woningen bewoners",Overzichtsberekening!T36*INDEX($E$3:$E$18,MATCH(INDEX(Dropdownmenu!$H$3:$H$117,MATCH(Overzichtsberekening!$G36,Dropdownmenu!$A$3:$A$117,0)),$B$3:$B$18,0)),(Overzichtsberekening!T36-INDEX(Dropdownmenu!$I$3:$I$16,MATCH(Overzichtsberekening!$G36,Dropdownmenu!$A$3:$A$16,0))*Overzichtsberekening!$J36)*$E$3+INDEX(Dropdownmenu!$I$3:$I$16,MATCH(Overzichtsberekening!$G36,Dropdownmenu!$A$3:$A$16,0))*Overzichtsberekening!$J36*$E$4),"") ->  | AB15: =IFERROR(IF(INDEX(Dropdownmenu!$H$3:$H$117,MATCH(Overzichtsberekening!$G36,Dropdownmenu!$A$3:$A$117,0))<>"woningen bewoners",Overzichtsberekening!S36*INDEX($F$3:$F$18,MATCH(INDEX(Dropdownmenu!$H$3:$H$117,MATCH(Overzichtsberekening!$G36,Dropdownmenu!$A$3:$A$117,0)),$B$3:$B$18,0)),(Overzichtsberekening!S36-INDEX(Dropdownmenu!$I$3:$I$16,MATCH(Overzichtsberekening!$G36,Dropdownmenu!$A$3:$A$16,0))*Overzichtsberekening!$J36)*$F$3+INDEX(Dropdownmenu!$I$3:$I$16,MATCH(Overzichtsberekening!$G36,Dropdownmenu!$A$3:$A$16,0))*Overzichtsberekening!$J36*$F$4),"") ->  | AC15: =IFERROR(IF(INDEX(Dropdownmenu!$H$3:$H$117,MATCH(Overzichtsberekening!$G36,Dropdownmenu!$A$3:$A$117,0))<>"woningen bewoners",Overzichtsberekening!T36*INDEX($F$3:$F$18,MATCH(INDEX(Dropdownmenu!$H$3:$H$117,MATCH(Overzichtsberekening!$G36,Dropdownmenu!$A$3:$A$117,0)),$B$3:$B$18,0)),(Overzichtsberekening!T36-INDEX(Dropdownmenu!$I$3:$I$16,MATCH(Overzichtsberekening!$G36,Dropdownmenu!$A$3:$A$16,0))*Overzichtsberekening!$J36)*$F$3+INDEX(Dropdownmenu!$I$3:$I$16,MATCH(Overzichtsberekening!$G36,Dropdownmenu!$A$3:$A$16,0))*Overzichtsberekening!$J36*$F$4),"") ->  | AF15: =IFERROR(IF(INDEX(Dropdownmenu!$H$3:$H$117,MATCH(Overzichtsberekening!$G36,Dropdownmenu!$A$3:$A$117,0))<>"woningen bewoners",Overzichtsberekening!S36*INDEX($G$3:$G$18,MATCH(INDEX(Dropdownmenu!$H$3:$H$117,MATCH(Overzichtsberekening!$G36,Dropdownmenu!$A$3:$A$117,0)),$B$3:$B$18,0)),(Overzichtsberekening!S36-INDEX(Dropdownmenu!$I$3:$I$16,MATCH(Overzichtsberekening!$G36,Dropdownmenu!$A$3:$A$16,0))*Overzichtsberekening!$J36)*$G$3+INDEX(Dropdownmenu!$I$3:$I$16,MATCH(Overzichtsberekening!$G36,Dropdownmenu!$A$3:$A$16,0))*Overzichtsberekening!$J36*$G$4),"") ->  | AG15: =IFERROR(IF(INDEX(Dropdownmenu!$H$3:$H$117,MATCH(Overzichtsberekening!$G36,Dropdownmenu!$A$3:$A$117,0))<>"woningen bewoners",Overzichtsberekening!T36*INDEX($G$3:$G$18,MATCH(INDEX(Dropdownmenu!$H$3:$H$117,MATCH(Overzichtsberekening!$G36,Dropdownmenu!$A$3:$A$117,0)),$B$3:$B$18,0)),(Overzichtsberekening!T36-INDEX(Dropdownmenu!$I$3:$I$16,MATCH(Overzichtsberekening!$G36,Dropdownmenu!$A$3:$A$16,0))*Overzichtsberekening!$J36)*$G$3+INDEX(Dropdownmenu!$I$3:$I$16,MATCH(Overzichtsberekening!$G36,Dropdownmenu!$A$3:$A$16,0))*Overzichtsberekening!$J36*$G$4),"") ->  | AJ15: =IFERROR(IF(INDEX(Dropdownmenu!$H$3:$H$117,MATCH(Overzichtsberekening!$G36,Dropdownmenu!$A$3:$A$117,0))<>"woningen bewoners",Overzichtsberekening!S36*INDEX($H$3:$H$18,MATCH(INDEX(Dropdownmenu!$H$3:$H$117,MATCH(Overzichtsberekening!$G36,Dropdownmenu!$A$3:$A$117,0)),$B$3:$B$18,0)),(Overzichtsberekening!S36-INDEX(Dropdownmenu!$I$3:$I$16,MATCH(Overzichtsberekening!$G36,Dropdownmenu!$A$3:$A$16,0))*Overzichtsberekening!$J36)*$H$3+INDEX(Dropdownmenu!$I$3:$I$16,MATCH(Overzichtsberekening!$G36,Dropdownmenu!$A$3:$A$16,0))*Overzichtsberekening!$J36*$H$4),"") ->  | AK15: =IFERROR(IF(INDEX(Dropdownmenu!$H$3:$H$117,MATCH(Overzichtsberekening!$G36,Dropdownmenu!$A$3:$A$117,0))<>"woningen bewoners",Overzichtsberekening!T36*INDEX($H$3:$H$18,MATCH(INDEX(Dropdownmenu!$H$3:$H$117,MATCH(Overzichtsberekening!$G36,Dropdownmenu!$A$3:$A$117,0)),$B$3:$B$18,0)),(Overzichtsberekening!T36-INDEX(Dropdownmenu!$I$3:$I$16,MATCH(Overzichtsberekening!$G36,Dropdownmenu!$A$3:$A$16,0))*Overzichtsberekening!$J36)*$H$3+INDEX(Dropdownmenu!$I$3:$I$16,MATCH(Overzichtsberekening!$G36,Dropdownmenu!$A$3:$A$16,0))*Overzichtsberekening!$J36*$H$4),"") ->  | AN15: =IFERROR(IF(INDEX(Dropdownmenu!$H$3:$H$117,MATCH(Overzichtsberekening!$G36,Dropdownmenu!$A$3:$A$117,0))<>"woningen bewoners",Overzichtsberekening!S36*INDEX($I$3:$I$18,MATCH(INDEX(Dropdownmenu!$H$3:$H$117,MATCH(Overzichtsberekening!$G36,Dropdownmenu!$A$3:$A$117,0)),$B$3:$B$18,0)),(Overzichtsberekening!S36-INDEX(Dropdownmenu!$I$3:$I$16,MATCH(Overzichtsberekening!$G36,Dropdownmenu!$A$3:$A$16,0))*Overzichtsberekening!$J36)*$I$3+INDEX(Dropdownmenu!$I$3:$I$16,MATCH(Overzichtsberekening!$G36,Dropdownmenu!$A$3:$A$16,0))*Overzichtsberekening!$J36*$I$4),"") ->  | AO15: =IFERROR(IF(INDEX(Dropdownmenu!$H$3:$H$117,MATCH(Overzichtsberekening!$G36,Dropdownmenu!$A$3:$A$117,0))<>"woningen bewoners",Overzichtsberekening!T36*INDEX($I$3:$I$18,MATCH(INDEX(Dropdownmenu!$H$3:$H$117,MATCH(Overzichtsberekening!$G36,Dropdownmenu!$A$3:$A$117,0)),$B$3:$B$18,0)),(Overzichtsberekening!T36-INDEX(Dropdownmenu!$I$3:$I$16,MATCH(Overzichtsberekening!$G36,Dropdownmenu!$A$3:$A$16,0))*Overzichtsberekening!$J36)*$I$3+INDEX(Dropdownmenu!$I$3:$I$16,MATCH(Overzichtsberekening!$G36,Dropdownmenu!$A$3:$A$16,0))*Overzichtsberekening!$J36*$I$4),"") ->  | AR15: =IFERROR(IF(INDEX(Dropdownmenu!$H$3:$H$117,MATCH(Overzichtsberekening!$G36,Dropdownmenu!$A$3:$A$117,0))<>"woningen bewoners",Overzichtsberekening!S36*INDEX($J$3:$J$18,MATCH(INDEX(Dropdownmenu!$H$3:$H$117,MATCH(Overzichtsberekening!$G36,Dropdownmenu!$A$3:$A$117,0)),$B$3:$B$18,0)),(Overzichtsberekening!S36-INDEX(Dropdownmenu!$I$3:$I$16,MATCH(Overzichtsberekening!$G36,Dropdownmenu!$A$3:$A$16,0))*Overzichtsberekening!$J36)*$J$3+INDEX(Dropdownmenu!$I$3:$I$16,MATCH(Overzichtsberekening!$G36,Dropdownmenu!$A$3:$A$16,0))*Overzichtsberekening!$J36*$J$4),"") ->  | AS15: =IFERROR(IF(INDEX(Dropdownmenu!$H$3:$H$117,MATCH(Overzichtsberekening!$G36,Dropdownmenu!$A$3:$A$117,0))<>"woningen bewoners",Overzichtsberekening!T36*INDEX($J$3:$J$18,MATCH(INDEX(Dropdownmenu!$H$3:$H$117,MATCH(Overzichtsberekening!$G36,Dropdownmenu!$A$3:$A$117,0)),$B$3:$B$18,0)),(Overzichtsberekening!T36-INDEX(Dropdownmenu!$I$3:$I$16,MATCH(Overzichtsberekening!$G36,Dropdownmenu!$A$3:$A$16,0))*Overzichtsberekening!$J36)*$J$3+INDEX(Dropdownmenu!$I$3:$I$16,MATCH(Overzichtsberekening!$G36,Dropdownmenu!$A$3:$A$16,0))*Overzichtsberekening!$J36*$J$4),"") -> 
B16: ziekenhuis medewerkers | C16: 0.75 | D16: 1 | E16: 0.4 | F16: 0.25 | G16: 0.4 | H16: 0.4 | I16: 0.4 | J16: 0.4 | P16: =IFERROR(IF(INDEX(Dropdownmenu!$H$3:$H$117,MATCH(Overzichtsberekening!$G37,Dropdownmenu!$A$3:$A$117,0))<>"woningen bewoners",Overzichtsberekening!S37*INDEX($C$3:$C$18,MATCH(INDEX(Dropdownmenu!$H$3:$H$117,MATCH(Overzichtsberekening!$G37,Dropdownmenu!$A$3:$A$117,0)),$B$3:$B$18,0)),(Overzichtsberekening!S37-INDEX(Dropdownmenu!$I$3:$I$16,MATCH(Overzichtsberekening!$G37,Dropdownmenu!$A$3:$A$16,0))*Overzichtsberekening!$J37)*$C$3+INDEX(Dropdownmenu!$I$3:$I$16,MATCH(Overzichtsberekening!$G37,Dropdownmenu!$A$3:$A$16,0))*Overzichtsberekening!$J37*$C$4),"") ->  | Q16: =IFERROR(IF(INDEX(Dropdownmenu!$H$3:$H$117,MATCH(Overzichtsberekening!$G37,Dropdownmenu!$A$3:$A$117,0))<>"woningen bewoners",Overzichtsberekening!T37*INDEX($C$3:$C$18,MATCH(INDEX(Dropdownmenu!$H$3:$H$117,MATCH(Overzichtsberekening!$G37,Dropdownmenu!$A$3:$A$117,0)),$B$3:$B$18,0)),(Overzichtsberekening!T37-INDEX(Dropdownmenu!$I$3:$I$16,MATCH(Overzichtsberekening!$G37,Dropdownmenu!$A$3:$A$16,0))*Overzichtsberekening!$J37)*$C$3+INDEX(Dropdownmenu!$I$3:$I$16,MATCH(Overzichtsberekening!$G37,Dropdownmenu!$A$3:$A$16,0))*Overzichtsberekening!$J37*$C$4),"") ->  | T16: =IFERROR(IF(INDEX(Dropdownmenu!$H$3:$H$117,MATCH(Overzichtsberekening!$G37,Dropdownmenu!$A$3:$A$117,0))<>"woningen bewoners",Overzichtsberekening!S37*INDEX($D$3:$D$18,MATCH(INDEX(Dropdownmenu!$H$3:$H$117,MATCH(Overzichtsberekening!$G37,Dropdownmenu!$A$3:$A$117,0)),$B$3:$B$18,0)),(Overzichtsberekening!S37-INDEX(Dropdownmenu!$I$3:$I$16,MATCH(Overzichtsberekening!$G37,Dropdownmenu!$A$3:$A$16,0))*Overzichtsberekening!$J37)*$D$3+INDEX(Dropdownmenu!$I$3:$I$16,MATCH(Overzichtsberekening!$G37,Dropdownmenu!$A$3:$A$16,0))*Overzichtsberekening!$J37*$D$4),"") ->  | U16: =IFERROR(IF(INDEX(Dropdownmenu!$H$3:$H$117,MATCH(Overzichtsberekening!$G37,Dropdownmenu!$A$3:$A$117,0))<>"woningen bewoners",Overzichtsberekening!T37*INDEX($D$3:$D$18,MATCH(INDEX(Dropdownmenu!$H$3:$H$117,MATCH(Overzichtsberekening!$G37,Dropdownmenu!$A$3:$A$117,0)),$B$3:$B$18,0)),(Overzichtsberekening!T37-INDEX(Dropdownmenu!$I$3:$I$16,MATCH(Overzichtsberekening!$G37,Dropdownmenu!$A$3:$A$16,0))*Overzichtsberekening!$J37)*$D$3+INDEX(Dropdownmenu!$I$3:$I$16,MATCH(Overzichtsberekening!$G37,Dropdownmenu!$A$3:$A$16,0))*Overzichtsberekening!$J37*$D$4),"") ->  | X16: =IFERROR(IF(INDEX(Dropdownmenu!$H$3:$H$117,MATCH(Overzichtsberekening!$G37,Dropdownmenu!$A$3:$A$117,0))<>"woningen bewoners",Overzichtsberekening!S37*INDEX($E$3:$E$18,MATCH(INDEX(Dropdownmenu!$H$3:$H$117,MATCH(Overzichtsberekening!$G37,Dropdownmenu!$A$3:$A$117,0)),$B$3:$B$18,0)),(Overzichtsberekening!S37-INDEX(Dropdownmenu!$I$3:$I$16,MATCH(Overzichtsberekening!$G37,Dropdownmenu!$A$3:$A$16,0))*Overzichtsberekening!$J37)*$E$3+INDEX(Dropdownmenu!$I$3:$I$16,MATCH(Overzichtsberekening!$G37,Dropdownmenu!$A$3:$A$16,0))*Overzichtsberekening!$J37*$E$4),"") ->  | Y16: =IFERROR(IF(INDEX(Dropdownmenu!$H$3:$H$117,MATCH(Overzichtsberekening!$G37,Dropdownmenu!$A$3:$A$117,0))<>"woningen bewoners",Overzichtsberekening!T37*INDEX($E$3:$E$18,MATCH(INDEX(Dropdownmenu!$H$3:$H$117,MATCH(Overzichtsberekening!$G37,Dropdownmenu!$A$3:$A$117,0)),$B$3:$B$18,0)),(Overzichtsberekening!T37-INDEX(Dropdownmenu!$I$3:$I$16,MATCH(Overzichtsberekening!$G37,Dropdownmenu!$A$3:$A$16,0))*Overzichtsberekening!$J37)*$E$3+INDEX(Dropdownmenu!$I$3:$I$16,MATCH(Overzichtsberekening!$G37,Dropdownmenu!$A$3:$A$16,0))*Overzichtsberekening!$J37*$E$4),"") ->  | AB16: =IFERROR(IF(INDEX(Dropdownmenu!$H$3:$H$117,MATCH(Overzichtsberekening!$G37,Dropdownmenu!$A$3:$A$117,0))<>"woningen bewoners",Overzichtsberekening!S37*INDEX($F$3:$F$18,MATCH(INDEX(Dropdownmenu!$H$3:$H$117,MATCH(Overzichtsberekening!$G37,Dropdownmenu!$A$3:$A$117,0)),$B$3:$B$18,0)),(Overzichtsberekening!S37-INDEX(Dropdownmenu!$I$3:$I$16,MATCH(Overzichtsberekening!$G37,Dropdownmenu!$A$3:$A$16,0))*Overzichtsberekening!$J37)*$F$3+INDEX(Dropdownmenu!$I$3:$I$16,MATCH(Overzichtsberekening!$G37,Dropdownmenu!$A$3:$A$16,0))*Overzichtsberekening!$J37*$F$4),"") ->  | AC16: =IFERROR(IF(INDEX(Dropdownmenu!$H$3:$H$117,MATCH(Overzichtsberekening!$G37,Dropdownmenu!$A$3:$A$117,0))<>"woningen bewoners",Overzichtsberekening!T37*INDEX($F$3:$F$18,MATCH(INDEX(Dropdownmenu!$H$3:$H$117,MATCH(Overzichtsberekening!$G37,Dropdownmenu!$A$3:$A$117,0)),$B$3:$B$18,0)),(Overzichtsberekening!T37-INDEX(Dropdownmenu!$I$3:$I$16,MATCH(Overzichtsberekening!$G37,Dropdownmenu!$A$3:$A$16,0))*Overzichtsberekening!$J37)*$F$3+INDEX(Dropdownmenu!$I$3:$I$16,MATCH(Overzichtsberekening!$G37,Dropdownmenu!$A$3:$A$16,0))*Overzichtsberekening!$J37*$F$4),"") ->  | AF16: =IFERROR(IF(INDEX(Dropdownmenu!$H$3:$H$117,MATCH(Overzichtsberekening!$G37,Dropdownmenu!$A$3:$A$117,0))<>"woningen bewoners",Overzichtsberekening!S37*INDEX($G$3:$G$18,MATCH(INDEX(Dropdownmenu!$H$3:$H$117,MATCH(Overzichtsberekening!$G37,Dropdownmenu!$A$3:$A$117,0)),$B$3:$B$18,0)),(Overzichtsberekening!S37-INDEX(Dropdownmenu!$I$3:$I$16,MATCH(Overzichtsberekening!$G37,Dropdownmenu!$A$3:$A$16,0))*Overzichtsberekening!$J37)*$G$3+INDEX(Dropdownmenu!$I$3:$I$16,MATCH(Overzichtsberekening!$G37,Dropdownmenu!$A$3:$A$16,0))*Overzichtsberekening!$J37*$G$4),"") ->  | AG16: =IFERROR(IF(INDEX(Dropdownmenu!$H$3:$H$117,MATCH(Overzichtsberekening!$G37,Dropdownmenu!$A$3:$A$117,0))<>"woningen bewoners",Overzichtsberekening!T37*INDEX($G$3:$G$18,MATCH(INDEX(Dropdownmenu!$H$3:$H$117,MATCH(Overzichtsberekening!$G37,Dropdownmenu!$A$3:$A$117,0)),$B$3:$B$18,0)),(Overzichtsberekening!T37-INDEX(Dropdownmenu!$I$3:$I$16,MATCH(Overzichtsberekening!$G37,Dropdownmenu!$A$3:$A$16,0))*Overzichtsberekening!$J37)*$G$3+INDEX(Dropdownmenu!$I$3:$I$16,MATCH(Overzichtsberekening!$G37,Dropdownmenu!$A$3:$A$16,0))*Overzichtsberekening!$J37*$G$4),"") ->  | AJ16: =IFERROR(IF(INDEX(Dropdownmenu!$H$3:$H$117,MATCH(Overzichtsberekening!$G37,Dropdownmenu!$A$3:$A$117,0))<>"woningen bewoners",Overzichtsberekening!S37*INDEX($H$3:$H$18,MATCH(INDEX(Dropdownmenu!$H$3:$H$117,MATCH(Overzichtsberekening!$G37,Dropdownmenu!$A$3:$A$117,0)),$B$3:$B$18,0)),(Overzichtsberekening!S37-INDEX(Dropdownmenu!$I$3:$I$16,MATCH(Overzichtsberekening!$G37,Dropdownmenu!$A$3:$A$16,0))*Overzichtsberekening!$J37)*$H$3+INDEX(Dropdownmenu!$I$3:$I$16,MATCH(Overzichtsberekening!$G37,Dropdownmenu!$A$3:$A$16,0))*Overzichtsberekening!$J37*$H$4),"") ->  | AK16: =IFERROR(IF(INDEX(Dropdownmenu!$H$3:$H$117,MATCH(Overzichtsberekening!$G37,Dropdownmenu!$A$3:$A$117,0))<>"woningen bewoners",Overzichtsberekening!T37*INDEX($H$3:$H$18,MATCH(INDEX(Dropdownmenu!$H$3:$H$117,MATCH(Overzichtsberekening!$G37,Dropdownmenu!$A$3:$A$117,0)),$B$3:$B$18,0)),(Overzichtsberekening!T37-INDEX(Dropdownmenu!$I$3:$I$16,MATCH(Overzichtsberekening!$G37,Dropdownmenu!$A$3:$A$16,0))*Overzichtsberekening!$J37)*$H$3+INDEX(Dropdownmenu!$I$3:$I$16,MATCH(Overzichtsberekening!$G37,Dropdownmenu!$A$3:$A$16,0))*Overzichtsberekening!$J37*$H$4),"") ->  | AN16: =IFERROR(IF(INDEX(Dropdownmenu!$H$3:$H$117,MATCH(Overzichtsberekening!$G37,Dropdownmenu!$A$3:$A$117,0))<>"woningen bewoners",Overzichtsberekening!S37*INDEX($I$3:$I$18,MATCH(INDEX(Dropdownmenu!$H$3:$H$117,MATCH(Overzichtsberekening!$G37,Dropdownmenu!$A$3:$A$117,0)),$B$3:$B$18,0)),(Overzichtsberekening!S37-INDEX(Dropdownmenu!$I$3:$I$16,MATCH(Overzichtsberekening!$G37,Dropdownmenu!$A$3:$A$16,0))*Overzichtsberekening!$J37)*$I$3+INDEX(Dropdownmenu!$I$3:$I$16,MATCH(Overzichtsberekening!$G37,Dropdownmenu!$A$3:$A$16,0))*Overzichtsberekening!$J37*$I$4),"") ->  | AO16: =IFERROR(IF(INDEX(Dropdownmenu!$H$3:$H$117,MATCH(Overzichtsberekening!$G37,Dropdownmenu!$A$3:$A$117,0))<>"woningen bewoners",Overzichtsberekening!T37*INDEX($I$3:$I$18,MATCH(INDEX(Dropdownmenu!$H$3:$H$117,MATCH(Overzichtsberekening!$G37,Dropdownmenu!$A$3:$A$117,0)),$B$3:$B$18,0)),(Overzichtsberekening!T37-INDEX(Dropdownmenu!$I$3:$I$16,MATCH(Overzichtsberekening!$G37,Dropdownmenu!$A$3:$A$16,0))*Overzichtsberekening!$J37)*$I$3+INDEX(Dropdownmenu!$I$3:$I$16,MATCH(Overzichtsberekening!$G37,Dropdownmenu!$A$3:$A$16,0))*Overzichtsberekening!$J37*$I$4),"") ->  | AR16: =IFERROR(IF(INDEX(Dropdownmenu!$H$3:$H$117,MATCH(Overzichtsberekening!$G37,Dropdownmenu!$A$3:$A$117,0))<>"woningen bewoners",Overzichtsberekening!S37*INDEX($J$3:$J$18,MATCH(INDEX(Dropdownmenu!$H$3:$H$117,MATCH(Overzichtsberekening!$G37,Dropdownmenu!$A$3:$A$117,0)),$B$3:$B$18,0)),(Overzichtsberekening!S37-INDEX(Dropdownmenu!$I$3:$I$16,MATCH(Overzichtsberekening!$G37,Dropdownmenu!$A$3:$A$16,0))*Overzichtsberekening!$J37)*$J$3+INDEX(Dropdownmenu!$I$3:$I$16,MATCH(Overzichtsberekening!$G37,Dropdownmenu!$A$3:$A$16,0))*Overzichtsberekening!$J37*$J$4),"") ->  | AS16: =IFERROR(IF(INDEX(Dropdownmenu!$H$3:$H$117,MATCH(Overzichtsberekening!$G37,Dropdownmenu!$A$3:$A$117,0))<>"woningen bewoners",Overzichtsberekening!T37*INDEX($J$3:$J$18,MATCH(INDEX(Dropdownmenu!$H$3:$H$117,MATCH(Overzichtsberekening!$G37,Dropdownmenu!$A$3:$A$117,0)),$B$3:$B$18,0)),(Overzichtsberekening!T37-INDEX(Dropdownmenu!$I$3:$I$16,MATCH(Overzichtsberekening!$G37,Dropdownmenu!$A$3:$A$16,0))*Overzichtsberekening!$J37)*$J$3+INDEX(Dropdownmenu!$I$3:$I$16,MATCH(Overzichtsberekening!$G37,Dropdownmenu!$A$3:$A$16,0))*Overzichtsberekening!$J37*$J$4),"") -> 
B17: dagonderwijs | C17: 1 | D17: 1 | E17: 0 | F17: 0 | G17: 0 | H17: 0 | I17: 0 | J17: 0 | P17: =IFERROR(IF(INDEX(Dropdownmenu!$H$3:$H$117,MATCH(Overzichtsberekening!$G38,Dropdownmenu!$A$3:$A$117,0))<>"woningen bewoners",Overzichtsberekening!S38*INDEX($C$3:$C$18,MATCH(INDEX(Dropdownmenu!$H$3:$H$117,MATCH(Overzichtsberekening!$G38,Dropdownmenu!$A$3:$A$117,0)),$B$3:$B$18,0)),(Overzichtsberekening!S38-INDEX(Dropdownmenu!$I$3:$I$16,MATCH(Overzichtsberekening!$G38,Dropdownmenu!$A$3:$A$16,0))*Overzichtsberekening!$J38)*$C$3+INDEX(Dropdownmenu!$I$3:$I$16,MATCH(Overzichtsberekening!$G38,Dropdownmenu!$A$3:$A$16,0))*Overzichtsberekening!$J38*$C$4),"") ->  | Q17: =IFERROR(IF(INDEX(Dropdownmenu!$H$3:$H$117,MATCH(Overzichtsberekening!$G38,Dropdownmenu!$A$3:$A$117,0))<>"woningen bewoners",Overzichtsberekening!T38*INDEX($C$3:$C$18,MATCH(INDEX(Dropdownmenu!$H$3:$H$117,MATCH(Overzichtsberekening!$G38,Dropdownmenu!$A$3:$A$117,0)),$B$3:$B$18,0)),(Overzichtsberekening!T38-INDEX(Dropdownmenu!$I$3:$I$16,MATCH(Overzichtsberekening!$G38,Dropdownmenu!$A$3:$A$16,0))*Overzichtsberekening!$J38)*$C$3+INDEX(Dropdownmenu!$I$3:$I$16,MATCH(Overzichtsberekening!$G38,Dropdownmenu!$A$3:$A$16,0))*Overzichtsberekening!$J38*$C$4),"") ->  | T17: =IFERROR(IF(INDEX(Dropdownmenu!$H$3:$H$117,MATCH(Overzichtsberekening!$G38,Dropdownmenu!$A$3:$A$117,0))<>"woningen bewoners",Overzichtsberekening!S38*INDEX($D$3:$D$18,MATCH(INDEX(Dropdownmenu!$H$3:$H$117,MATCH(Overzichtsberekening!$G38,Dropdownmenu!$A$3:$A$117,0)),$B$3:$B$18,0)),(Overzichtsberekening!S38-INDEX(Dropdownmenu!$I$3:$I$16,MATCH(Overzichtsberekening!$G38,Dropdownmenu!$A$3:$A$16,0))*Overzichtsberekening!$J38)*$D$3+INDEX(Dropdownmenu!$I$3:$I$16,MATCH(Overzichtsberekening!$G38,Dropdownmenu!$A$3:$A$16,0))*Overzichtsberekening!$J38*$D$4),"") ->  | U17: =IFERROR(IF(INDEX(Dropdownmenu!$H$3:$H$117,MATCH(Overzichtsberekening!$G38,Dropdownmenu!$A$3:$A$117,0))<>"woningen bewoners",Overzichtsberekening!T38*INDEX($D$3:$D$18,MATCH(INDEX(Dropdownmenu!$H$3:$H$117,MATCH(Overzichtsberekening!$G38,Dropdownmenu!$A$3:$A$117,0)),$B$3:$B$18,0)),(Overzichtsberekening!T38-INDEX(Dropdownmenu!$I$3:$I$16,MATCH(Overzichtsberekening!$G38,Dropdownmenu!$A$3:$A$16,0))*Overzichtsberekening!$J38)*$D$3+INDEX(Dropdownmenu!$I$3:$I$16,MATCH(Overzichtsberekening!$G38,Dropdownmenu!$A$3:$A$16,0))*Overzichtsberekening!$J38*$D$4),"") ->  | X17: =IFERROR(IF(INDEX(Dropdownmenu!$H$3:$H$117,MATCH(Overzichtsberekening!$G38,Dropdownmenu!$A$3:$A$117,0))<>"woningen bewoners",Overzichtsberekening!S38*INDEX($E$3:$E$18,MATCH(INDEX(Dropdownmenu!$H$3:$H$117,MATCH(Overzichtsberekening!$G38,Dropdownmenu!$A$3:$A$117,0)),$B$3:$B$18,0)),(Overzichtsberekening!S38-INDEX(Dropdownmenu!$I$3:$I$16,MATCH(Overzichtsberekening!$G38,Dropdownmenu!$A$3:$A$16,0))*Overzichtsberekening!$J38)*$E$3+INDEX(Dropdownmenu!$I$3:$I$16,MATCH(Overzichtsberekening!$G38,Dropdownmenu!$A$3:$A$16,0))*Overzichtsberekening!$J38*$E$4),"") ->  | Y17: =IFERROR(IF(INDEX(Dropdownmenu!$H$3:$H$117,MATCH(Overzichtsberekening!$G38,Dropdownmenu!$A$3:$A$117,0))<>"woningen bewoners",Overzichtsberekening!T38*INDEX($E$3:$E$18,MATCH(INDEX(Dropdownmenu!$H$3:$H$117,MATCH(Overzichtsberekening!$G38,Dropdownmenu!$A$3:$A$117,0)),$B$3:$B$18,0)),(Overzichtsberekening!T38-INDEX(Dropdownmenu!$I$3:$I$16,MATCH(Overzichtsberekening!$G38,Dropdownmenu!$A$3:$A$16,0))*Overzichtsberekening!$J38)*$E$3+INDEX(Dropdownmenu!$I$3:$I$16,MATCH(Overzichtsberekening!$G38,Dropdownmenu!$A$3:$A$16,0))*Overzichtsberekening!$J38*$E$4),"") ->  | AB17: =IFERROR(IF(INDEX(Dropdownmenu!$H$3:$H$117,MATCH(Overzichtsberekening!$G38,Dropdownmenu!$A$3:$A$117,0))<>"woningen bewoners",Overzichtsberekening!S38*INDEX($F$3:$F$18,MATCH(INDEX(Dropdownmenu!$H$3:$H$117,MATCH(Overzichtsberekening!$G38,Dropdownmenu!$A$3:$A$117,0)),$B$3:$B$18,0)),(Overzichtsberekening!S38-INDEX(Dropdownmenu!$I$3:$I$16,MATCH(Overzichtsberekening!$G38,Dropdownmenu!$A$3:$A$16,0))*Overzichtsberekening!$J38)*$F$3+INDEX(Dropdownmenu!$I$3:$I$16,MATCH(Overzichtsberekening!$G38,Dropdownmenu!$A$3:$A$16,0))*Overzichtsberekening!$J38*$F$4),"") ->  | AC17: =IFERROR(IF(INDEX(Dropdownmenu!$H$3:$H$117,MATCH(Overzichtsberekening!$G38,Dropdownmenu!$A$3:$A$117,0))<>"woningen bewoners",Overzichtsberekening!T38*INDEX($F$3:$F$18,MATCH(INDEX(Dropdownmenu!$H$3:$H$117,MATCH(Overzichtsberekening!$G38,Dropdownmenu!$A$3:$A$117,0)),$B$3:$B$18,0)),(Overzichtsberekening!T38-INDEX(Dropdownmenu!$I$3:$I$16,MATCH(Overzichtsberekening!$G38,Dropdownmenu!$A$3:$A$16,0))*Overzichtsberekening!$J38)*$F$3+INDEX(Dropdownmenu!$I$3:$I$16,MATCH(Overzichtsberekening!$G38,Dropdownmenu!$A$3:$A$16,0))*Overzichtsberekening!$J38*$F$4),"") ->  | AF17: =IFERROR(IF(INDEX(Dropdownmenu!$H$3:$H$117,MATCH(Overzichtsberekening!$G38,Dropdownmenu!$A$3:$A$117,0))<>"woningen bewoners",Overzichtsberekening!S38*INDEX($G$3:$G$18,MATCH(INDEX(Dropdownmenu!$H$3:$H$117,MATCH(Overzichtsberekening!$G38,Dropdownmenu!$A$3:$A$117,0)),$B$3:$B$18,0)),(Overzichtsberekening!S38-INDEX(Dropdownmenu!$I$3:$I$16,MATCH(Overzichtsberekening!$G38,Dropdownmenu!$A$3:$A$16,0))*Overzichtsberekening!$J38)*$G$3+INDEX(Dropdownmenu!$I$3:$I$16,MATCH(Overzichtsberekening!$G38,Dropdownmenu!$A$3:$A$16,0))*Overzichtsberekening!$J38*$G$4),"") ->  | AG17: =IFERROR(IF(INDEX(Dropdownmenu!$H$3:$H$117,MATCH(Overzichtsberekening!$G38,Dropdownmenu!$A$3:$A$117,0))<>"woningen bewoners",Overzichtsberekening!T38*INDEX($G$3:$G$18,MATCH(INDEX(Dropdownmenu!$H$3:$H$117,MATCH(Overzichtsberekening!$G38,Dropdownmenu!$A$3:$A$117,0)),$B$3:$B$18,0)),(Overzichtsberekening!T38-INDEX(Dropdownmenu!$I$3:$I$16,MATCH(Overzichtsberekening!$G38,Dropdownmenu!$A$3:$A$16,0))*Overzichtsberekening!$J38)*$G$3+INDEX(Dropdownmenu!$I$3:$I$16,MATCH(Overzichtsberekening!$G38,Dropdownmenu!$A$3:$A$16,0))*Overzichtsberekening!$J38*$G$4),"") ->  | AJ17: =IFERROR(IF(INDEX(Dropdownmenu!$H$3:$H$117,MATCH(Overzichtsberekening!$G38,Dropdownmenu!$A$3:$A$117,0))<>"woningen bewoners",Overzichtsberekening!S38*INDEX($H$3:$H$18,MATCH(INDEX(Dropdownmenu!$H$3:$H$117,MATCH(Overzichtsberekening!$G38,Dropdownmenu!$A$3:$A$117,0)),$B$3:$B$18,0)),(Overzichtsberekening!S38-INDEX(Dropdownmenu!$I$3:$I$16,MATCH(Overzichtsberekening!$G38,Dropdownmenu!$A$3:$A$16,0))*Overzichtsberekening!$J38)*$H$3+INDEX(Dropdownmenu!$I$3:$I$16,MATCH(Overzichtsberekening!$G38,Dropdownmenu!$A$3:$A$16,0))*Overzichtsberekening!$J38*$H$4),"") ->  | AK17: =IFERROR(IF(INDEX(Dropdownmenu!$H$3:$H$117,MATCH(Overzichtsberekening!$G38,Dropdownmenu!$A$3:$A$117,0))<>"woningen bewoners",Overzichtsberekening!T38*INDEX($H$3:$H$18,MATCH(INDEX(Dropdownmenu!$H$3:$H$117,MATCH(Overzichtsberekening!$G38,Dropdownmenu!$A$3:$A$117,0)),$B$3:$B$18,0)),(Overzichtsberekening!T38-INDEX(Dropdownmenu!$I$3:$I$16,MATCH(Overzichtsberekening!$G38,Dropdownmenu!$A$3:$A$16,0))*Overzichtsberekening!$J38)*$H$3+INDEX(Dropdownmenu!$I$3:$I$16,MATCH(Overzichtsberekening!$G38,Dropdownmenu!$A$3:$A$16,0))*Overzichtsberekening!$J38*$H$4),"") ->  | AN17: =IFERROR(IF(INDEX(Dropdownmenu!$H$3:$H$117,MATCH(Overzichtsberekening!$G38,Dropdownmenu!$A$3:$A$117,0))<>"woningen bewoners",Overzichtsberekening!S38*INDEX($I$3:$I$18,MATCH(INDEX(Dropdownmenu!$H$3:$H$117,MATCH(Overzichtsberekening!$G38,Dropdownmenu!$A$3:$A$117,0)),$B$3:$B$18,0)),(Overzichtsberekening!S38-INDEX(Dropdownmenu!$I$3:$I$16,MATCH(Overzichtsberekening!$G38,Dropdownmenu!$A$3:$A$16,0))*Overzichtsberekening!$J38)*$I$3+INDEX(Dropdownmenu!$I$3:$I$16,MATCH(Overzichtsberekening!$G38,Dropdownmenu!$A$3:$A$16,0))*Overzichtsberekening!$J38*$I$4),"") ->  | AO17: =IFERROR(IF(INDEX(Dropdownmenu!$H$3:$H$117,MATCH(Overzichtsberekening!$G38,Dropdownmenu!$A$3:$A$117,0))<>"woningen bewoners",Overzichtsberekening!T38*INDEX($I$3:$I$18,MATCH(INDEX(Dropdownmenu!$H$3:$H$117,MATCH(Overzichtsberekening!$G38,Dropdownmenu!$A$3:$A$117,0)),$B$3:$B$18,0)),(Overzichtsberekening!T38-INDEX(Dropdownmenu!$I$3:$I$16,MATCH(Overzichtsberekening!$G38,Dropdownmenu!$A$3:$A$16,0))*Overzichtsberekening!$J38)*$I$3+INDEX(Dropdownmenu!$I$3:$I$16,MATCH(Overzichtsberekening!$G38,Dropdownmenu!$A$3:$A$16,0))*Overzichtsberekening!$J38*$I$4),"") ->  | AR17: =IFERROR(IF(INDEX(Dropdownmenu!$H$3:$H$117,MATCH(Overzichtsberekening!$G38,Dropdownmenu!$A$3:$A$117,0))<>"woningen bewoners",Overzichtsberekening!S38*INDEX($J$3:$J$18,MATCH(INDEX(Dropdownmenu!$H$3:$H$117,MATCH(Overzichtsberekening!$G38,Dropdownmenu!$A$3:$A$117,0)),$B$3:$B$18,0)),(Overzichtsberekening!S38-INDEX(Dropdownmenu!$I$3:$I$16,MATCH(Overzichtsberekening!$G38,Dropdownmenu!$A$3:$A$16,0))*Overzichtsberekening!$J38)*$J$3+INDEX(Dropdownmenu!$I$3:$I$16,MATCH(Overzichtsberekening!$G38,Dropdownmenu!$A$3:$A$16,0))*Overzichtsberekening!$J38*$J$4),"") ->  | AS17: =IFERROR(IF(INDEX(Dropdownmenu!$H$3:$H$117,MATCH(Overzichtsberekening!$G38,Dropdownmenu!$A$3:$A$117,0))<>"woningen bewoners",Overzichtsberekening!T38*INDEX($J$3:$J$18,MATCH(INDEX(Dropdownmenu!$H$3:$H$117,MATCH(Overzichtsberekening!$G38,Dropdownmenu!$A$3:$A$117,0)),$B$3:$B$18,0)),(Overzichtsberekening!T38-INDEX(Dropdownmenu!$I$3:$I$16,MATCH(Overzichtsberekening!$G38,Dropdownmenu!$A$3:$A$16,0))*Overzichtsberekening!$J38)*$J$3+INDEX(Dropdownmenu!$I$3:$I$16,MATCH(Overzichtsberekening!$G38,Dropdownmenu!$A$3:$A$16,0))*Overzichtsberekening!$J38*$J$4),"") -> 
B18: avondonderwijs | C18: 0 | D18: 0 | E18: 1 | F18: 0 | G18: 1 | H18: 0 | I18: 0 | J18: 0 | L18: =SUM(L7:L17) -> 37 | M18: =SUM(M7:M17) -> 65.8 | P18: =SUM(P7:P17) -> 17.7 | Q18: 31.7 | T18: =SUM(T7:T17) -> 23.4 | U18: =SUM(U7:U17) -> 43.4 | X18: =SUM(X7:X17) -> 33.2 | Y18: =SUM(Y7:Y17) -> 55.6 | AB18: =SUM(AB7:AB17) -> 24 | AC18: =SUM(AC7:AC17) -> 40 | AF18: =SUM(AF7:AF17) -> 37 | AG18: =SUM(AG7:AG17) -> 65.8 | AJ18: =SUM(AJ7:AJ17) -> 35 | AK18: =SUM(AK7:AK17) -> 64.6 | AN18: =SUM(AN7:AN17) -> 30.8 | AO18: =SUM(AO7:AO17) -> 51.6 | AR18: =SUM(AR7:AR17) -> 21 | AS18: =SUM(AS7:AS17) -> 32.2
B20: 1) Indien sprake van een traditionele koopavond
B21: 2) Indien op zaterdag open: 100%
B22: 3) Indien 's avonds open: 70%
B23: 4) Indien koopzondag: 100%

Sheet Gegevensvalidatie
A1: Kencijfers verkeersgeneratie van CROW publicatie 381 (2018)
A2: Woningen
A3: Functie | C3: Parkeernorm | M3: Verkeergeneratie
C4: Centrum | E4: Schil centrum | G4: Rest bebouwde kom | I4: Buitengebied | M4: Centrum | O4: Schil centrum | Q4: Rest bebouwde kom | S4: Buitengebied
A5: Koop, Vrijstaand | C5: Min | D5: Max | E5: Min | F5: Max | G5: Min | H5: Max | I5: Min | J5: Max | M5: min. | N5: max. | O5: min. | P5: max. | Q5: min. | R5: max. | S5: min. | T5: max.
B6: Zeer sterk stedelijk | C6: 1.1 | D6: 1.9 | E6: 1.3 | F6: 2.1 | G6: 1.6 | H6: 2.4 | I6: 1.9 | J6: 2.7 | L6: Zeer sterk stedelijk | M6: 5.9 | N6: 6.7 | O6: 6.4 | P6: 7.2 | Q6: 7.3 | R6: 8.1 | S6: 7.8 | T6: 8.6
B7: Sterk stedelijk | C7: 1.2 | D7: 2 | E7: 1.4 | F7: 2.2 | G7: 1.7 | H7: 2.5 | I7: 2 | J7: 2.8 | L7: Sterk stedelijk | M7: 6.4 | N7: 7.2 | O7: 7.3 | P7: 8.1 | Q7: 7.8 | R7: 8.6 | S7: 7.8 | T7: 8.6
B8: Matig stedelijk | C8: 1.4 | D8: 2.2 | E8: 1.5 | F8: 2.3 | G8: 1.8 | H8: 2.6 | I8: 2 | J8: 2.8 | L8: Matig stedelijk | M8: 7.3 | N8: 8.1 | O8: 7.6 | P8: 8.4 | Q8: 7.8 | R8: 8.6 | S8: 7.8 | T8: 8.6
B9: Weinig stedelijk | C9: 1.4 | D9: 2.2 | E9: 1.7 | F9: 2.5 | G9: 1.9 | H9: 2.7 | I9: 2 | J9: 2.8 | L9: Weinig stedelijk | M9: 7.5 | N9: 8.3 | O9: 7.7 | P9: 8.5 | Q9: 7.8 | R9: 8.6 | S9: 7.8 | T9: 8.6
B10: Niet stedelijk | C10: 1.4 | D10: 2.2 | E10: 1.7 | F10: 2.5 | G10: 1.9 | H10: 2.7 | I10: 2 | J10: 2.8 | L10: Niet stedelijk | M10: 7.5 | N10: 8.3 | O10: 7.7 | P10: 8.5 | Q10: 7.8 | R10: 8.6 | S10: 7.8 | T10: 8.6
A12: koop, twee onder een kap | C12: Centrum | E12: Schil centrum | G12: Rest bebouwde kom | I12: Buitengebied | M12: Centrum | O12: Schil centrum | Q12: Rest bebouwde kom | S12: Buitengebied
C13: min. | D13: max. | E13: min. | F13: max. | G13: min. | H13: max. | I13: min. | J13: max. | M13: min. | N13: max. | O13: min. | P13: max. | Q13: min. | R13: max. | S13: min. | T13: max.
B14: Zeer sterk stedelijk | C14: 1 | D14: 1.8 | E14: 1.2 | F14: 2 | G14: 1.5 | H14: 2.3 | I14: 1.7 | J14: 2.5 | L14: Zeer sterk stedelijk | M14: 5 | N14: 5.8 | O14: 5.9 | P14: 6.7 | Q14: 6.9 | R14: 7.7 | S14: 7.4 | T14: 8.2
B15: Sterk stedelijk | C15: 1.1 | D15: 1.9 | E15: 1.3 | F15: 2.1 | G15: 1.6 | H15: 2.4 | I15: 1.8 | J15: 2.6 | L15: Sterk stedelijk | M15: 5.9 | N15: 6.7 | O15: 6.9 | P15: 7.7 | Q15: 7.4 | R15: 8.2 | S15: 7.4 | T15: 8.2
B16: Matig stedelijk | C16: 1.3 | D16: 2.1 | E16: 1.4 | F16: 2.2 | G16: 1.7 | H16: 2.5 | I16: 1.8 | J16: 2.6 | L16: Matig stedelijk | M16: 6.9 | N16: 7.7 | O16: 7.2 | P16: 8 | Q16: 7.4 | R16: 8.2 | S16: 7.4 | T16: 8.2
B17: Weinig stedelijk | C17: 1.3 | D17: 2.1 | E17: 1.6 | F17: 2.4 | G17: 1.8 | H17: 2.6 | I17: 1.8 | J17: 2.6 | L17: Weinig stedelijk | M17: 7.2 | N17: 8 | O17: 7.3 | P17: 8.1 | Q17: 7.4 | R17: 8.2 | S17: 7.4 | T17: 8.2
B18: Niet stedelijk | C18: 1.3 | D18: 2.1 | E18: 1.6 | F18: 2.4 | G18: 1.8 | H18: 2.6 | I18: 1.8 | J18: 2.6 | L18: Niet stedelijk | M18: 7.2 | N18: 8 | O18: 7.3 | P18: 8.1 | Q18: 7.4 | R18: 8.2 | S18: 7.4 | T18: 8.2
A20: Koop, tussen/hoek | C20: Centrum | E20: Schil centrum | G20: Rest bebouwde kom | I20: Buitengebied | M20: Centrum | O20: Schil centrum | Q20: Rest bebouwde kom | S20: Buitengebied
C21: min. | D21: max. | E21: min. | F21: max. | G21: min. | H21: max. | I21: min. | J21: max. | M21: min. | N21: max. | O21: min. | P21: max. | Q21: min. | R21: max. | S21: min. | T21: max.
B22: Zeer sterk stedelijk | C22: 0.9 | D22: 1.7 | E22: 1.1 | F22: 1.9 | G22: 1.3 | H22: 2.1 | I22: 1.5 | J22: 2.3 | L22: Zeer sterk stedelijk | M22: 4.5 | N22: 5.3 | O22: 5.4 | P22: 6.2 | Q22: 6.4 | R22: 7.2 | S22: 7 | T22: 7.8
B23: Sterk stedelijk | C23: 1 | D23: 1.8 | E23: 1.2 | F23: 2 | G23: 1.4 | H23: 2.2 | I23: 1.6 | J23: 2.4 | L23: Sterk stedelijk | M23: 5.4 | N23: 6.2 | O23: 6.4 | P23: 7.2 | Q23: 6.7 | R23: 7.5 | S23: 7 | T23: 7.8
B24: Matig stedelijk | C24: 1.1 | D24: 1.9 | E24: 1.3 | F24: 2.1 | G24: 1.5 | H24: 2.3 | I24: 1.6 | J24: 2.4 | L24: Matig stedelijk | M24: 6.4 | N24: 7.2 | O24: 6.5 | P24: 7.3 | Q24: 6.7 | R24: 7.5 | S24: 7 | T24: 7.8
B25: Weinig stedelijk | C25: 1.1 | D25: 1.9 | E25: 1.4 | F25: 2.2 | G25: 1.6 | H25: 2.4 | I25: 1.6 | J25: 2.4 | L25: Weinig stedelijk | M25: 6.8 | N25: 7.6 | O25: 6.9 | P25: 7.7 | Q25: 7 | R25: 7.8 | S25: 7 | T25: 7.8
B26: Niet stedelijk | C26: 1.1 | D26: 1.9 | E26: 1.4 | F26: 2.2 | G26: 1.6 | H26: 2.4 | I26: 1.6 | J26: 2.4 | L26: Niet stedelijk | M26: 6.8 | N26: 7.6 | O26: 6.9 | P26: 7.7 | Q26: 7 | R26: 7.8 | S26: 7 | T26: 7.8
A28: Koop, appartement, duur | C28: Centrum | E28: Schil centrum | G28: Rest bebouwde kom | I28: Buitengebied | M28: Centrum | O28: Schil centrum | Q28: Rest bebouwde kom | S28: Buitengebied
C29: min. | D29: max. | E29: min. | F29: max. | G29: min. | H29: max. | I29: min. | J29: max. | M29: min. | N29: max. | O29: min. | P29: max. | Q29: min. | R29: max. | S29: min. | T29: max.
B30: Zeer sterk stedelijk | C30: 0.9 | D30: 1.7 | E30: 1.1 | F30: 1.9 | G30: 1.4 | H30: 2.2 | I30: 1.6 | J30: 2.4 | L30: Zeer sterk stedelijk | M30: 4.5 | N30: 5.3 | O30: 5.4 | P30: 6.2 | Q30: 6.4 | R30: 7.2 | S30: 7 | T30: 7.8
B31: Sterk stedelijk | C31: 1 | D31: 1.8 | E31: 1.2 | F31: 2 | G31: 1.5 | H31: 2.3 | I31: 1.7 | J31: 2.5 | L31: Sterk stedelijk | M31: 5.4 | N31: 6.2 | O31: 6.4 | P31: 7.2 | Q31: 6.7 | R31: 7.5 | S31: 7 | T31: 7.8
B32: Matig stedelijk | C32: 1.2 | D32: 2 | E32: 1.3 | F32: 2.1 | G32: 1.6 | H32: 2.4 | I32: 1.7 | J32: 2.5 | L32: Matig stedelijk | M32: 6.4 | N32: 7.2 | O32: 6.5 | P32: 7.3 | Q32: 6.7 | R32: 7.5 | S32: 7 | T32: 7.8
B33: Weinig stedelijk | C33: 1.2 | D33: 2 | E33: 1.5 | F33: 2.3 | G33: 1.7 | H33: 2.5 | I33: 1.7 | J33: 2.5 | L33: Weinig stedelijk | M33: 6.8 | N33: 7.6 | O33: 6.9 | P33: 7.7 | Q33: 7 | R33: 7.8 | S33: 7 | T33: 7.8
B34: Niet stedelijk | C34: 1.2 | D34: 2 | E34: 1.5 | F34: 2.3 | G34: 1.7 | H34: 2.5 | I34: 1.7 | J34: 2.5 | L34: Niet stedelijk | M34: 6.8 | N34: 7.6 | O34: 6.9 | P34: 7.7 | Q34: 7 | R34: 7.8 | S34: 7 | T34: 7.8
A36: Koop, appartement, Midden | C36: Centrum | E36: Schil centrum | G36: Rest bebouwde kom | I36: Buitengebied | M36: Centrum | O36: Schil centrum | Q36: Rest bebouwde kom | S36: Buitengebied
C37: min. | D37: max. | E37: min. | F37: max. | G37: min. | H37: max. | I37: min. | J37: max. | M37: min. | N37: max. | O37: min. | P37: max. | Q37: min. | R37: max. | S37: min. | T37: max.
B38: Zeer sterk stedelijk | C38: 0.8 | D38: 1.6 | E38: 1 | F38: 1.8 | G38: 1.2 | H38: 2 | I38: 1.4 | J38: 2.2 | L38: Zeer sterk stedelijk | M38: 2.9 | N38: 3.7 | O38: 3.7 | P38: 4.5 | Q38: 4.7 | R38: 5.5 | S38: 5.6 | T38: 6.4
B39: Sterk stedelijk | C39: 0.9 | D39: 1.7 | E39: 1.1 | F39: 1.9 | G39: 1.3 | H39: 2.1 | I39: 1.5 | J39: 2.3 | L39: Sterk stedelijk | M39: 3.7 | N39: 4.5 | O39: 4.7 | P39: 5.5 | Q39: 5.2 | R39: 6 | S39: 5.6 | T39: 6.4
B40: Matig stedelijk | C40: 1 | D40: 1.8 | E40: 1.2 | F40: 2 | G40: 1.4 | H40: 2.2 | I40: 1.5 | J40: 2.3 | L40: Matig stedelijk | M40: 4.7 | N40: 5.5 | O40: 5 | P40: 5.8 | Q40: 5.2 | R40: 6 | S40: 5.6 | T40: 6.4
B41: Weinig stedelijk | C41: 1 | D41: 1.8 | E41: 1.3 | F41: 2.1 | G41: 1.5 | H41: 2.3 | I41: 1.5 | J41: 2.3 | L41: Weinig stedelijk | M41: 5.4 | N41: 6.2 | O41: 5.5 | P41: 6.3 | Q41: 5.6 | R41: 6.4 | S41: 5.6 | T41: 6.4
B42: Niet stedelijk | C42: 1 | D42: 1.8 | E42: 1.3 | F42: 2.1 | G42: 1.5 | H42: 2.3 | I42: 1.5 | J42: 2.3 | L42: Niet stedelijk | M42: 5.4 | N42: 6.2 | O42: 5.5 | P42: 6.3 | Q42: 5.6 | R42: 6.4 | S42: 5.6 | T42: 6.4
A44: Koop, appartement, goedkoop | C44: Centrum | E44: Schil centrum | G44: Rest bebouwde kom | I44: Buitengebied | M44: Centrum | O44: Schil centrum | Q44: Rest bebouwde kom | S44: Buitengebied
C45: min. | D45: max. | E45: min. | F45: max. | G45: min. | H45: max. | I45: min. | J45: max. | M45: min. | N45: max. | O45: min. | P45: max. | Q45: min. | R45: max. | S45: min. | T45: max.
B46: Zeer sterk stedelijk | C46: 0.7 | D46: 1.5 | E46: 0.8 | F46: 1.6 | G46: 0.9 | H46: 1.7 | I46: 1.1 | J46: 1.9 | L46: Zeer sterk stedelijk | M46: 1.2 | N46: 2 | O46: 2.8 | P46: 3.6 | Q46: 3.9 | R46: 4.7 | S46: 5.2 | T46: 6
B47: Sterk stedelijk | C47: 0.8 | D47: 1.6 | E47: 0.9 | F47: 1.7 | G47: 1.1 | H47: 1.9 | I47: 1.2 | J47: 2 | L47: Sterk stedelijk | M47: 2.8 | N47: 3.6 | O47: 3.9 | P47: 4.7 | Q47: 4.5 | R47: 5.3 | S47: 5.2 | T47: 6
B48: Matig stedelijk | C48: 0.9 | D48: 1.7 | E48: 1 | F48: 1.8 | G48: 1.2 | H48: 2 | I48: 1.2 | J48: 2 | L48: Matig stedelijk | M48: 3.9 | N48: 4.7 | O48: 4.2 | P48: 5 | Q48: 4.5 | R48: 5.3 | S48: 5.2 | T48: 6
B49: Weinig stedelijk | C49: 0.9 | D49: 1.7 | E49: 1 | F49: 1.8 | G49: 1.2 | H49: 2 | I49: 1.2 | J49: 2 | L49: Weinig stedelijk | M49: 4.8 | N49: 5.6 | O49: 5 | P49: 5.8 | Q49: 5.2 | R49: 6 | S49: 5.2 | T49: 6
B50: Niet stedelijk | C50: 0.9 | D50: 1.7 | E50: 1 | F50: 1.8 | G50: 1.2 | H50: 2 | I50: 1.2 | J50: 2 | L50: Niet stedelijk | M50: 4.8 | N50: 5.6 | O50: 5 | P50: 5.8 | Q50: 5.2 | R50: 6 | S50: 5.2 | T50: 6
A52: Huurhuis, vrije sector | C52: Centrum | E52: Schil centrum | G52: Rest bebouwde kom | I52: Buitengebied | M52: Centrum | O52: Schil centrum | Q52: Rest bebouwde kom | S52: Buitengebied
C53: min. | D53: max. | E53: min. | F53: max. | G53: min. | H53: max. | I53: min. | J53: max. | M53: min. | N53: max. | O53: min. | P53: max. | Q53: min. | R53: max. | S53: min. | T53: max.
B54: Zeer sterk stedelijk | C54: 0.9 | D54: 1.7 | E54: 1.1 | F54: 1.9 | G54: 1.3 | H54: 2.1 | I54: 1.5 | J54: 2.3 | L54: Zeer sterk stedelijk | M54: 4.5 | N54: 5.3 | O54: 5.4 | P54: 6.2 | Q54: 6.4 | R54: 7.2 | S54: 7 | T54: 7.8
B55: Sterk stedelijk | C55: 1 | D55: 1.8 | E55: 1.2 | F55: 2 | G55: 1.4 | H55: 2.2 | I55: 1.6 | J55: 2.4 | L55: Sterk stedelijk | M55: 5.4 | N55: 6.2 | O55: 6.4 | P55: 7.2 | Q55: 6.7 | R55: 7.5 | S55: 7 | T55: 7.8
B56: Matig stedelijk | C56: 1.1 | D56: 1.9 | E56: 1.3 | F56: 2.1 | G56: 1.5 | H56: 2.3 | I56: 1.6 | J56: 2.4 | L56: Matig stedelijk | M56: 6.4 | N56: 7.2 | O56: 6.5 | P56: 7.3 | Q56: 6.7 | R56: 7.5 | S56: 7 | T56: 7.8
B57: Weinig stedelijk | C57: 1.1 | D57: 1.9 | E57: 1.4 | F57: 2.2 | G57: 1.6 | H57: 2.4 | I57: 1.6 | J57: 2.4 | L57: Weinig stedelijk | M57: 6.8 | N57: 7.6 | O57: 6.9 | P57: 7.7 | Q57: 7 | R57: 7.8 | S57: 7 | T57: 7.8
B58: Niet stedelijk | C58: 1.1 | D58: 1.9 | E58: 1.4 | F58: 2.2 | G58: 1.6 | H58: 2.4 | I58: 1.6 | J58: 2.4 | L58: Niet stedelijk | M58: 6.8 | N58: 7.6 | O58: 6.9 | P58: 7.7 | Q58: 7 | R58: 7.8 | S58: 7 | T58: 7.8
A60: Huurhuis, sociaal huur | C60: Centrum | E60: Schil centrum | G60: Rest bebouwde kom | I60: Buitengebied | M60: Centrum | O60: Schil centrum | Q60: Rest bebouwde kom | S60: Buitengebied
C61: min. | D61: max. | E61: min. | F61: max. | G61: min. | H61: max. | I61: min. | J61: max. | M61: min. | N61: max. | O61: min. | P61: max. | Q61: min. | R61: max. | S61: min. | T61: max.
B62: Zeer sterk stedelijk | C62: 0.7 | D62: 1.5 | E62: 0.8 | F62: 1.6 | G62: 0.9 | H62: 1.7 | I62: 1.1 | J62: 1.9 | L62: Zeer sterk stedelijk | M62: 1.2 | N62: 2 | O62: 2.8 | P62: 3.6 | Q62: 3.9 | R62: 4.7 | S62: 5.2 | T62: 6
B63: Sterk stedelijk | C63: 0.8 | D63: 1.6 | E63: 0.9 | F63: 1.7 | G63: 1.1 | H63: 1.9 | I63: 1.2 | J63: 2 | L63: Sterk stedelijk | M63: 2.8 | N63: 3.6 | O63: 3.9 | P63: 4.7 | Q63: 4.5 | R63: 5.3 | S63: 5.2 | T63: 6
B64: Matig stedelijk | C64: 0.9 | D64: 1.7 | E64: 1 | F64: 1.8 | G64: 1.2 | H64: 2 | I64: 1.2 | J64: 2 | L64: Matig stedelijk | M64: 3.9 | N64: 4.7 | O64: 4.2 | P64: 5 | Q64: 4.5 | R64: 5.3 | S64: 5.2 | T64: 6
B65: Weinig stedelijk | C65: 0.9 | D65: 1.7 | E65: 1 | F65: 1.8 | G65: 1.2 | H65: 2 | I65: 1.2 | J65: 2 | L65: Weinig stedelijk | M65: 4.8 | N65: 5.6 | O65: 5 | P65: 5.8 | Q65: 5.2 | R65: 6 | S65: 5.2 | T65: 6
B66: Niet stedelijk | C66: 0.9 | D66: 1.7 | E66: 1 | F66: 1.8 | G66: 1.2 | H66: 2 | I66: 1.2 | J66: 2 | L66: Niet stedelijk | M66: 4.8 | N66: 5.6 | O66: 5 | P66: 5.8 | Q66: 5.2 | R66: 6 | S66: 5.2 | T66: 6
A68: Huur, appartement, duur | C68: Centrum | E68: Schil centrum | G68: Rest bebouwde kom | I68: Buitengebied | M68: Centrum | O68: Schil centrum | Q68: Rest bebouwde kom | S68: Buitengebied
C69: min. | D69: max. | E69: min. | F69: max. | G69: min. | H69: max. | I69: min. | J69: max. | M69: min. | N69: max. | O69: min. | P69: max. | Q69: min. | R69: max. | S69: min. | T69: max.
B70: Zeer sterk stedelijk | C70: 0.8 | D70: 1.6 | E70: 1 | F70: 1.8 | G70: 1.2 | H70: 2 | I70: 1.4 | J70: 2.2 | L70: Zeer sterk stedelijk | M70: 2.9 | N70: 3.7 | O70: 3.7 | P70: 4.5 | Q70: 4.7 | R70: 5.5 | S70: 5.6 | T70: 6.4
B71: Sterk stedelijk | C71: 0.9 | D71: 1.7 | E71: 1.1 | F71: 1.9 | G71: 1.3 | H71: 2.1 | I71: 1.5 | J71: 2.3 | L71: Sterk stedelijk | M71: 3.7 | N71: 4.5 | O71: 4.7 | P71: 5.5 | Q71: 5.2 | R71: 6 | S71: 5.6 | T71: 6.4
B72: Matig stedelijk | C72: 1 | D72: 1.8 | E72: 1.2 | F72: 2 | G72: 1.4 | H72: 2.2 | I72: 1.5 | J72: 2.3 | L72: Matig stedelijk | M72: 4.7 | N72: 5.5 | O72: 5 | P72: 5.8 | Q72: 5.2 | R72: 6 | S72: 5.6 | T72: 6.4
B73: Weinig stedelijk | C73: 1 | D73: 1.8 | E73: 1.3 | F73: 2.1 | G73: 1.5 | H73: 2.3 | I73: 1.5 | J73: 2.3 | L73: Weinig stedelijk | M73: 5.4 | N73: 6.2 | O73: 5.5 | P73: 6.3 | Q73: 5.6 | R73: 6.4 | S73: 5.6 | T73: 6.4
B74: Niet stedelijk | C74: 1.0 | D74: 1.8 | E74: 1.3 | F74: 2.1 | G74: 1.5 | H74: 2.3 | I74: 1.5 | J74: 2.3 | L74: Niet stedelijk | M74: 5.4 | N74: 6.2 | O74: 5.5 | P74: 6.3 | Q74: 5.6 | R74: 6.4 | S74: 5.6 | T74: 6.4
A76: Huur, appartement, midden/goedkoop | C76: Centrum | E76: Schil centrum | G76: Rest bebouwde kom | I76: Buitengebied | M76: Centrum | O76: Schil centrum | Q76: Rest bebouwde kom | S76: Buitengebied
C77: min. | D77: max. | E77: min. | F77: max. | G77: min. | H77: max. | I77: min. | J77: max. | M77: min. | N77: max. | O77: min. | P77: max. | Q77: min. | R77: max. | S77: min. | T77: max.
B78: Zeer sterk stedelijk | C78: 0.5 | D78: 1.3 | E78: 0.6 | F78: 1.4 | G78: 0.7 | H78: 1.5 | I78: 0.9 | J78: 1.7 | L78: Zeer sterk stedelijk | M78: 0.8 | N78: 1.6 | O78: 1.8 | P78: 2.6 | Q78: 2.8 | R78: 3.6 | S78: 3.7 | T78: 4.5
B79: Sterk stedelijk | C79: 0.6 | D79: 1.4 | E79: 0.7 | F79: 1.5 | G79: 0.9 | H79: 1.7 | I79: 1 | J79: 1.8 | L79: Sterk stedelijk | M79: 1.8 | N79: 2.6 | O79: 2.8 | P79: 3.6 | Q79: 3.2 | R79: 4 | S79: 3.7 | T79: 4.5
B80: Matig stedelijk | C80: 0.7 | D80: 1.5 | E80: 0.8 | F80: 1.6 | G80: 1 | H80: 1.8 | I80: 1 | J80: 1.8 | L80: Matig stedelijk | M80: 2.8 | N80: 3.6 | O80: 3 | P80: 3.8 | Q80: 3.2 | R80: 4 | S80: 3.7 | T80: 4.5
B81: Weinig stedelijk | C81: 0.7 | D81: 1.5 | E81: 0.8 | F81: 1.6 | G81: 1 | H81: 1.8 | I81: 1 | J81: 1.8 | L81: Weinig stedelijk | M81: 3.7 | N81: 4.5 | O81: 3.7 | P81: 4.5 | Q81: 3.7 | R81: 4.5 | S81: 3.7 | T81: 4.5
B82: Niet stedelijk | C82: 0.7 | D82: 1.5 | E82: 0.8 | F82: 1.6 | G82: 1 | H82: 1.8 | I82: 1 | J82: 1.8 | L82: Niet stedelijk | M82: 3.7 | N82: 4.5 | O82: 3.7 | P82: 4.5 | Q82: 3.7 | R82: 4.5 | S82: 3.7 | T82: 4.5
A84: Kamerverhuur, zelfstandig (niet student) | C84: Centrum | E84: Schil centrum | G84: Rest bebouwde kom | I84: Buitengebied | M84: Centrum | O84: Schil centrum | Q84: Rest bebouwde kom | S84: Buitengebied
C85: min. | D85: max. | E85: min. | F85: max. | G85: min. | H85: max. | I85: min. | J85: max. | M85: min. | N85: max. | O85: min. | P85: max. | Q85: min. | R85: max. | S85: min. | T85: max.
B86: Zeer sterk stedelijk | C86: 0.4 | D86: 0.4 | E86: 0.4 | F86: 0.5 | G86: 0.5 | H86: 0.6 | I86: 0.5 | J86: 0.7 | L86: Zeer sterk stedelijk | M86: 1.5 | N86: 1.5 | O86: 1.5 | P86: 1.8 | Q86: 1.8 | R86: 2.1 | S86: 1.8 | T86: 2.4
B87: Sterk stedelijk | C87: 0.5 | D87: 0.5 | E87: 0.5 | F87: 0.6 | G87: 0.6 | H87: 0.7 | I87: 0.6 | J87: 0.8 | L87: Sterk stedelijk | M87: 1.5 | N87: 1.5 | O87: 1.5 | P87: 1.8 | Q87: 1.8 | R87: 2.1 | S87: 1.8 | T87: 2.4
B88: Matig stedelijk | C88: 0.5 | D88: 0.6 | E88: 0.6 | F88: 0.7 | G88: 0.6 | H88: 0.8 | I88: 0.6 | J88: 0.8 | L88: Matig stedelijk | M88: 1.5 | N88: 1.8 | O88: 1.8 | P88: 2.1 | Q88: 1.8 | R88: 2.4 | S88: 1.8 | T88: 2.4
B89: Weinig stedelijk | C89: 0.5 | D89: 0.6 | E89: 0.6 | F89: 0.7 | G89: 0.6 | H89: 0.8 | I89: 0.6 | J89: 0.8 | L89: Weinig stedelijk | M89: 1.5 | N89: 1.8 | O89: 1.8 | P89: 2.1 | Q89: 1.8 | R89: 2.4 | S89: 1.8 | T89: 2.4
B90: Niet stedelijk | C90: 0.5 | D90: 0.6 | E90: 0.6 | F90: 0.7 | G90: 0.6 | H90: 0.8 | I90: 0.6 | J90: 0.8 | L90: Niet stedelijk | M90: 1.5 | N90: 1.8 | O90: 1.8 | P90: 2.1 | Q90: 1.8 | R90: 2.4 | S90: 1.8 | T90: 2.4
A92: Kamerverhuur, student, niet-zelfstandig | C92: Centrum | E92: Schil centrum | G92: Rest bebouwde kom | I92: Buitengebied | M92: Centrum | O92: Schil centrum | Q92: Rest bebouwde kom | S92: Buitengebied
C93: min. | D93: max. | E93: min. | F93: max. | G93: min. | H93: max. | I93: min. | J93: max. | M93: min. | N93: max. | O93: min. | P93: max. | Q93: min. | R93: max. | S93: min. | T93: max.
B94: Zeer sterk stedelijk | C94: 0.1 | D94: 0.2 | E94: 0.1 | F94: 0.2 | G94: 0.1 | H94: 0.2 | I94: 0.1 | J94: 0.2 | L94: Zeer sterk stedelijk | M94: 0.8 | N94: 1.2 | O94: 0.8 | P94: 1.2 | Q94: 0.8 | R94: 1.2 | S94: 0.8 | T94: 1.2
B95: Sterk stedelijk | C95: 0.2 | D95: 0.3 | E95: 0.2 | F95: 0.3 | G95: 0.2 | H95: 0.3 | I95: 0.2 | J95: 0.3 | L95: Sterk stedelijk | M95: 0.8 | N95: 1.2 | O95: 0.8 | P95: 1.2 | Q95: 0.8 | R95: 1.2 | S95: 0.8 | T95: 1.2
B96: Matig stedelijk | C96: 0.2 | D96: 0.3 | E96: 0.2 | F96: 0.3 | G96: 0.2 | H96: 0.3 | I96: 0.2 | J96: 0.3 | L96: Matig stedelijk | M96: 0.8 | N96: 1.2 | O96: 0.8 | P96: 1.2 | Q96: 0.8 | R96: 1.2 | S96: 0.8 | T96: 1.2
B97: Weinig stedelijk | C97: 0.2 | D97: 0.3 | E97: 0.2 | F97: 0.3 | G97: 0.2 | H97: 0.3 | I97: 0.2 | J97: 0.3 | L97: Weinig stedelijk | M97: 0.8 | N97: 1.2 | O97: 0.8 | P97: 1.2 | Q97: 0.8 | R97: 1.2 | S97: 0.8 | T97: 1.2
B98: Niet stedelijk | C98: 0.2 | D98: 0.3 | E98: 0.2 | F98: 0.3 | G98: 0.2 | H98: 0.3 | I98: 0.2 | J98: 0.3 | L98: Niet stedelijk | M98: 0.8 | N98: 1.2 | O98: 0.8 | P98: 1.2 | Q98: 0.8 | R98: 1.2 | S98: 0.8 | T98: 1.2
A100: Serviceflat | C100: Centrum | E100: Schil centrum | G100: Rest bebouwde kom | I100: Buitengebied | M100: Centrum | O100: Schil centrum | Q100: Rest bebouwde kom | S100: Buitengebied
C101: min. | D101: max. | E101: min. | F101: max. | G101: min. | H101: max. | I101: min. | J101: max. | M101: min. | N101: max. | O101: min. | P101: max. | Q101: min. | R101: max. | S101: min. | T101: max.
B102: Zeer sterk stedelijk | C102: 0.1 | D102: 0.5 | E102: 0.1 | F102: 0.5 | G102: 0.7 | H102: 1.2 | I102: 0.9 | J102: 1.3 | L102: Zeer sterk stedelijk | M102: 0.4 | N102: 1.2 | O102: 0.4 | P102: 1.2 | Q102: 2 | R102: 2.7 | S102: 2.2 | T102: 3
B103: Sterk stedelijk | C103: 0.2 | D103: 0.6 | E103: 0.8 | F103: 1.3 | G103: 0.9 | H103: 1.3 | I103: 1 | J103: 1.4 | L103: Sterk stedelijk | M103: 0.4 | N103: 1.2 | O103: 2 | P103: 2.7 | Q103: 2.1 | R103: 2.8 | S103: 2.2 | T103: 3
B104: Matig stedelijk | C104: 0.8 | D104: 1.3 | E104: 0.9 | F104: 1.3 | G104: 0.9 | H104: 1.3 | I104: 1 | J104: 1.4 | L104: Matig stedelijk | M104: 2 | N104: 2.7 | O104: 2 | P104: 2.7 | Q104: 2.1 | R104: 2.8 | S104: 2.2 | T104: 3
B105: Weinig stedelijk | C105: 0.8 | D105: 1.3 | E105: 0.9 | F105: 1.3 | G105: 1 | H105: 1.4 | I105: 1 | J105: 1.4 | L105: Weinig stedelijk | M105: 2 | N105: 2.7 | O105: 2.1 | P105: 2.8 | Q105: 2.2 | R105: 3 | S105: 2.2 | T105: 3
B106: Niet stedelijk | C106: 0.8 | D106: 1.3 | E106: 0.9 | F106: 1.3 | G106: 1 | H106: 1.4 | I106: 1 | J106: 1.4 | L106: Niet stedelijk | M106: 2 | N106: 2.7 | O106: 2.1 | P106: 2.8 | Q106: 2.2 | R106: 3 | S106: 2.2 | T106: 3
A108: Kleine eenpersoonswoning (tiny house, meestal grondgebonden) | C108: Centrum | E108: Schil centrum | G108: Rest bebouwde kom | I108: Buitengebied | M108: Centrum | O108: Schil centrum | Q108: Rest bebouwde kom | S108: Buitengebied
C109: min. | D109: max. | E109: min. | F109: max. | G109: min. | H109: max. | I109: min. | J109: max. | M109: min. | N109: max. | O109: min. | P109: max. | Q109: min. | R109: max. | S109: min. | T109: max.
B110: Zeer sterk stedelijk | C110: 0.4 | D110: 0.4 | E110: 0.4 | F110: 0.5 | G110: 0.5 | H110: 0.6 | I110: 0.5 | J110: 0.7 | L110: Zeer sterk stedelijk | M110: 1.5 | N110: 1.5 | O110: 1.5 | P110: 1.8 | Q110: 1.8 | R110: 2.1 | S110: 1.8 | T110: 2.4
B111: Sterk stedelijk | C111: 0.5 | D111: 0.5 | E111: 0.5 | F111: 0.6 | G111: 0.6 | H111: 0.7 | I111: 0.6 | J111: 0.8 | L111: Sterk stedelijk | M111: 1.5 | N111: 1.5 | O111: 1.5 | P111: 1.8 | Q111: 1.8 | R111: 2.1 | S111: 1.8 | T111: 2.4
B112: Matig stedelijk | C112: 0.5 | D112: 0.6 | E112: 0.6 | F112: 0.7 | G112: 0.6 | H112: 0.8 | I112: 0.6 | J112: 0.8 | L112: Matig stedelijk | M112: 1.5 | N112: 1.8 | O112: 1.8 | P112: 2.1 | Q112: 1.8 | R112: 2.4 | S112: 1.8 | T112: 2.4
B113: Weinig stedelijk | C113: 0.5 | D113: 0.6 | E113: 0.6 | F113: 0.7 | G113: 0.6 | H113: 0.8 | I113: 0.6 | J113: 0.8 | L113: Weinig stedelijk | M113: 1.5 | N113: 1.8 | O113: 1.8 | P113: 2.1 | Q113: 1.8 | R113: 2.4 | S113: 1.8 | T113: 2.4
B114: Niet stedelijk | C114: 0.5 | D114: 0.6 | E114: 0.6 | F114: 0.7 | G114: 0.6 | H114: 0.8 | I114: 0.6 | J114: 0.8 | L114: Niet stedelijk | M114: 1.5 | N114: 1.8 | O114: 1.8 | P114: 2.1 | Q114: 1.8 | R114: 2.4 | S114: 1.8 | T114: 2.4
A115: Kencijfers verkeersgeneratie; Werk en recreatie locaties
A116: Kantoor (zonder baliefunctie) | C116: Centrum | E116: Schil centrum | G116: Rest bebouwde kom | I116: Buitengebied | M116: Centrum | O116: Schil centrum | Q116: Rest bebouwde kom | S116: Buitengebied
C117: Min | D117: Max | E117: Min | F117: Max | G117: Min | H117: Max | I117: Min | J117: Max | M117: Min | N117: Max | O117: Min | P117: Max | Q117: Min | R117: Max | S117: Min | T117: Max
B118: Zeer sterk stedelijk | C118: 0.6 | D118: 1.1 | E118: 0.9 | F118: 1.4 | G118: 0.9 | H118: 1.4 | I118: 2.3 | J118: 2.8 | L118: Zeer sterk stedelijk | M118: 2.1 | N118: 3.8 | O118: 3 | P118: 4.7 | Q118: 3.2 | R118: 4.9 | S118: 7.9 | T118: 9.6
B119: Sterk stedelijk | C119: 0.9 | D119: 1.4 | E119: 1.3 | F119: 1.8 | G119: 1.4 | H119: 1.9 | I119: 2.3 | J119: 2.8 | L119: Sterk stedelijk | M119: 3.2 | N119: 4.9 | O119: 4.4 | P119: 6.2 | Q119: 4.7 | R119: 6.5 | S119: 7.9 | T119: 9.6
B120: Matig stedelijk | C120: 1.3 | D120: 1.8 | E120: 1.7 | F120: 2.2 | G120: 1.8 | H120: 2.3 | I120: 2.3 | J120: 2.8 | L120: Matig stedelijk | M120: 4.3 | N120: 6.1 | O120: 5.9 | P120: 7.7 | Q120: 6.3 | R120: 8.1 | S120: 7.9 | T120: 9.6
B121: Weinig stedelijk | C121: 1.6 | D121: 2.1 | E121: 2.1 | F121: 2.6 | G121: 2.3 | H121: 2.8 | I121: 2.3 | J121: 2.8 | L121: Niet stedelijk | M121: 5.5 | N121: 7.2 | O121: 7.4 | P121: 9.2 | Q121: 7.9 | R121: 9.6 | S121: 7.9 | T121: 9.6
B122: Niet stedelijk | C122: 1.6 | D122: 2.1 | E122: 2.1 | F122: 2.6 | G122: 2.3 | H122: 2.8 | I122: 2.3 | J122: 2.8 | L122: Weinig stedelijk | M122: 5.5 | N122: 7.2 | O122: 7.4 | P122: 9.2 | Q122: 7.9 | R122: 9.6 | S122: 7.9 | T122: 9.6
A124: Commerciële dienstverlening (met baliefunctie) | C124: Centrum | E124: Schil centrum | G124: Rest bebouwde kom | I124: Buitengebied | M124: Centrum | O124: Schil centrum | Q124: Rest bebouwde kom | S124: Buitengebied
C125: Min | D125: Max | E125: Min | F125: Max | G125: Min | H125: Max | I125: Min | J125: Max | M125: Min | N125: Max | O125: Min | P125: Max | Q125: Min | R125: Max | S125: Min | T125: Max
B126: Zeer sterk stedelijk | C126: 0.9 | D126: 1.4 | E126: 1.1 | F126: 1.6 | G126: 1.4 | H126: 1.9 | I126: 3.3 | J126: 3.8 | L126: Zeer sterk stedelijk | M126: 4.2 | N126: 6.6 | O126: 5.1 | P126: 7.5 | Q126: 6.5 | R126: 8.8 | S126: 15.4 | T126: 17.7
B127: Sterk stedelijk | C127: 1.3 | D127: 1.8 | E127: 1.6 | F127: 2.1 | G127: 2 | H127: 2.5 | I127: 3.3 | J127: 3.8 | L127: Sterk stedelijk | M127: 6.3 | N127: 8.6 | O127: 7.5 | P127: 9.9 | Q127: 9.4 | R127: 11.8 | S127: 15.4 | T127: 17.7
B128: Matig stedelijk | C128: 1.8 | D128: 2.3 | E128: 2.1 | F128: 2.6 | G128: 2.6 | H128: 3.1 | I128: 3.3 | J128: 3.8 | L128: Matig stedelijk | M128: 8.4 | N128: 10.8 | O128: 10 | P128: 12.4 | Q128: 12.4 | R128: 14.8 | S128: 15.4 | T128: 17.7
B129: Weinig stedelijk | C129: 2.2 | D129: 2.7 | E129: 2.7 | F129: 3.2 | G129: 3.3 | H129: 3.8 | I129: 3.3 | J129: 3.8 | L129: Weinig stedelijk | M129: 10.5 | N129: 12.9 | O129: 12.5 | P129: 14.8 | Q129: 15.4 | R129: 17.7 | S129: 15.4 | T129: 17.7
B130: Niet stedelijk | C130: 2.2 | D130: 2.7 | E130: 2.7 | F130: 3.2 | G130: 3.3 | H130: 3.8 | I130: 3.3 | J130: 3.8 | L130: Niet stedelijk | M130: 10.5 | N130: 12.9 | O130: 12.5 | P130: 14.8 | Q130: 15.4 | R130: 17.7 | S130: 15.4 | T130: 17.7
A132: Bedrijf arbeidsintensief/bezoerkersextensief (industire, laboratorium, werkplaats) | C132: Centrum | E132: Schil centrum | G132: Rest bebouwde kom | I132: Buitengebied | M132: Centrum | O132: Schil centrum | Q132: Rest bebouwde kom | S132: Buitengebied
C133: Min | D133: Max | E133: Min | F133: Max | G133: Min | H133: Max | I133: Min | J133: Max | M133: Min | N133: Max | O133: Min | P133: Max | Q133: Min | R133: Max | S133: Min | T133: Max
B134: Zeer sterk stedelijk | C134: 1 | D134: 1.5 | E134: 1.3 | F134: 1.8 | G134: 1.6 | H134: 2.1 | I134: 2.1 | J134: 2.6 | L134: Zeer sterk stedelijk | M134: 5.2 | N134: 7 | O134: 6.4 | P134: 8.1 | Q134: 7.5 | R134: 9.2 | S134: 9.1 | T134: 10.9
B135: Sterk stedelijk | C135: 1.1 | D135: 1.6 | E135: 1.5 | F135: 2 | G135: 1.9 | H135: 2.4 | I135: 2.1 | J135: 2.6 | L135: Sterk stedelijk | M135: 5.8 | N135: 7.5 | O135: 7 | P135: 8.8 | Q135: 8.3 | R135: 10.1 | S135: 9.1 | T135: 10.9
B136: Matig stedelijk | C136: 1.3 | D136: 1.8 | E136: 1.7 | F136: 2.2 | G136: 2.1 | H136: 2.6 | I136: 2.1 | J136: 2.6 | L136: Matig stedelijk | M136: 6.3 | N136: 8 | O136: 7.7 | P136: 9.4 | Q136: 9.1 | R136: 10.9 | S136: 9.1 | T136: 10.9
B137: Weinig stedelijk | C137: 1.3 | D137: 1.8 | E137: 1.7 | F137: 2.2 | G137: 2.1 | H137: 2.6 | I137: 2.1 | J137: 2.6 | L137: Weinig stedelijk | M137: 6.3 | N137: 8 | O137: 7.7 | P137: 9.4 | Q137: 9.1 | R137: 10.9 | S137: 9.1 | T137: 10.9
B138: Niet stedelijk | C138: 1.3 | D138: 1.8 | E138: 1.7 | F138: 2.2 | G138: 2.1 | H138: 2.6 | I138: 2.1 | J138: 2.6 | L138: Niet stedelijk | M138: 6.3 | N138: 8 | O138: 7.7 | P138: 9.4 | Q138: 9.1 | R138: 10.9 | S138: 9.1 | T138: 10.9
A140: Bedrijf arbeidsextensief/bezoekersextensief (loods, opslag, transportbedrijf) | C140: Centrum | E140: Schil centrum | G140: Rest bebouwde kom | I140: Buitengebied | M140: Centrum | O140: Schil centrum | Q140: Rest bebouwde kom | S140: Buitengebied
C141: Min | D141: Max | E141: Min | F141: Max | G141: Min | H141: Max | I141: Min | J141: Max | M141: Min | N141: Max | O141: Min | P141: Max | Q141: Min | R141: Max | S141: Min | T141: Max
B142: Zeer sterk stedelijk | C142: 0.3 | D142: 0.8 | E142: 0.5 | F142: 1 | G142: 0.6 | H142: 1.1 | I142: 0.8 | J142: 1.3 | L142: Zeer sterk stedelijk | M142: 2.2 | N142: 3.9 | O142: 2.7 | P142: 4.4 | Q142: 3.2 | R142: 4.9 | S142: 3.9 | T142: 5.7
B143: Sterk stedelijk | C143: 0.4 | D143: 0.9 | E143: 0.5 | F143: 1 | G143: 0.7 | H143: 1.2 | I143: 0.8 | J143: 1.3 | L143: Sterk stedelijk | M143: 2.4 | N143: 4.1 | O143: 3 | P143: 4.7 | Q143: 3.6 | R143: 5.3 | S143: 3.9 | T143: 5.7
B144: Matig stedelijk | C144: 0.4 | D144: 0.9 | E144: 0.6 | F144: 1.1 | G144: 0.8 | H144: 1.3 | I144: 0.8 | J144: 1.3 | L144: Matig stedelijk | M144: 2.6 | N144: 4.4 | O144: 3.3 | P144: 5 | Q144: 3.9 | R144: 5.7 | S144: 3.9 | T144: 5.7
B145: Weinig stedelijk | C145: 0.4 | D145: 0.9 | E145: 0.6 | F145: 1.1 | G145: 0.8 | H145: 1.3 | I145: 0.8 | J145: 1.3 | L145: Weinig stedelijk | M145: 2.6 | N145: 4.4 | O145: 3.3 | P145: 5 | Q145: 3.9 | R145: 5.7 | S145: 3.9 | T145: 5.7
B146: Niet stedelijk | C146: 0.4 | D146: 0.9 | E146: 0.6 | F146: 1.1 | G146: 0.8 | H146: 1.3 | I146: 0.8 | J146: 1.3 | L146: Niet stedelijk | M146: 2.6 | N146: 4.4 | O146: 3.3 | P146: 5 | Q146: 3.9 | R146: 5.7 | S146: 3.9 | T146: 5.7
A148: Bedrijfverzamelgebouw | C148: Centrum | E148: Schil centrum | G148: Rest bebouwde kom | I148: Buitengebied | M148: Centrum | O148: Schil centrum | Q148: Rest bebouwde kom | S148: Buitengebied
C149: Min | D149: Max | E149: Min | F149: Max | G149: Min | H149: Max | I149: Min | J149: Max | M149: Min | N149: Max | O149: Min | P149: Max | Q149: Min | R149: Max | S149: Min | T149: Max
B150: Zeer sterk stedelijk | C150: 0.6 | D150: 1.1 | E150: 0.9 | F150: 1.4 | G150: 1.1 | H150: 1.6 | I150: 1.7 | J150: 2.2 | L150: Zeer sterk stedelijk | M150: 3.2 | N150: 4.9 | O150: 4 | P150: 5.7 | Q150: 4.6 | R150: 6.4 | S150: 7 | T150: 8.7
B151: Sterk stedelijk | C151: 0.8 | D151: 1.3 | E151: 1.1 | F151: 1.6 | G151: 1.3 | H151: 1.8 | I151: 1.7 | J151: 2.2 | L151: Sterk stedelijk | M151: 3.8 | N151: 5.5 | O151: 4.8 | P151: 6.5 | Q151: 5.5 | R151: 7.3 | S151: 7 | T151: 8.7
B152: Matig stedelijk | C152: 1 | D152: 1.5 | E152: 1.3 | F152: 1.8 | G152: 1.6 | H152: 2.1 | I152: 1.7 | J152: 2.2 | L152: Matig stedelijk | M152: 4.4 | N152: 6.2 | O152: 5.6 | P152: 7.4 | Q152: 6.5 | R152: 8.2 | S152: 7 | T152: 8.7
B153: Weinig stedelijk | C153: 1.1 | D153: 1.6 | E153: 1.5 | F153: 2 | G153: 1.7 | H153: 2.2 | I153: 1.7 | J153: 2.2 | L153: Weinig stedelijk | M153: 4.8 | N153: 6.5 | O153: 6.1 | P153: 7.9 | Q153: 7 | R153: 8.7 | S153: 7 | T153: 8.7
B154: Niet stedelijk | C154: 1.1 | D154: 1.6 | E154: 1.5 | F154: 2 | G154: 1.7 | H154: 2.2 | I154: 1.7 | J154: 2.2 | L154: Niet stedelijk | M154: 4.8 | N154: 6.5 | O154: 6.1 | P154: 7.9 | Q154: 7 | R154: 8.7 | S154: 7 | T154: 8.7
A156: Buurtsupermarkt | C156: Centrum | E156: Schil centrum | G156: Rest bebouwde kom | I156: Buitengebied | M156: Centrum | O156: Schil centrum | Q156: Rest bebouwde kom | S156: Buitengebied
C157: Min | D157: Max | E157: Min | F157: Max | G157: Min | H157: Max | I157: Min | J157: Max | M157: Min | N157: Max | O157: Min | P157: Max | Q157: Min | R157: Max | S157: Min | T157: Max
B158: Zeer sterk stedelijk | C158: 0.4 | D158: 2.4 | E158: 1 | F158: 3 | G158: 1.6 | H158: 3.6 | I158: n.v.t. | J158: n.v.t. | L158: Zeer sterk stedelijk | M158: 11.5 | N158: 63.4 | O158: 26.5 | P158: 78.4 | Q158: 41.6 | R158: 93.4 | S158: n.v.t. | T158: n.v.t.
B159: Sterk stedelijk | C159: 0.9 | D159: 2.9 | E159: 1.7 | F159: 3.7 | G159: 2.4 | H159: 4.4 | I159: n.v.t. | J159: n.v.t. | L159: Sterk stedelijk | M159: 23.5 | N159: 75.4 | O159: 43.3 | P159: 95.2 | Q159: 63.1 | R159: 115 | S159: n.v.t. | T159: n.v.t.
B160: Matig stedelijk | C160: 0.9 | D160: 2.9 | E160: 1.7 | F160: 3.7 | G160: 2.5 | H160: 4.5 | I160: n.v.t. | J160: n.v.t. | L160: Matig stedelijk | M160: 23.8 | N160: 75.6 | O160: 43.7 | P160: 95.5 | Q160: 63.6 | R160: 115.4 | S160: n.v.t. | T160: n.v.t.
B161: Weinig stedelijk | C161: 1.3 | D161: 3.3 | E161: 2.2 | F161: 4.2 | G161: 3.1 | H161: 5.1 | I161: n.v.t. | J161: n.v.t. | L161: Weinig stedelijk | M161: 32.6 | N161: 84.4 | O161: 56 | P161: 107.8 | Q161: 79.4 | R161: 131.2 | S161: n.v.t. | T161: n.v.t.
B162: Niet stedelijk | C162: 1.4 | D162: 3.4 | E162: 2.3 | F162: 4.3 | G162: 3.3 | H162: 5.3 | I162: n.v.t. | J162: n.v.t. | L162: Niet stedelijk | M162: 35.6 | N162: 87.5 | O162: 60.2 | P162: 112.1 | Q162: 84.9 | R162: 136.7 | S162: n.v.t. | T162: n.v.t.
A164: Fullservice-supermarkt | C164: Centrum | E164: Schil centrum | G164: Rest bebouwde kom | I164: Buitengebied | M164: Centrum | O164: Schil centrum | Q164: Rest bebouwde kom | S164: Buitengebied
C165: Min | D165: Max | E165: Min | F165: Max | G165: Min | H165: Max | I165: Min | J165: Max | M165: Min | N165: Max | O165: Min | P165: Max | Q165: Min | R165: Max | S165: Min | T165: Max
B166: Zeer sterk stedelijk | C166: 1.5 | D166: 3.8 | E166: 2.2 | F166: 4.7 | G166: 2.9 | H166: 5.4 | I166: n.v.t. | J166: n.v.t. | L166: Zeer sterk stedelijk | M166: 31.1 | N166: 72.7 | O166: 57 | P166: 98.6 | Q166: 70 | R166: 111.6 | S166: n.v.t. | T166: n.v.t.
B167: Sterk stedelijk | C167: 2.1 | D167: 4.5 | E167: 3 | F167: 5.6 | G167: 3.9 | H167: 6.4 | I167: n.v.t. | J167: n.v.t. | L167: Sterk stedelijk | M167: 43.6 | N167: 85.2 | O167: 75.8 | P167: 117.4 | Q167: 91.9 | R167: 133.5 | S167: n.v.t. | T167: n.v.t.
B168: Matig stedelijk | C168: 2.1 | D168: 4.6 | E168: 3.1 | F168: 5.7 | G168: 4 | H168: 6.4 | I168: n.v.t. | J168: n.v.t. | L168: Matig stedelijk | M168: 43.9 | N168: 85.4 | O168: 76.2 | P168: 117.8 | Q168: 92.3 | R168: 133.9 | S168: n.v.t. | T168: n.v.t.
B169: Weinig stedelijk | C169: 2.6 | D169: 5.1 | E169: 3.6 | F169: 6.3 | G169: 4.6 | H169: 7.2 | I169: n.v.t. | J169: n.v.t. | L169: Weinig stedelijk | M169: 53 | N169: 94.6 | O169: 89.9 | P169: 131.5 | Q169: 108.4 | R169: 149.9 | S169: n.v.t. | T169: n.v.t.
B170: Niet stedelijk | C170: 2.7 | D170: 5.2 | E170: 3.8 | F170: 6.6 | G170: 4.8 | H170: 7.5 | I170: n.v.t. | J170: n.v.t. | L170: Niet stedelijk | M170: 56.2 | N170: 97.8 | O170: 94.7 | P170: 136.3 | Q170: 113.9 | R170: 155.5 | S170: n.v.t. | T170: n.v.t.
A172: Grote supermarkt (XL) | C172: Centrum | E172: Schil centrum | G172: Rest bebouwde kom | I172: Buitengebied | M172: Centrum | O172: Schil centrum | Q172: Rest bebouwde kom | S172: Buitengebied
C173: Min | D173: Max | E173: Min | F173: Max | G173: Min | H173: Max | I173: Min | J173: Max | M173: Min | N173: Max | O173: Min | P173: Max | Q173: Min | R173: Max | S173: Min | T173: Max
B174: zeer sterk stedelijk | C174: 4.1 | D174: 6.1 | E174: 4.8 | F174: 6.8 | G174: 5.6 | H174: 7.6 | I174: n.v.t. | J174: n.v.t. | L174: zeer sterk stedelijk | M174: 63.2 | N174: 94.2 | O174: 75.1 | P174: 106.1 | Q174: 86.5 | R174: 117.5 | S174: n.v.t. | T174: n.v.t.
B175: sterk stedelijk | C175: 4.9 | D175: 6.9 | E175: 5.8 | F175: 7.8 | G175: 6.7 | H175: 8.7 | I175: n.v.t. | J175: n.v.t. | L175: sterk stedelijk | M175: 76.7 | N175: 107.7 | O175: 90.6 | P175: 121.6 | Q175: 104 | R175: 134.9 | S175: n.v.t. | T175: n.v.t.
B176: matig stedelijk | C176: 5 | D176: 7 | E176: 5.9 | F176: 7.9 | G176: 6.7 | H176: 8.7 | I176: n.v.t. | J176: n.v.t. | L176: matig stedelijk | M176: 77 | N176: 108 | O176: 90.9 | P176: 121.9 | Q176: 104.3 | R176: 135.3 | S176: n.v.t. | T176: n.v.t.
B177: weinig stedelijk | C177: 5.6 | D177: 7.6 | E177: 6.6 | F177: 8.6 | G177: 7.6 | H177: 9.6 | I177: n.v.t. | J177: n.v.t. | L177: weinig stedelijk | M177: 86.8 | N177: 117.8 | O177: 102.3 | P177: 133.3 | Q177: 117.1 | R177: 148.1 | S177: n.v.t. | T177: n.v.t.
B178: niet stedelijk | C178: 5.8 | D178: 7.8 | E178: 6.9 | F178: 8.9 | G178: 7.8 | H178: 9.8 | I178: n.v.t. | J178: n.v.t. | L178: niet stedelijk | M178: 90.2 | N178: 121.2 | O178: 106.2 | P178: 137.2 | Q178: 121.5 | R178: 152.5 | S178: n.v.t. | T178: n.v.t.
A180: Groothandel specialist | C180: Centrum | E180: Schil centrum | G180: Rest bebouwde kom | I180: Buitengebied | M180: Centrum | O180: Schil centrum | Q180: Rest bebouwde kom | S180: Buitengebied
C181: Min | D181: Max | E181: Min | F181: Max | G181: Min | H181: Max | I181: Min | J181: Max | M181: Min | N181: Max | O181: Min | P181: Max | Q181: Min | R181: Max | S181: Min | T181: Max
B182: zeer sterk stedelijk | C182: n.v.t. | D182: n.v.t. | E182: 3.9 | F182: 5.4 | G182: 4.1 | H182: 6.0 | I182: n.v.t. | J182: n.v.t. | L182: zeer sterk stedelijk | M182: n.v.t. | N182: n.v.t. | O182: 27.1 | P182: 39.3 | Q182: 27.4 | R182: 39.6 | S182: n.v.t. | T182: n.v.t.
B183: sterk stedelijk | C183: n.v.t. | D183: n.v.t. | E183: 4.9 | F183: 6.4 | G183: 4.9 | H183: 6.9 | I183: n.v.t. | J183: n.v.t. | L183: sterk stedelijk | M183: n.v.t. | N183: n.v.t. | O183: 32.8 | P183: 45 | Q183: 33.1 | R183: 45.4 | S183: n.v.t. | T183: n.v.t.
B184: matig stedelijk | C184: n.v.t. | D184: n.v.t. | E184: 4.9 | F184: 6.4 | G184: 4.9 | H184: 6.9 | I184: n.v.t. | J184: n.v.t. | L184: matig stedelijk | M184: n.v.t. | N184: n.v.t. | O184: 32.9 | P184: 45.1 | Q184: 33.3 | R184: 45.5 | S184: n.v.t. | T184: n.v.t.
B185: weinig stedelijk | C185: n.v.t. | D185: n.v.t. | E185: 5.6 | F185: 7.1 | G185: 5.6 | H185: 7.9 | I185: n.v.t. | J185: n.v.t. | L185: weinig stedelijk | M185: n.v.t. | N185: n.v.t. | O185: 37 | P185: 49.3 | Q185: 37.4 | R185: 49.7 | S185: n.v.t. | T185: n.v.t.
B186: niet stedelijk | C186: n.v.t. | D186: n.v.t. | E186: 5.6 | F186: 7.3 | G186: 5.6 | H186: 7.9 | I186: n.v.t. | J186: n.v.t. | L186: niet stedelijk | M186: n.v.t. | N186: n.v.t. | O186: 38.5 | P186: 50.7 | Q186: 38.9 | R186: 51.1 | S186: n.v.t. | T186: n.v.t.
A188: Groothandel algemeen | C188: Centrum | E188: Schil centrum | G188: Rest bebouwde kom | I188: Buitengebied | M188: Centrum | O188: Schil centrum | Q188: Rest bebouwde kom | S188: Buitengebied
C189: Min | D189: Max | E189: Min | F189: Max | G189: Min | H189: Max | I189: Min | J189: Max | M189: Min | N189: Max | O189: Min | P189: Max | Q189: Min | R189: Max | S189: Min | T189: Max
B190: zeer sterk stedelijk | C190: n.v.t. | D190: n.v.t. | E190: 4.4 | F190: 6.4 | G190: 4.5 | H190: 6.5 | I190: n.v.t. | J190: n.v.t. | L190: zeer sterk stedelijk | M190: n.v.t. | N190: n.v.t. | O190: 27.1 | P190: 39.3 | Q190: 27.4 | R190: 39.6 | S190: n.v.t. | T190: n.v.t.
B191: sterk stedelijk | C191: n.v.t. | D191: n.v.t. | E191: 5.4 | F191: 7.4 | G191: 5.4 | H191: 7.4 | I191: n.v.t. | J191: n.v.t. | L191: sterk stedelijk | M191: n.v.t. | N191: n.v.t. | O191: 32.8 | P191: 45 | Q191: 33.1 | R191: 45.4 | S191: n.v.t. | T191: n.v.t.
B192: matig stedelijk | C192: n.v.t. | D192: n.v.t. | E192: 5.4 | F192: 7.4 | G192: 5.4 | H192: 7.4 | I192: n.v.t. | J192: n.v.t. | L192: matig stedelijk | M192: n.v.t. | N192: n.v.t. | O192: 32.9 | P192: 45.1 | Q192: 33.3 | R192: 45.5 | S192: n.v.t. | T192: n.v.t.
B193: weinig stedelijk | C193: n.v.t. | D193: n.v.t. | E193: 6.1 | F193: 8.1 | G193: 6.1 | H193: 8.1 | I193: n.v.t. | J193: n.v.t. | L193: weinig stedelijk | M193: n.v.t. | N193: n.v.t. | O193: 37 | P193: 49.3 | Q193: 37.4 | R193: 49.7 | S193: n.v.t. | T193: n.v.t.
B194: niet stedelijk | C194: n.v.t. | D194: n.v.t. | E194: 6.3 | F194: 8.3 | G194: 6.4 | H194: 8.4 | I194: n.v.t. | J194: n.v.t. | L194: niet stedelijk | M194: n.v.t. | N194: n.v.t. | O194: 38.5 | P194: 50.7 | Q194: 38.9 | R194: 51.1 | S194: n.v.t. | T194: n.v.t.
A196: Binnenstad of hoofdwinkel (stads)centrum 20,000-30,000 inwoners | C196: Centrum | E196: Schil centrum | G196: Rest bebouwde kom | I196: Buitengebied | M196: Centrum | O196: Schil centrum | Q196: Rest bebouwde kom | S196: Buitengebied
C197: Min | D197: Max | E197: Min | F197: Max | G197: Min | H197: Max | I197: Min | J197: Max | M197: Min | N197: Max | O197: Min | P197: Max | Q197: Min | R197: Max | S197: Min | T197: Max
B198: zeer sterk stedelijk | C198: 2.5 | D198: 3.5 | E198: n.v.t. | F198: n.v.t. | G198: n.v.t. | H198: n.v.t. | I198: n.v.t. | J198: n.v.t. | L198: zeer sterk stedelijk | M198: 23 | N198: 32.2 | O198: n.v.t. | P198: n.v.t. | Q198: n.v.t. | R198: n.v.t. | S198: n.v.t. | T198: n.v.t.
B199: sterk stedelijk | C199: 2.8 | D199: 3.8 | E199: n.v.t. | F199: n.v.t. | G199: n.v.t. | H199: n.v.t. | I199: n.v.t. | J199: n.v.t. | L199: sterk stedelijk | M199: 26 | N199: 35.2 | O199: n.v.t. | P199: n.v.t. | Q199: n.v.t. | R199: n.v.t. | S199: n.v.t. | T199: n.v.t.
B200: matig stedelijk | C200: 2.8 | D200: 4.1 | E200: n.v.t. | F200: n.v.t. | G200: n.v.t. | H200: n.v.t. | I200: n.v.t. | J200: n.v.t. | L200: matig stedelijk | M200: 26.1 | N200: 35.2 | O200: n.v.t. | P200: n.v.t. | Q200: n.v.t. | R200: n.v.t. | S200: n.v.t. | T200: n.v.t.
B201: weinig stedelijk | C201: 3.1 | D201: 4.1 | E201: n.v.t. | F201: n.v.t. | G201: n.v.t. | H201: n.v.t. | I201: n.v.t. | J201: n.v.t. | L201: weinig stedelijk | M201: 28.2 | N201: 37.4 | O201: n.v.t. | P201: n.v.t. | Q201: n.v.t. | R201: n.v.t. | S201: n.v.t. | T201: n.v.t.
B202: niet stedelijk | C202: 3.2 | D202: 4.2 | E202: n.v.t. | F202: n.v.t. | G202: n.v.t. | H202: n.v.t. | I202: n.v.t. | J202: n.v.t. | L202: niet stedelijk | M202: 29 | N202: 38.2 | O202: n.v.t. | P202: n.v.t. | Q202: n.v.t. | R202: n.v.t. | S202: n.v.t. | T202: n.v.t.
A204: Binnenstad of hoofdwinkel(stadscentrum 30,000-50,000 inwoners | C204: Centrum | E204: Schil centrum | G204: Rest bebouwde kom | I204: Buitengebied | M204: Centrum | O204: Schil centrum | Q204: Rest bebouwde kom | S204: Buitengebied
C205: Min | D205: Max | E205: Min | F205: Max | G205: Min | H205: Max | I205: Min | J205: Max | M205: Min | N205: Max | O205: Min | P205: Max | Q205: Min | R205: Max | S205: Min | T205: Max
B206: zeer sterk stedelijk | C206: 2.6 | D206: 3.6 | E206: n.v.t. | F206: n.v.t. | G206: n.v.t. | H206: n.v.t. | I206: n.v.t. | J206: n.v.t. | L206: zeer sterk stedelijk | M206: 20.4 | N206: 28.2 | O206: n.v.t. | P206: n.v.t. | Q206: n.v.t. | R206: n.v.t. | S206: n.v.t. | T206: n.v.t.
B207: sterk stedelijk | C207: 2.9 | D207: 3.9 | E207: n.v.t. | F207: n.v.t. | G207: n.v.t. | H207: n.v.t. | I207: n.v.t. | J207: n.v.t. | L207: sterk stedelijk | M207: 23 | N207: 30.8 | O207: n.v.t. | P207: n.v.t. | Q207: n.v.t. | R207: n.v.t. | S207: n.v.t. | T207: n.v.t.
B208: matig stedelijk | C208: 3 | D208: 4 | E208: n.v.t. | F208: n.v.t. | G208: n.v.t. | H208: n.v.t. | I208: n.v.t. | J208: n.v.t. | L208: matig stedelijk | M208: 23.1 | N208: 30.9 | O208: n.v.t. | P208: n.v.t. | Q208: n.v.t. | R208: n.v.t. | S208: n.v.t. | T208: n.v.t.
B209: weinig stedelijk | C209: 3.2 | D209: 4.2 | E209: n.v.t. | F209: n.v.t. | G209: n.v.t. | H209: n.v.t. | I209: n.v.t. | J209: n.v.t. | L209: weinig stedelijk | M209: 25 | N209: 32.8 | O209: n.v.t. | P209: n.v.t. | Q209: n.v.t. | R209: n.v.t. | S209: n.v.t. | T209: n.v.t.
B210: niet stedelijk | C210: 3.3 | D210: 4.3 | E210: n.v.t. | F210: n.v.t. | G210: n.v.t. | H210: n.v.t. | I210: n.v.t. | J210: n.v.t. | L210: niet stedelijk | M210: 25.7 | N210: 33.5 | O210: n.v.t. | P210: n.v.t. | Q210: n.v.t. | R210: n.v.t. | S210: n.v.t. | T210: n.v.t.
A212: Binnenstad of hoofdwinkel(stads)centrum 50,000-100,000 | C212: Centrum | E212: Schil centrum | G212: Rest bebouwde kom | I212: Buitengebied | M212: Centrum | O212: Schil centrum | Q212: Rest bebouwde kom | S212: Buitengebied
C213: Min | D213: Max | E213: Min | F213: Max | G213: Min | H213: Max | I213: Min | J213: Max | M213: Min | N213: Max | O213: Min | P213: Max | Q213: Min | R213: Max | S213: Min | T213: Max
B214: zeer sterk stedelijk | C214: 2.9 | D214: 3.9 | E214: n.v.t. | F214: n.v.t. | G214: n.v.t. | H214: n.v.t. | I214: n.v.t. | J214: n.v.t. | L214: zeer sterk stedelijk | M214: 21.3 | N214: 28.6 | O214: n.v.t. | P214: n.v.t. | Q214: n.v.t. | R214: n.v.t. | S214: n.v.t. | T214: n.v.t.
B215: sterk stedelijk | C215: 3.3 | D215: 4.3 | E215: n.v.t. | F215: n.v.t. | G215: n.v.t. | H215: n.v.t. | I215: n.v.t. | J215: n.v.t. | L215: sterk stedelijk | M215: 23.9 | N215: 31.3 | O215: n.v.t. | P215: n.v.t. | Q215: n.v.t. | R215: n.v.t. | S215: n.v.t. | T215: n.v.t.
B216: matig stedelijk | C216: 3.3 | D216: 4.3 | E216: n.v.t. | F216: n.v.t. | G216: n.v.t. | H216: n.v.t. | I216: n.v.t. | J216: n.v.t. | L216: matig stedelijk | M216: 24 | N216: 31.3 | O216: n.v.t. | P216: n.v.t. | Q216: n.v.t. | R216: n.v.t. | S216: n.v.t. | T216: n.v.t.
B217: weinig stedelijk | C217: 3.5 | D217: 4.5 | E217: n.v.t. | F217: n.v.t. | G217: n.v.t. | H217: n.v.t. | I217: n.v.t. | J217: n.v.t. | L217: weinig stedelijk | M217: 26 | N217: 33.3 | O217: n.v.t. | P217: n.v.t. | Q217: n.v.t. | R217: n.v.t. | S217: n.v.t. | T217: n.v.t.
B218: niet stedelijk | C218: 3.6 | D218: 4.6 | E218: n.v.t. | F218: n.v.t. | G218: n.v.t. | H218: n.v.t. | I218: n.v.t. | J218: n.v.t. | L218: niet stedelijk | M218: 26.7 | N218: 34 | O218: n.v.t. | P218: n.v.t. | Q218: n.v.t. | R218: n.v.t. | S218: n.v.t. | T218: n.v.t.
A220: Binnenstad of hoofdwinkel(stads)centrum 1000,000-175,000 | C220: Centrum | E220: Schil centrum | G220: Rest bebouwde kom | I220: Buitengebied | M220: Centrum | O220: Schil centrum | Q220: Rest bebouwde kom | S220: Buitengebied
C221: Min | D221: Max | E221: Min | F221: Max | G221: Min | H221: Max | I221: Min | J221: Max | M221: Min | N221: Max | O221: Min | P221: Max | Q221: Min | R221: Max | S221: Min | T221: Max
B222: zeer sterk stedelijk | C222: 3 | D222: 4 | E222: n.v.t. | F222: n.v.t. | G222: n.v.t. | H222: n.v.t. | I222: n.v.t. | J222: n.v.t. | L222: zeer sterk stedelijk | M222: 19.9 | N222: 26.6 | O222: n.v.t. | P222: n.v.t. | Q222: n.v.t. | R222: n.v.t. | S222: n.v.t. | T222: n.v.t.
B223: sterk stedelijk | C223: 3.4 | D223: 4.4 | E223: n.v.t. | F223: n.v.t. | G223: n.v.t. | H223: n.v.t. | I223: n.v.t. | J223: n.v.t. | L223: sterk stedelijk | M223: 22.4 | N223: 29.1 | O223: n.v.t. | P223: n.v.t. | Q223: n.v.t. | R223: n.v.t. | S223: n.v.t. | T223: n.v.t.
B224: matig stedelijk | C224: 3.4 | D224: 4.4 | E224: n.v.t. | F224: n.v.t. | G224: n.v.t. | H224: n.v.t. | I224: n.v.t. | J224: n.v.t. | L224: matig stedelijk | M224: 22.5 | N224: 29.1 | O224: n.v.t. | P224: n.v.t. | Q224: n.v.t. | R224: n.v.t. | S224: n.v.t. | T224: n.v.t.
B225: weinig stedelijk | C225: 3.7 | D225: 4.7 | E225: n.v.t. | F225: n.v.t. | G225: n.v.t. | H225: n.v.t. | I225: n.v.t. | J225: n.v.t. | L225: weinig stedelijk | M225: 24.3 | N225: 31 | O225: n.v.t. | P225: n.v.t. | Q225: n.v.t. | R225: n.v.t. | S225: n.v.t. | T225: n.v.t.
B226: niet stedelijk | C226: 3.7 | D226: 4.7 | E226: n.v.t. | F226: n.v.t. | G226: n.v.t. | H226: n.v.t. | I226: n.v.t. | J226: n.v.t. | L226: niet stedelijk | M226: 24.9 | N226: 31.6 | O226: n.v.t. | P226: n.v.t. | Q226: n.v.t. | R226: n.v.t. | S226: n.v.t. | T226: n.v.t.
... 609 more rows

Sheet Projectgebied

Sheet Dropdownmenu
A1: Functies | B1: Stedelijkheidsgraad | C1: Schil | F1: Eenheid Parkeernorm | G1: Eenheid Verkeersgeneratie | H1: Eenheid Aanwezigheidspercentages | I1: Bezoekers pp (alleen voor woningen en ziekenhuis)
A2: <Selecteer> | B2: <Selecteer> | C2: <Selecteer> | E2: <Selecteer>
A3: Koop, Vrijstaand | B3: Zeer sterk | C3: Centrum | E3: 1 | F3: Per woning | G3: Per woning | H3: woningen bewoners | I3: 0.3
A4: koop, twee onder een kap | B4: Sterk | C4: Schilcentrum | E4: 5 | F4: Per woning | G4: Per woning | H4: woningen bewoners | I4: 0.3
A5: Koop, tussen/hoek | B5: Matig | C5: Rest. Bebouwde kom | E5: 10 | F5: Per woning | G5: Per woning | H5: woningen bewoners | I5: 0.3
A6: Koop, appartement, duur | B6: Weinig | C6: Buitengebied | F6: Per woning | G6: Per woning | H6: woningen bewoners | I6: 0.3
A7: Koop, appartement, Midden | B7: Niet | F7: Per woning | G7: Per woning | H7: woningen bewoners | I7: 0.3
A8: Koop, appartement, goedkoop | F8: Per woning | G8: Per woning | H8: woningen bewoners | I8: 0.3
A9: Huurhuis, vrije sector | F9: Per woning | G9: Per woning | H9: woningen bewoners | I9: 0.3
A10: Huurhuis, sociaal huur | F10: Per woning | G10: Per woning | H10: woningen bewoners | I10: 0.3
A11: Huur, appartement, duur | F11: Per woning | G11: Per woning | H11: woningen bewoners | I11: 0.3
A12: Huur, appartement, midden/goedkoop | F12: Per woning | G12: Per woning | H12: woningen bewoners | I12: 0.3
A13: Kamerverhuur, zelfstandig (niet student) | F13: Per woning | G13: Per woning | H13: woningen bewoners | I13: 0.2
A14: Kamerverhuur, student, niet-zelfstandig | F14: Per woning | G14: Per woning | H14: woningen bewoners | I14: 0.2
A15: Serviceflat | F15: Per woning | G15: Per woning | H15: woningen bewoners | I15: 0.3
A16: Kleine eenpersoonswoning (tiny house, meestal grondgebonden) | F16: Per 100m2 bvo | G16: Per 100m2 bvo | H16: woningen bewoners | I16: 0.3
A17: Kantoor (zonder baliefunctie) | F17: Per 100m2 bvo | G17: Per 100m2 bvo | H17: kantoor/bedrijven
A18: Commerciële dienstverlening (met baliefunctie) | F18: Per 100m2 bvo | G18: Per 100m2 bvo | H18: commerciële dienstverlening
A19: Bedrijf arbeidsintensief/bezoerkersextensief (industire, laboratorium, werkplaats) | F19: Per 100m2 bvo | G19: Per 100m2 bvo | H19: kantoor/bedrijven
A20: Bedrijf arbeidsextensief/bezoekersextensief (loods, opslag, transportbedrijf) | F20: Per 100m2 bvo | G20: Per 100m2 bvo | H20: kantoor/bedrijven
A21: Bedrijfverzamelgebouw | F21: Per 100m2 bvo | G21: Per 100m2 bvo | H21: kantoor/bedrijven
A22: Buurtsupermarkt | F22: Per 100m2 bvo | G22: Per 100m2 bvo | H22: supermarkt
A23: Fullservice-supermarkt | F23: Per 100m2 bvo | G23: Per 100m2 bvo | H23: supermarkt
A24: Grote supermarkt (XL) | F24: Per 100m2 bvo | G24: Per 100m2 bvo | H24: supermarkt
A25: Groothandel specialist | F25: Per 100m2 bvo | G25: Per 100m2 bvo | H25: grootschalige detailhandel
A26: Groothandel algemeen | F26: Per 100m2 bvo | G26: Per 100m2 bvo | H26: grootschalige detailhandel
A27: Binnenstad of hoofdwinkel (stads)centrum 20,000-30,000 inwoners | F27: Per 100m2 bvo | G27: Per 100m2 bvo
A28: Binnenstad of hoofdwinkel(stadscentrum 30,000-50,000 inwoners | F28: Per 100m2 bvo | G28: Per 100m2 bvo
A29: Binnenstad of hoofdwinkel(stads)centrum 50,000-100,000 | F29: Per 100m2 bvo | G29: Per 100m2 bvo
A30: Binnenstad of hoofdwinkel(stads)centrum 1000,000-175,000 | F30: Per 100m2 bvo | G30: Per 100m2 bvo
A31: Binnenstad of hoofdwinkel(stads)centrum >175,000 | F31: Per 100m2 bvo | G31: Per 100m2 bvo
A32: Buurt- en dorpscentrum | F32: Per 100m2 bvo | G32: Per 100m2 bvo
A33: Wijkcentrum klein | F33: Per 100m2 bvo | G33: Per 100m2 bvo
A34: Wijkcentrum (gemiddeld) | F34: Per 100m2 bvo | G34: Per 100m2 bvo
A35: Wijkcentrum (groot) | F35: Per 100m2 bvo | G35: Per 100m2 bvo
A36: Stadsdeelcentrum | F36: Per 100m2 bvo | G36: Per 100m2 bvo
A37: Weekmarkt (bij klein wijk, buurt en dorpscentrum) | F37: Per 100m2 bvo | G37: Per 100m2 bvo
A38: Kringloopwinkel | F38: Per 100m2 bvo | G38: Per 100m2 bvo | H38: detailhandel
A39: Bruin- en witgoedzaken | F39: Per 100m2 bvo | G39: Per 100m2 bvo | H39: detailhandel
A40: Woonwarenhuis/woonwinkel | F40: Per 100m2 bvo | G40: Per 100m2 bvo | H40: detailhandel
A41: Woonwarenhuis (zeer groot) | F41: Per 100m2 bvo | G41: Per 100m2 bvo | H41: grootschalige detailhandel
A42: Meubelboulevard/ woonhboulevard | F42: Per 100m2 bvo | G42: Per 100m2 bvo | H42: grootschalige detailhandel
A43: Winkelboulevard | F43: Per 100m2 bvo | G43: Per 100m2 bvo | H43: grootschalige detailhandel
A44: Outletcentrum | F44: Per 100m2 bvo | G44: Per 100m2 bvo | H44: grootschalige detailhandel
A45: Bouwmarkt | F45: Per 100m2 bvo | G45: Per 100m2 bvo | H45: grootschalige detailhandel
A46: Tuincentrum | F46: Per 100m2 bvo | G46: Per 100m2 bvo | H46: grootschalige detailhandel
A47: Groencentrum | F47: Per 100m2 bvo | G47: Per 100m2 bvo | H47: grootschalige detailhandel
A48: Bibliotheek | F48: Per 100m2 bvo | G48: Per 100m2 bvo | H48: bioscoop/theater/podium/enzovoort
A49: Museum | F49: Per 100m2 bvo | G49: Per 100m2 bvo | H49: bioscoop/theater/podium/enzovoort
A50: Bioscoop | F50: Per 100m2 bvo | G50: Per 100m2 bvo | H50: bioscoop/theater/podium/enzovoort
A51: Filmtheater/ filmhuis | F51: Per 100m2 bvo | G51: Per 100m2 bvo | H51: bioscoop/theater/podium/enzovoort
A52: Theater/ schouwburg | F52: Per 100m2 bvo | G52: Per 100m2 bvo | H52: bioscoop/theater/podium/enzovoort
A53: Musicaltheater | F53: Per 100m2 bvo | G53: Per 100m2 bvo | H53: bioscoop/theater/podium/enzovoort
A54: Casino | F54: Per 100m2 bvo | G54: Per 100m2 bvo | H54: bioscoop/theater/podium/enzovoort
A55: Bowlingcentrum | F55: Per bowlingbaan | G55: Per bowlingbaan | H55: bioscoop/theater/podium/enzovoort
A56: Biljart-/snookercentrum | F56: Per tafel | G56: Per tafel | H56: bioscoop/theater/podium/enzovoort
A57: Dansstudio | F57: Per 100m2 bvo | G57: Per 100m2 bvo | H57: sportfuncties binnen
A58: Fitnessstudio/sportsschool | F58: Per 100m2 bvo | G58: Per 100m2 bvo | H58: sportfuncties binnen
A59: Fitnesscentrum | F59: Per 100m2 bvo | G59: Per 100m2 bvo | H59: sportfuncties binnen
A60: Wellnesscentrum (thermen, kuurcentrum,beautycentrum) | F60: Per 100m2 bvo | G60: Per 100m2 bvo | H60: sportfuncties binnen
A61: Sauna, Hammam | F61: Per 100m2 bvo | G61: Per 100m2 bvo | H61: sportfuncties binnen
A62: Sporthal | F62: Per 100m2 bvo | G62: Per 100m2 bvo | H62: sportfuncties binnen
A63: Sportzaal | F63: Per 100m2 bvo | G63: Per 100m2 bvo | H63: sportfuncties binnen
A64: Tennishal | F64: Per 100m2 bvo | G64: Per 100m2 bvo | H64: sportfuncties binnen
A65: Squashhal | F65: Per 100m2 bvo | G65: Per 100m2 bvo | H65: sportfuncties binnen
A66: Zwembad overdekt | F66: Per 100m2 bvo | G66: Per 100m2 bvo | H66: sportfuncties binnen
A67: Zwembad openlucht | F67: Per 100m2 bvo | G67: Per 100m2 bvo | H67: sportfuncties buiten
A68: Zwemparadijs | F68: Per 100m2 bvo | G68: Per 100m2 bvo | H68: sportfuncties buiten
A69: Sportveld | F69: Per hectare netto terrein | G69: Per hectare netto terrein | H69: sportfuncties buiten
A70: Stadion | F70: Per zitplaats | G70: Per zitplaats | H70: sportfuncties buiten
A71: Kunstijsbaan (kleiner dan 400 meter) | F71: Per 100m2 bvo | G71: Per 100m2 bvo | H71: sportfuncties buiten
A72: Kunstijsbaan (400 meter) | F72: Per 100m2 bvo | G72: Per 100m2 bvo | H72: sportfuncties buiten
A73: Ski-snowboardhal | F73: Per 100m2 sneeuw (exclusief oefenpistes) | G73: Per 100m2 bvo | H73: sportfuncties binnen
A74: Jachthaven | F74: Per ligplaats (verk.gen. Per 100 ligplaatsen) | G74: Per 100 ligplaatsen | H74: bioscoop/theater/podium/enzovoort
A75: Golfoefencentrum | F75: Per centrum | G75: Per centrum | H75: sportfuncties buiten
A76: Golfbaan (18 holes) | F76: Per 18 holes, 60 ha | G76: Per 18 holes, 60 ha | H76: sportfuncties buiten
A77: Indoorspeeltuin (kinderspeelhal), gemiddeld en kleiner | F77: Per 100m2 bvo | G77: Per 100m2 bvo | H77: sportfuncties binnen
A78: Indoorspeeltuin (kinderspeelhal), groot | F78: Per 100m2 bvo | G78: Per 100m2 bvo | H78: sportfuncties binnen
A79: Indoorspeeltuing (kinderspeelhal, zeer groot | F79: Per 100m2 bvo | G79: Per 100m2 bvo | H79: sportfuncties binnen
A80: Kinderboerderij (stadsboerderij) | F80: Per gemiddelde boerderij (verk. Gen. Per 100 m2 bvo) | G80: Per 100m2 bvo | H80: bioscoop/theater/podium/enzovoort
A81: Manage (paardenhouderij) | F81: Per Box | G81: Per bezette box/ paard | H81: bioscoop/theater/podium/enzovoort
A82: Dierenpark | F82: Per ha. Netto terrein | G82: Per gemiddeld park (300,000 bezoekers per jaar) | H82: bioscoop/theater/podium/enzovoort
A83: Attractie- en pretpark | F83: per ha. Netto terrein (verk. Gen. 550000 bezoekers per jaar) | G83: 550.000 bezoekers per jaar | H83: bioscoop/theater/podium/enzovoort
A84: Volkstuin | F84: Per 10 tuinen | G84: Per 10 Tuinen | H84: bioscoop/theater/podium/enzovoort
A85: Plantentuin (botanische tuin) | F85: Per gemiddelde tuin | G85: Per 10 tuinen | H85: bioscoop/theater/podium/enzovoort
A86: Camping (kampeerterrein) | F86: Per standplaats | G86: Per standplaats
A87: Bungalowparkt (huisjescomplex) | F87: Per bungalow | G87: Per bungalow
A88: 1 ster hotel | F88: Per 10 kamers | G88: Per 10 kamers
A89: 2 ster hotel | F89: Per 10 kamers | G89: Per 10 kamers
A90: 3 ster hotel | F90: Per 10 kamers | G90: Per 10 kamers
A91: 4 ster hotel | F91: Per 10 kamers | G91: Per 10 kamers
A92: 5 ster hotel | F92: Per 10 kamers | G92: Per 10 kamers
A93: Café/ bar/ cafetaria | F93: Per 100m2 bvo | G93: Per 100m2 bvo
A94: Restaurant | F94: Per 100m2 bvo | G94: Per 100m2 bvo
A95: Fastfoodrestaurant | F95: Per gemiddelde vesting | G95: Per gemiddelde vesting | H95: detailhandel
A96: Discotheek | F96: Per 100m2 bvo | G96: Per 100m2 bvo | H96: bioscoop/theater/podium/enzovoort
A97: Evenementenhal/ beursgebouw/ congresgebouw | F97: Per 100m2 bvo | G97: Per 100m2 bvo | H97: bioscoop/theater/podium/enzovoort
A98: Huisartsenpraktijk (centrum) | F98: Per behandelkamer | G98: Per behandelkamer | H98: sociaal medisch: arts/therapeut/consultatiebureau
A99: Apotheek | F99: Per apotheek | G99: Per apotheek | H99: sociaal medisch: arts/therapeut/consultatiebureau
A100: Fysiotherapiepraktijk (centrum) | F100: Per behandelkamer | G100: Per behandelkamer | H100: sociaal medisch: arts/therapeut/consultatiebureau
A101: consultatiebureau | F101: Per behandelkamer | G101: Per behandelkamer | H101: sociaal medisch: arts/therapeut/consultatiebureau
A102: Consultatiebureau voor ouderen | F102: Per behandelkamer | G102: Per behandelkamer | H102: sociaal medisch: arts/therapeut/consultatiebureau
A103: Tandartsenpraktijk (centrum) | F103: Per behandelkamer | G103: Per behandelkamer | H103: sociaal medisch: arts/therapeut/consultatiebureau
A104: Gezondheidscentrum | F104: Per behandelkamer | G104: Per behandelkamer | H104: sociaal medisch: arts/therapeut/consultatiebureau
A105: Ziekenhuis | F105: Per 100m2 bvo | G105: Per 100m2 bvo | H105: ziekenhuis medewerkers | I105: ziekenhuis: patiënten inclusief bezoekers | J105: Let op: de weergegeven kengetallen gelden voor een gemiddeld ziekenhuis. Een gedetailleerde parkeerberekening is mogelijk door gebruik te maken van de volgende parkeerkengetallen: bezoekers van klinische patiënten: 0,5 p.p. per bed bij beperkt aantal bezoekuren per dag, 0,25 p.p. per bed bij gespreide bezoektijden dagverplegings- respectievelijk deeltijdbehandelingspatiënten: 0,5 p.p. per bed respectievelijk plaats medewerkers: 0,25 p.p. per formatieplaats (voor elke ambulante behandelaar 1 parkeerplaats Aandeel bezoekers: 29%
A106: Crematorium | F106: Per (deels) gelijktijdige plechtigheid | G106: Per Plechtigheid | H106: sociaal medisch: arts/therapeut/consultatiebureau
A107: Begraafplaats | F107: Per (deels) gelijktijdige plechtigheid | G107: Per Plechtigheid | H107: sociaal medisch: arts/therapeut/consultatiebureau
A108: Penitentiaire inrichting | F108: Per 10 cellen | G108: Per 10 cellen | H108: sociaal medisch: arts/therapeut/consultatiebureau
A109: Religiegebouw | F109: Per zitplaats | G109: Per zitplaats | H109: sociaal medisch: arts/therapeut/consultatiebureau
A110: Verpleeg- en verzorgingshuis | F110: Per wooneenheid | G110: Per wooneenheid | H110: verpleeghuis/verzorgingstehuis
A111: Kinderdagverblijf (créche) | F111: Per 100m2 bvo | G111: Per 100m2 bvo | H111: dagonderwijs
A112: Basisonderwijs | F112: Per leslokaal | G112: Per leslokaal | H112: dagonderwijs
A113: Middelbare school | F113: Per 100 leerlingen | G113: Per 100 leerlingen | H113: dagonderwijs
A114: ROC | F114: Per 100 leerlingen | G114: Per 100 leerlingen | H114: dagonderwijs
A115: Hogeschool | F115: Per 100 leerlingen | G115: Per 100 leerlingen | H115: dagonderwijs
A116: Universiteit | F116: Per 100 studenten | G116: Per 100 studenten | H116: dagonderwijs
A117: Avondonderwijs | F117: Per 10 Studenten | G117: Per 10 Studenten | H117: avondonderwijs
